Directorate,Department,Expenditure Type,Ref.Doc.1,Vendor Name,Expenditure Amount (exc VAT),Payment Date
Delivery Units,Adults and Health,Voluntary Associations - Third,0050037550,BARNET MENCAP,"11,142.65",25/05/2021
Delivery Units,Adults and Health,Other Services,1008913602,Recruitment Team Nine Limited,270.00,12/05/2021
Delivery Units,Adults and Health,Other Services,1008790202,Barnet Homes Assist,592.80,05/05/2021
Delivery Units,Adults and Health,Other Transfer Payments to Soc,1008826602,MIDDLESEX ASSOCIATION  FOR THE BLIN,"2,268.25",07/05/2021
Delivery Units,Adults and Health,Other Transfer Payments to Soc,1008882502,MIDDLESEX ASSOCIATION  FOR THE BLIN,"2,268.25",11/05/2021
Delivery Units,Adults and Health,Other Transfer Payments to Soc,1008883902,Age UK Barnet,"37,500.00",11/05/2021
Delivery Units,Adults and Health,Other Transfer Payments to Soc,1008888102,PRT BARNET CARERS CENTRE,"28,090.92",11/05/2021
Delivery Units,Adults and Health,Other Transfer Payments to Soc,1009009702,Inclusion Barnet,"10,123.23",14/05/2021
Delivery Units,Adults and Health,Other Transfer Payments to Soc,1009114102,Age UK Barnet,"54,500.00",20/05/2021
Delivery Units,Adults and Health,Equipment and Materials Purcha,1008314602,BACK CARE SOLUTIONS LIMITED,63.49,11/05/2021
Delivery Units,Adults and Health,Advertising for staff,1008717502,TMP (UK) LTD,"1,286.00",11/05/2021
Delivery Units,Adults and Health,Advertising for staff,1008888202,TMP (UK) LTD,"1,286.00",11/05/2021
Delivery Units,Adults and Health,Training,1008815401,SOLACE ENTERPRISES LTD,600.00,05/05/2021
Delivery Units,Adults and Health,Other Services,1008918601,D.A. Languages Ltd,54.00,12/05/2021
Delivery Units,Adults and Health,Translation Exp / Interpret,1008789201,D.A. Languages Ltd,36.00,04/05/2021
Delivery Units,Adults and Health,Translation Exp / Interpret,1008831701,D.A. Languages Ltd,31.20,06/05/2021
Delivery Units,Adults and Health,Translation Exp / Interpret,1008919401,D.A. Languages Ltd,54.00,12/05/2021
Delivery Units,Adults and Health,Other Services,1009046301,iESE Innovation Ltd,"7,500.00",14/05/2021
Delivery Units,Adults and Health,Cleaning and domestic material,1009066501,Norse Commercial Services Ltd,658.02,17/05/2021
Delivery Units,Adults and Health,Training,1009010201,HUNTERSJOY LTD,375.00,13/05/2021
Delivery Units,Adults and Health,Training,1009014301,HUNTERSJOY LTD,375.00,13/05/2021
Delivery Units,Adults and Health,Other Services,1008887801,HAS Technology Ltd,"1,389.75",10/05/2021
Delivery Units,Adults and Health,Translation Exp / Interpret,1008919901,D.A. Languages Ltd,98.00,12/05/2021
Delivery Units,Adults and Health,Equipment and Materials Purcha,1007760702,BACK CARE SOLUTIONS LIMITED,"1,023.90",05/05/2021
Delivery Units,Adults and Health,Other Services,1008919001,D.A. Languages Ltd,54.00,12/05/2021
Delivery Units,Adults and Health,Other Services,1008920301,D.A. Languages Ltd,54.00,12/05/2021
Delivery Units,Adults and Health,Advertising,1005932702,GOOD IMPRESSIONS (LONDON) LIMITED,180.00,11/05/2021
Delivery Units,Adults and Health,Other Transfer Payments to Soc,1008888601,Eduhez Ltd,"2,190.00",10/05/2021
Delivery Units,Adults and Health,Other Transfer Payments to Soc,1009013301,Kevin Scheuring Ltd,"2,100.00",13/05/2021
Delivery Units,Adults and Health,Other Transfer Payments to Soc,1009013701,Action First Assessment Ltd,502.50,13/05/2021
Delivery Units,Adults and Health,Other Transfer Payments to Soc,1009249502,Aisa Medical Ltd,"3,313.53",27/05/2021
Delivery Units,Adults and Health,Other Agencies - Third Party P,0090353741,SUNRISE SENIOR LIVING LTD,"6,176.40",06/05/2021
Delivery Units,Adults and Health,Other Agencies - Third Party P,0090353682,St Anns Home-Little Sisters of the Poor,"2,390.40",06/05/2021
Delivery Units,Adults and Health,Other Agencies - Third Party P,0090353743,AGUDAS ISRAEL HOUSING ASSCTN LTD,"2,648.57",06/05/2021
Delivery Units,Adults and Health,Other Agencies - Third Party P,0090353683,Contemplation Homes,"3,299.79",06/05/2021
Delivery Units,Adults and Health,Other Agencies - Third Party P,0090353747,BUPA NURSING HOMES LTD - ARKLEY,"3,800.00",06/05/2021
Delivery Units,Adults and Health,Other Agencies - Third Party P,0090353748,BUPA NURSING HOMES LTD - ARKLEY,"4,400.00",06/05/2021
Delivery Units,Adults and Health,Other Agencies - Third Party P,0090353749,BUPA NURSING HOMES LTD - ARKLEY,"1,430.47",06/05/2021
Delivery Units,Adults and Health,Other Agencies - Third Party P,0090353750,BUPA NURSING HOMES LTD - ARKLEY,"4,387.00",06/05/2021
Delivery Units,Adults and Health,Other Agencies - Third Party P,0090354217,GCH North London Ltd,"3,000.00",10/05/2021
Delivery Units,Adults and Health,Other Agencies - Third Party P,0090355544,Contemplation Homes,"3,409.78",11/05/2021
Delivery Units,Adults and Health,Other Agencies - Third Party P,0090355560,M D HOMES,"3,165.10",11/05/2021
Delivery Units,Adults and Health,Other Agencies - Third Party P,0090355564,CEDARS NURSING HOME,"4,207.14",11/05/2021
Delivery Units,Adults and Health,Other Agencies - Third Party P,0090355565,CEDARS NURSING HOME,"2,964.93",11/05/2021
Delivery Units,Adults and Health,Other Agencies - Third Party P,0090355566,CEDARS NURSING HOME,"2,610.91",11/05/2021
Delivery Units,Adults and Health,Other Agencies - Third Party P,0090355567,CEDARS NURSING HOME,"3,919.29",11/05/2021
Delivery Units,Adults and Health,Other Agencies - Third Party P,0090355568,CEDARS NURSING HOME,"5,314.29",11/05/2021
Delivery Units,Adults and Health,Other Agencies - Third Party P,0090355570,CEDARS NURSING HOME,"5,526.86",11/05/2021
Delivery Units,Adults and Health,Other Agencies - Third Party P,0090355571,CEDARS NURSING HOME,"4,428.57",11/05/2021
Delivery Units,Adults and Health,Other Agencies - Third Party P,0090355580,Barchester Healthcare Homes Ltd (Brook,"4,207.14",11/05/2021
Delivery Units,Adults and Health,Other Agencies - Third Party P,0090356284,WESTGATE HOUSE CARE CENTRE,"3,725.76",13/05/2021
Delivery Units,Adults and Health,Other Agencies - Third Party P,0090356313,FERNBANK NURSING HOME.,"4,362.01",13/05/2021
Delivery Units,Adults and Health,Other Agencies - Third Party P,0090356314,FERNBANK NURSING HOME.,"3,542.68",13/05/2021
Delivery Units,Adults and Health,Other Agencies - Third Party P,0090356315,FERNBANK NURSING HOME.,"4,278.31",13/05/2021
Delivery Units,Adults and Health,Other Agencies - Third Party P,0090356316,FERNBANK NURSING HOME.,"4,278.31",13/05/2021
Delivery Units,Adults and Health,Other Agencies - Third Party P,0090356339,ST VINCENTS NURSING HOME,"1,802.65",13/05/2021
Delivery Units,Adults and Health,Other Agencies - Third Party P,0090356869,Victoria Care Centre,"2,940.64",14/05/2021
Delivery Units,Adults and Health,Other Agencies - Third Party P,0090356901,BUPA NURSING HOMES LTD - ARKLEY,"2,660.00",14/05/2021
Delivery Units,Adults and Health,Other Agencies - Third Party P,0090356902,BUPA NURSING HOMES LTD - ARKLEY,"2,660.00",14/05/2021
Delivery Units,Adults and Health,Other Agencies - Third Party P,0090356903,BUPA NURSING HOMES LTD - ARKLEY,"2,660.00",14/05/2021
Delivery Units,Adults and Health,Other Agencies - Third Party P,0090356904,BUPA NURSING HOMES LTD - ARKLEY,"2,660.00",14/05/2021
Delivery Units,Adults and Health,Other Agencies - Third Party P,0090356905,BUPA NURSING HOMES LTD - ARKLEY,"2,660.00",14/05/2021
Delivery Units,Adults and Health,Other Agencies - Third Party P,0090356906,BUPA NURSING HOMES LTD - ARKLEY,"2,660.00",14/05/2021
Delivery Units,Adults and Health,Other Agencies - Third Party P,0090357427,WILSMERE HOUSE CARE CENTRE,"4,979.35",17/05/2021
Delivery Units,Adults and Health,Other Agencies - Third Party P,0090357692,ABBEY RAVENSCROFT PARK NURSING HOME,"3,000.00",19/05/2021
Delivery Units,Adults and Health,Other Agencies - Third Party P,0090357818,BUPA NURSING HOMES LTD - ARKLEY,"2,660.00",19/05/2021
Delivery Units,Adults and Health,Other Agencies - Third Party P,0090357819,BUPA NURSING HOMES LTD - ARKLEY,"2,660.00",19/05/2021
Delivery Units,Adults and Health,Other Agencies - Third Party P,0090357820,BUPA NURSING HOMES LTD - ARKLEY,"2,660.00",19/05/2021
Delivery Units,Adults and Health,Other Agencies - Third Party P,0090357821,BUPA NURSING HOMES LTD - ARKLEY,"2,660.00",19/05/2021
Delivery Units,Adults and Health,Other Agencies - Third Party P,0090357822,BUPA NURSING HOMES LTD - ARKLEY,"2,660.00",19/05/2021
Delivery Units,Adults and Health,Other Agencies - Third Party P,0090357824,BUPA NURSING HOMES LTD - ARKLEY,"1,045.00",19/05/2021
Delivery Units,Adults and Health,Other Agencies - Third Party P,0090357825,BUPA NURSING HOMES LTD - ARKLEY,"1,615.00",19/05/2021
Delivery Units,Adults and Health,Other Agencies - Third Party P,0090357938,Karuna Manor,"4,071.43",19/05/2021
Delivery Units,Adults and Health,Other Agencies - Third Party P,0090357939,Karuna Manor,"2,297.14",19/05/2021
Delivery Units,Adults and Health,Other Agencies - Third Party P,0090357941,Karuna Manor,"4,207.14",19/05/2021
Delivery Units,Adults and Health,Other Agencies - Third Party P,0090357942,Karuna Manor,"2,373.71",19/05/2021
Delivery Units,Adults and Health,Other Agencies - Third Party P,0090358035,AUTUMN GARDENS,"4,800.00",20/05/2021
Delivery Units,Adults and Health,Other Agencies - Third Party P,0090358040,AUTUMN GARDENS,"4,800.00",20/05/2021
Delivery Units,Adults and Health,Other Agencies - Third Party P,0090358041,AUTUMN GARDENS,"3,440.00",20/05/2021
Delivery Units,Adults and Health,Other Agencies - Third Party P,0090358032,MEERA NURSING HOME LIMITED,"2,445.68",20/05/2021
Delivery Units,Adults and Health,Other Agencies - Third Party P,0090358033,MEERA NURSING HOME LIMITED,"2,366.79",20/05/2021
Delivery Units,Adults and Health,Other Agencies - Third Party P,0090358034,MEERA NURSING HOME LIMITED,"2,445.68",20/05/2021
Delivery Units,Adults and Health,Other Agencies - Third Party P,0090358042,MEERA NURSING HOME LIMITED,"3,393.60",20/05/2021
Delivery Units,Adults and Health,Other Agencies - Third Party P,0090358044,MEERA NURSING HOME LIMITED,"3,506.72",20/05/2021
Delivery Units,Adults and Health,Other Agencies - Third Party P,0090358048,WESTGATE HOUSE CARE CENTRE,"3,725.76",20/05/2021
Delivery Units,Adults and Health,Other Agencies - Third Party P,0090358811,BUPA NURSING HOMES LTD - ARKLEY,"2,671.40",21/05/2021
Delivery Units,Adults and Health,Other Agencies - Third Party P,0090358812,BUPA NURSING HOMES LTD - ARKLEY,"2,671.40",21/05/2021
Delivery Units,Adults and Health,Other Agencies - Third Party P,0090358813,BUPA NURSING HOMES LTD - ARKLEY,"2,671.40",21/05/2021
Delivery Units,Adults and Health,Other Agencies - Third Party P,0090358815,BUPA NURSING HOMES LTD - ARKLEY,"1,995.00",21/05/2021
Delivery Units,Adults and Health,Other Agencies - Third Party P,0090358816,BUPA NURSING HOMES LTD - ARKLEY,95.00,21/05/2021
Delivery Units,Adults and Health,Other Agencies - Third Party P,0090358817,BUPA NURSING HOMES LTD - ARKLEY,"5,639.20",21/05/2021
Delivery Units,Adults and Health,Other Agencies - Third Party P,0090358818,BUPA NURSING HOMES LTD - ARKLEY,771.40,21/05/2021
Delivery Units,Adults and Health,Other Agencies - Third Party P,0090358819,BUPA NURSING HOMES LTD - ARKLEY,"2,185.00",21/05/2021
Delivery Units,Adults and Health,Other Agencies - Third Party P,0090358820,BUPA NURSING HOMES LTD - ARKLEY,"2,739.80",24/05/2021
Delivery Units,Adults and Health,Other Agencies - Third Party P,0090358821,BUPA NURSING HOMES LTD - ARKLEY,"7,691.20",24/05/2021
Delivery Units,Adults and Health,Other Agencies - Third Party P,0090358822,BUPA NURSING HOMES LTD - ARKLEY,"2,739.80",24/05/2021
Delivery Units,Adults and Health,Other Agencies - Third Party P,0090358824,BUPA NURSING HOMES LTD - ARKLEY,"2,739.80",24/05/2021
Delivery Units,Adults and Health,Other Agencies - Third Party P,0090358825,BUPA NURSING HOMES LTD - ARKLEY,"2,739.80",24/05/2021
Delivery Units,Adults and Health,Other Agencies - Third Party P,0090358826,BUPA NURSING HOMES LTD - ARKLEY,"2,739.80",24/05/2021
Delivery Units,Adults and Health,Other Agencies - Third Party P,0090360153,ABBEY RAVENSCROFT PARK NURSING HOME,"3,000.00",26/05/2021
Delivery Units,Adults and Health,Other Agencies - Third Party P,0090360154,ABBEY RAVENSCROFT PARK NURSING HOME,"2,518.48",26/05/2021
Delivery Units,Adults and Health,Other Agencies - Third Party P,0090360155,ABBEY RAVENSCROFT PARK NURSING HOME,"3,000.00",26/05/2021
Delivery Units,Adults and Health,Other Agencies - Third Party P,0090360156,ABBEY RAVENSCROFT PARK NURSING HOME,"4,512.00",26/05/2021
Delivery Units,Adults and Health,Other Agencies - Third Party P,0090360159,ABBEY RAVENSCROFT PARK NURSING HOME,"3,000.00",26/05/2021
Delivery Units,Adults and Health,Other Agencies - Third Party P,0090360161,ABBEY RAVENSCROFT PARK NURSING HOME,"3,400.00",26/05/2021
Delivery Units,Adults and Health,Other Agencies - Third Party P,0090360163,ABBEY RAVENSCROFT PARK NURSING HOME,"3,600.00",26/05/2021
Delivery Units,Adults and Health,Other Agencies - Third Party P,0090360164,ABBEY RAVENSCROFT PARK NURSING HOME,"3,600.00",26/05/2021
Delivery Units,Adults and Health,Other Agencies - Third Party P,0090360165,ABBEY RAVENSCROFT PARK NURSING HOME,"7,800.00",26/05/2021
Delivery Units,Adults and Health,Other Agencies - Third Party P,0090360166,ABBEY RAVENSCROFT PARK NURSING HOME,"4,000.00",26/05/2021
Delivery Units,Adults and Health,Other Agencies - Third Party P,0090360167,ABBEY RAVENSCROFT PARK NURSING HOME,"4,000.00",26/05/2021
Delivery Units,Adults and Health,Other Agencies - Third Party P,0090360169,ABBEY RAVENSCROFT PARK NURSING HOME,"3,050.00",26/05/2021
Delivery Units,Adults and Health,Other Agencies - Third Party P,0090360171,ABBEY RAVENSCROFT PARK NURSING HOME,"3,000.00",26/05/2021
Delivery Units,Adults and Health,Other Agencies - Third Party P,0090360172,ABBEY RAVENSCROFT PARK NURSING HOME,485.71,26/05/2021
Delivery Units,Adults and Health,Other Agencies - Third Party P,0090360183,NIGHTINGALE HOUSE,"2,981.89",26/05/2021
Delivery Units,Adults and Health,Other Agencies - Third Party P,0090352873,Ashfields Residential Care Home,"1,392.86",04/05/2021
Delivery Units,Adults and Health,Other Agencies - Third Party P,0090352874,Ashfields Residential Care Home,857.14,04/05/2021
Delivery Units,Adults and Health,Other Agencies - Third Party P,0090352875,Ashfields Residential Care Home,"3,321.43",04/05/2021
Delivery Units,Adults and Health,Other Agencies - Third Party P,0090352876,Ashfields Residential Care Home,"2,878.57",04/05/2021
Delivery Units,Adults and Health,Other Agencies - Third Party P,0090353676,Elizabeth Finn Homes Ltd,"3,857.14",06/05/2021
Delivery Units,Adults and Health,Other Agencies - Third Party P,0090354204,GCH (North London) t/a The Tudors,"2,300.00",10/05/2021
Delivery Units,Adults and Health,Other Agencies - Third Party P,0090354205,THE WOODSIDE HOME,"2,285.28",10/05/2021
Delivery Units,Adults and Health,Other Agencies - Third Party P,0090354214,EASTSIDE HOUSE CARE HOME,"3,580.00",10/05/2021
Delivery Units,Adults and Health,Other Agencies - Third Party P,0090354218,GCH (Hertfordshire) Ltd T/A,"2,414.68",10/05/2021
Delivery Units,Adults and Health,Other Agencies - Third Party P,0090355536,FINBOND LIMITED,"3,214.29",11/05/2021
Delivery Units,Adults and Health,Other Agencies - Third Party P,0090355538,VILLA SCALABRINI,"4,428.57",11/05/2021
Delivery Units,Adults and Health,Other Agencies - Third Party P,0090355563,RNID,"3,030.04",11/05/2021
Delivery Units,Adults and Health,Other Agencies - Third Party P,0090355543,METHODIST HOMES FOR THE AGED,"2,631.76",11/05/2021
Delivery Units,Adults and Health,Other Agencies - Third Party P,0090355546,B & M CARE,"4,207.14",11/05/2021
Delivery Units,Adults and Health,Other Agencies - Third Party P,0090355562,HILTON LODGE LTD.,"2,880.00",11/05/2021
Delivery Units,Adults and Health,Other Agencies - Third Party P,0090355572,CEDARS NURSING HOME,"4,428.57",11/05/2021
Delivery Units,Adults and Health,Other Agencies - Third Party P,0090356297,GCH (North London) t/a The Tudors,"2,300.00",13/05/2021
Delivery Units,Adults and Health,Other Agencies - Third Party P,0090356286,B & M CARE,"3,764.29",13/05/2021
Delivery Units,Adults and Health,Other Agencies - Third Party P,0090356298,HILTON LODGE LTD.,"3,800.00",13/05/2021
Delivery Units,Adults and Health,Other Agencies - Third Party P,0090356317,GREEN TREES,"3,385.50",13/05/2021
Delivery Units,Adults and Health,Other Agencies - Third Party P,0090356318,GREEN TREES,"3,385.10",13/05/2021
Delivery Units,Adults and Health,Other Agencies - Third Party P,0090356319,Wilton House Ltd,"2,621.01",13/05/2021
Delivery Units,Adults and Health,Other Agencies - Third Party P,0090356320,Wilton House Ltd,"2,611.48",13/05/2021
Delivery Units,Adults and Health,Other Agencies - Third Party P,0090356323,Ashfields Residential Care Home,"3,214.29",13/05/2021
Delivery Units,Adults and Health,Other Agencies - Third Party P,0090356324,Ashfields Residential Care Home,"3,214.29",13/05/2021
Delivery Units,Adults and Health,Other Agencies - Third Party P,0090356325,VENTRY RESIDENTIAL CARE LTD,"3,214.29",13/05/2021
Delivery Units,Adults and Health,Other Agencies - Third Party P,0090356326,Ashfields Residential Care Home,"2,785.71",13/05/2021
Delivery Units,Adults and Health,Other Agencies - Third Party P,0090356328,Ventry Residential Care - Ernest Dene,"3,321.43",13/05/2021
Delivery Units,Adults and Health,Other Agencies - Third Party P,0090356329,Ventry Residential Care - Ernest Dene,750.00,13/05/2021
Delivery Units,Adults and Health,Other Agencies - Third Party P,0090356330,Ventry Residential Care - Ernest Dene,"3,321.43",13/05/2021
Delivery Units,Adults and Health,Other Agencies - Third Party P,0090356332,Ventry Residential Care - Ernest Dene,"3,321.43",13/05/2021
Delivery Units,Adults and Health,Other Agencies - Third Party P,0090356333,Ventry Residential Care - Ernest Dene,"3,214.29",13/05/2021
Delivery Units,Adults and Health,Other Agencies - Third Party P,0090356334,Ventry Residential Care - Ernest Dene,"3,214.29",13/05/2021
Delivery Units,Adults and Health,Other Agencies - Third Party P,0090356336,Ventry Residential Care - Ernest Dene,"3,214.29",13/05/2021
Delivery Units,Adults and Health,Other Agencies - Third Party P,0090356337,VENTRY RESIDENTIAL CARE LTD,"3,000.00",13/05/2021
Delivery Units,Adults and Health,Other Agencies - Third Party P,0090356343,Wilton House Ltd,"2,527.24",13/05/2021
Delivery Units,Adults and Health,Other Agencies - Third Party P,0090356344,Wilton House Ltd,"2,536.46",13/05/2021
Delivery Units,Adults and Health,Other Agencies - Third Party P,0090356347,Dhyani Care Ltd,"3,321.40",13/05/2021
Delivery Units,Adults and Health,Other Agencies - Third Party P,0090356862,TORRINGTON HOMES,"2,249.45",14/05/2021
Delivery Units,Adults and Health,Other Agencies - Third Party P,0090356864,TORRINGTON HOMES,"3,764.29",14/05/2021
Delivery Units,Adults and Health,Other Agencies - Third Party P,0090356865,TORRINGTON HOMES,"2,448.78",14/05/2021
Delivery Units,Adults and Health,Other Agencies - Third Party P,0090356868,Barchester Healthcare Ltd,"4,779.76",14/05/2021
Delivery Units,Adults and Health,Other Agencies - Third Party P,0090357428,B & M CARE,"4,428.57",17/05/2021
Delivery Units,Adults and Health,Other Agencies - Third Party P,0090357927,LIVABILITY,"3,211.80",19/05/2021
Delivery Units,Adults and Health,Other Agencies - Third Party P,0090357928,LIVABILITY,"3,458.24",19/05/2021
Delivery Units,Adults and Health,Other Agencies - Third Party P,0090357932,LIVABILITY,"4,364.00",19/05/2021
Delivery Units,Adults and Health,Other Agencies - Third Party P,0090357654,Alliance Care (Dales Homes) Ltd,"4,400.00",19/05/2021
Delivery Units,Adults and Health,Other Agencies - Third Party P,0090357684,THE WOODSIDE HOME,"2,380.00",19/05/2021
Delivery Units,Adults and Health,Other Agencies - Third Party P,0090357685,THE WOODSIDE HOME,"2,516.00",19/05/2021
Delivery Units,Adults and Health,Other Agencies - Third Party P,0090357686,THE WOODSIDE HOME,"2,380.00",19/05/2021
Delivery Units,Adults and Health,Other Agencies - Third Party P,0090357687,THE WOODSIDE HOME,"2,380.00",19/05/2021
Delivery Units,Adults and Health,Other Agencies - Third Party P,0090357688,THE WOODSIDE HOME,"2,516.00",19/05/2021
Delivery Units,Adults and Health,Other Agencies - Third Party P,0090357937,Karuna Manor,"4,071.43",19/05/2021
Delivery Units,Adults and Health,Other Agencies - Third Party P,0090357940,Karuna Manor,"4,207.14",19/05/2021
Delivery Units,Adults and Health,Other Agencies - Third Party P,0090358038,AUTUMN GARDENS,"3,200.00",20/05/2021
Delivery Units,Adults and Health,Other Agencies - Third Party P,0090357972,THE CHRISTIAN CARE TRUST,"2,499.49",20/05/2021
Delivery Units,Adults and Health,Other Agencies - Third Party P,0090358037,ANASTASIA LODGE,"3,800.00",20/05/2021
Delivery Units,Adults and Health,Other Agencies - Third Party P,0090358807,THE WOODSIDE HOME,"2,380.00",21/05/2021
Delivery Units,Adults and Health,Other Agencies - Third Party P,0090358808,THE WOODSIDE HOME,"2,516.00",21/05/2021
Delivery Units,Adults and Health,Other Agencies - Third Party P,0090358809,THE WOODSIDE HOME,"2,380.00",21/05/2021
Delivery Units,Adults and Health,Other Agencies - Third Party P,0090358912,TBG Mosaic,"2,144.00",24/05/2021
Delivery Units,Adults and Health,Other Agencies - Third Party P,0090358913,TBG Mosaic,"2,144.00",24/05/2021
Delivery Units,Adults and Health,Other Agencies - Third Party P,0090358914,TBG Mosaic,"2,144.00",24/05/2021
Delivery Units,Adults and Health,Other Agencies - Third Party P,0090358915,TBG Mosaic,"-4,134.86",24/05/2021
Delivery Units,Adults and Health,Other Agencies - Third Party P,0090358916,TBG Mosaic,"2,144.00",24/05/2021
Delivery Units,Adults and Health,Other Agencies - Third Party P,0090358917,TBG Mosaic,"4,080.00",24/05/2021
Delivery Units,Adults and Health,Other Agencies - Third Party P,0090358918,TBG Mosaic,"3,131.31",24/05/2021
Delivery Units,Adults and Health,Other Agencies - Third Party P,0090358919,TBG Mosaic,"9,164.00",24/05/2021
Delivery Units,Adults and Health,Other Agencies - Third Party P,0090358920,TBG Mosaic,"2,304.00",24/05/2021
Delivery Units,Adults and Health,Other Agencies - Third Party P,0090358921,TBG Mosaic,"2,304.00",24/05/2021
Delivery Units,Adults and Health,Other Agencies - Third Party P,0090358922,TBG Mosaic,"2,144.00",24/05/2021
Delivery Units,Adults and Health,Other Agencies - Third Party P,0090358923,TBG Mosaic,"2,144.00",24/05/2021
Delivery Units,Adults and Health,Other Agencies - Third Party P,0090358924,TBG Mosaic,"2,144.00",24/05/2021
Delivery Units,Adults and Health,Other Agencies - Third Party P,0090358925,TBG Mosaic,"2,800.00",24/05/2021
Delivery Units,Adults and Health,Other Agencies - Third Party P,0090358926,TBG Mosaic,"2,144.00",24/05/2021
Delivery Units,Adults and Health,Other Agencies - Third Party P,0090358927,TBG Mosaic,"2,144.00",24/05/2021
Delivery Units,Adults and Health,Other Agencies - Third Party P,0090358928,TBG Mosaic,"3,216.00",24/05/2021
Delivery Units,Adults and Health,Other Agencies - Third Party P,0090358929,TBG Mosaic,"2,468.57",24/05/2021
Delivery Units,Adults and Health,Other Agencies - Third Party P,0090358930,TBG Mosaic,"1,072.00",24/05/2021
Delivery Units,Adults and Health,Other Agencies - Third Party P,0090358931,TBG Mosaic,"2,304.00",24/05/2021
Delivery Units,Adults and Health,Other Agencies - Third Party P,0090358932,TBG Mosaic,"2,304.00",24/05/2021
Delivery Units,Adults and Health,Other Agencies - Third Party P,0090358934,TBG Mosaic,"2,304.00",24/05/2021
Delivery Units,Adults and Health,Other Agencies - Third Party P,0090358935,TBG Mosaic,"2,304.00",24/05/2021
Delivery Units,Adults and Health,Other Agencies - Third Party P,0090358936,TBG Mosaic,"2,144.00",24/05/2021
Delivery Units,Adults and Health,Other Agencies - Third Party P,0090358937,TBG Mosaic,"2,304.00",24/05/2021
Delivery Units,Adults and Health,Other Agencies - Third Party P,0090358938,TBG Mosaic,"2,144.00",24/05/2021
Delivery Units,Adults and Health,Other Agencies - Third Party P,0090358939,TBG Mosaic,"-2,968.72",24/05/2021
Delivery Units,Adults and Health,Other Agencies - Third Party P,0090358940,TBG Mosaic,"99,925.71",24/05/2021
Delivery Units,Adults and Health,Other Agencies - Third Party P,0090358941,TBG Mosaic,"2,144.00",24/05/2021
Delivery Units,Adults and Health,Other Agencies - Third Party P,0090358942,TBG Mosaic,"2,304.00",24/05/2021
Delivery Units,Adults and Health,Other Agencies - Third Party P,0090358943,TBG Mosaic,"2,304.00",24/05/2021
Delivery Units,Adults and Health,Other Agencies - Third Party P,0090358944,TBG Mosaic,"2,144.00",24/05/2021
Delivery Units,Adults and Health,Other Agencies - Third Party P,0090358945,TBG Mosaic,"2,304.00",24/05/2021
Delivery Units,Adults and Health,Other Agencies - Third Party P,0090358947,TBG Mosaic,"3,600.00",24/05/2021
Delivery Units,Adults and Health,Other Agencies - Third Party P,0090358948,TBG Mosaic,"4,594.29",24/05/2021
Delivery Units,Adults and Health,Other Agencies - Third Party P,0090358949,TBG Mosaic,"4,134.86",24/05/2021
Delivery Units,Adults and Health,Other Agencies - Third Party P,0090358950,TBG Mosaic,"2,144.00",24/05/2021
Delivery Units,Adults and Health,Other Agencies - Third Party P,0090358951,TBG Mosaic,"2,144.00",24/05/2021
Delivery Units,Adults and Health,Other Agencies - Third Party P,0090358952,TBG Mosaic,"2,304.00",24/05/2021
Delivery Units,Adults and Health,Other Agencies - Third Party P,0090358953,TBG Mosaic,"2,144.00",24/05/2021
Delivery Units,Adults and Health,Other Agencies - Third Party P,0090358954,TBG Mosaic,"2,304.00",24/05/2021
Delivery Units,Adults and Health,Other Agencies - Third Party P,0090358955,TBG Mosaic,"2,304.00",24/05/2021
Delivery Units,Adults and Health,Other Agencies - Third Party P,0090358956,TBG Mosaic,"2,144.00",24/05/2021
Delivery Units,Adults and Health,Other Agencies - Third Party P,0090358957,TBG Mosaic,"2,144.00",24/05/2021
Delivery Units,Adults and Health,Other Agencies - Third Party P,0090358958,TBG Mosaic,"2,144.00",24/05/2021
Delivery Units,Adults and Health,Other Agencies - Third Party P,0090358959,TBG Mosaic,"2,144.00",24/05/2021
Delivery Units,Adults and Health,Other Agencies - Third Party P,0090358961,TBG Mosaic,"2,304.00",24/05/2021
Delivery Units,Adults and Health,Other Agencies - Third Party P,0090358962,TBG Mosaic,"8,018.34",24/05/2021
Delivery Units,Adults and Health,Other Agencies - Third Party P,0090358963,TBG Mosaic,"2,304.00",24/05/2021
Delivery Units,Adults and Health,Other Agencies - Third Party P,0090358964,TBG Mosaic,"2,304.00",24/05/2021
Delivery Units,Adults and Health,Other Agencies - Third Party P,0090358965,TBG Mosaic,"2,304.00",24/05/2021
Delivery Units,Adults and Health,Other Agencies - Third Party P,0090358966,TBG Mosaic,"2,144.00",24/05/2021
Delivery Units,Adults and Health,Other Agencies - Third Party P,0090358969,TBG Mosaic,"1,069.71",24/05/2021
Delivery Units,Adults and Health,Other Agencies - Third Party P,0090358971,TBG Mosaic,"-3,981.71",24/05/2021
Delivery Units,Adults and Health,Other Agencies - Third Party P,0090358973,TBG Mosaic,"2,304.00",24/05/2021
Delivery Units,Adults and Health,Other Agencies - Third Party P,0090358974,TBG Mosaic,"2,304.00",24/05/2021
Delivery Units,Adults and Health,Other Agencies - Third Party P,0090358975,TBG Mosaic,"2,144.00",24/05/2021
Delivery Units,Adults and Health,Other Agencies - Third Party P,0090358976,TBG Mosaic,"2,144.00",24/05/2021
Delivery Units,Adults and Health,Other Agencies - Third Party P,0090358977,TBG Mosaic,"2,304.00",24/05/2021
Delivery Units,Adults and Health,Other Agencies - Third Party P,0090358978,TBG Mosaic,"2,144.00",24/05/2021
Delivery Units,Adults and Health,Other Agencies - Third Party P,0090358979,TBG Mosaic,"2,304.00",24/05/2021
Delivery Units,Adults and Health,Other Agencies - Third Party P,0090358981,TBG Mosaic,"4,062.40",24/05/2021
Delivery Units,Adults and Health,Other Agencies - Third Party P,0090358982,TBG Mosaic,"2,144.00",24/05/2021
Delivery Units,Adults and Health,Other Agencies - Third Party P,0090358983,TBG Mosaic,"2,304.00",24/05/2021
Delivery Units,Adults and Health,Other Agencies - Third Party P,0090358985,TBG Mosaic,"2,144.00",24/05/2021
Delivery Units,Adults and Health,Other Agencies - Third Party P,0090358986,TBG Mosaic,"2,144.00",24/05/2021
Delivery Units,Adults and Health,Other Agencies - Third Party P,0090358987,TBG Mosaic,"2,304.00",24/05/2021
Delivery Units,Adults and Health,Other Agencies - Third Party P,0090358988,TBG Mosaic,"2,304.00",24/05/2021
Delivery Units,Adults and Health,Other Agencies - Third Party P,0090358989,TBG Mosaic,"1,378.29",24/05/2021
Delivery Units,Adults and Health,Other Agencies - Third Party P,0090358999,TENTERDEN HOUSE,"4,659.56",26/05/2021
Delivery Units,Adults and Health,Other Agencies - Third Party P,0090359989,TBG Mosaic,"2,811.29",26/05/2021
Delivery Units,Adults and Health,Other Agencies - Third Party P,0090359990,TBG Mosaic,"2,811.29",26/05/2021
Delivery Units,Adults and Health,Other Agencies - Third Party P,0090359992,TBG Mosaic,"2,811.29",26/05/2021
Delivery Units,Adults and Health,Other Agencies - Third Party P,0090359993,TBG Mosaic,"2,811.29",26/05/2021
Delivery Units,Adults and Health,Other Agencies - Third Party P,0090359994,TBG Mosaic,"2,708.71",26/05/2021
Delivery Units,Adults and Health,Other Agencies - Third Party P,0090359995,TBG Mosaic,"2,811.29",26/05/2021
Delivery Units,Adults and Health,Other Agencies - Third Party P,0090359996,TBG Mosaic,"2,708.71",26/05/2021
Delivery Units,Adults and Health,Other Agencies - Third Party P,0090359997,TBG Mosaic,"103,506.83",26/05/2021
Delivery Units,Adults and Health,Other Agencies - Third Party P,0090359998,TBG Mosaic,"2,708.71",26/05/2021
Delivery Units,Adults and Health,Other Agencies - Third Party P,0090359999,TBG Mosaic,"2,811.29",26/05/2021
Delivery Units,Adults and Health,Other Agencies - Third Party P,0090360000,TBG Mosaic,"2,811.29",26/05/2021
Delivery Units,Adults and Health,Other Agencies - Third Party P,0090360001,TBG Mosaic,"2,708.71",26/05/2021
Delivery Units,Adults and Health,Other Agencies - Third Party P,0090360002,TBG Mosaic,"2,811.29",26/05/2021
Delivery Units,Adults and Health,Other Agencies - Third Party P,0090360004,TBG Mosaic,"3,600.00",26/05/2021
Delivery Units,Adults and Health,Other Agencies - Third Party P,0090360005,TBG Mosaic,"2,857.92",26/05/2021
Delivery Units,Adults and Health,Other Agencies - Third Party P,0090360006,TBG Mosaic,"2,708.71",26/05/2021
Delivery Units,Adults and Health,Other Agencies - Third Party P,0090360007,TBG Mosaic,"2,708.71",26/05/2021
Delivery Units,Adults and Health,Other Agencies - Third Party P,0090360010,TBG Mosaic,"2,811.29",26/05/2021
Delivery Units,Adults and Health,Other Agencies - Third Party P,0090360011,TBG Mosaic,"2,811.29",26/05/2021
Delivery Units,Adults and Health,Other Agencies - Third Party P,0090360012,TBG Mosaic,"2,708.71",26/05/2021
Delivery Units,Adults and Health,Other Agencies - Third Party P,0090360013,TBG Mosaic,"2,708.71",26/05/2021
Delivery Units,Adults and Health,Other Agencies - Third Party P,0090360014,TBG Mosaic,"2,811.29",26/05/2021
Delivery Units,Adults and Health,Other Agencies - Third Party P,0090360015,TBG Mosaic,"2,708.71",26/05/2021
Delivery Units,Adults and Health,Other Agencies - Third Party P,0090360016,TBG Mosaic,"2,811.29",26/05/2021
Delivery Units,Adults and Health,Other Agencies - Third Party P,0090360018,TBG Mosaic,"4,062.40",26/05/2021
Delivery Units,Adults and Health,Other Agencies - Third Party P,0090360019,TBG Mosaic,"2,708.71",26/05/2021
Delivery Units,Adults and Health,Other Agencies - Third Party P,0090360020,TBG Mosaic,"2,811.29",26/05/2021
Delivery Units,Adults and Health,Other Agencies - Third Party P,0090360023,TBG Mosaic,"2,708.71",26/05/2021
Delivery Units,Adults and Health,Other Agencies - Third Party P,0090360024,TBG Mosaic,"2,708.71",26/05/2021
Delivery Units,Adults and Health,Other Agencies - Third Party P,0090360025,TBG Mosaic,"2,811.29",26/05/2021
Delivery Units,Adults and Health,Other Agencies - Third Party P,0090360026,TBG Mosaic,"2,531.71",26/05/2021
Delivery Units,Adults and Health,Other Agencies - Third Party P,0090360027,TBG Mosaic,"2,295.00",26/05/2021
Delivery Units,Adults and Health,Other Agencies - Third Party P,0090360029,TBG Mosaic,"2,708.71",26/05/2021
Delivery Units,Adults and Health,Other Agencies - Third Party P,0090360030,TBG Mosaic,"2,708.71",26/05/2021
Delivery Units,Adults and Health,Other Agencies - Third Party P,0090360031,TBG Mosaic,"2,708.71",26/05/2021
Delivery Units,Adults and Health,Other Agencies - Third Party P,0090360032,TBG Mosaic,"2,708.71",26/05/2021
Delivery Units,Adults and Health,Other Agencies - Third Party P,0090360033,TBG Mosaic,"4,587.29",26/05/2021
Delivery Units,Adults and Health,Other Agencies - Third Party P,0090360034,TBG Mosaic,"3,487.33",26/05/2021
Delivery Units,Adults and Health,Other Agencies - Third Party P,0090360035,TBG Mosaic,"2,811.29",26/05/2021
Delivery Units,Adults and Health,Other Agencies - Third Party P,0090360036,TBG Mosaic,"2,811.29",26/05/2021
Delivery Units,Adults and Health,Other Agencies - Third Party P,0090360037,TBG Mosaic,"2,708.71",26/05/2021
Delivery Units,Adults and Health,Other Agencies - Third Party P,0090360038,TBG Mosaic,"2,708.71",26/05/2021
Delivery Units,Adults and Health,Other Agencies - Third Party P,0090360039,TBG Mosaic,"2,708.71",26/05/2021
Delivery Units,Adults and Health,Other Agencies - Third Party P,0090360040,TBG Mosaic,"2,800.00",26/05/2021
Delivery Units,Adults and Health,Other Agencies - Third Party P,0090360041,TBG Mosaic,"2,708.71",26/05/2021
Delivery Units,Adults and Health,Other Agencies - Third Party P,0090360042,TBG Mosaic,"2,708.71",26/05/2021
Delivery Units,Adults and Health,Other Agencies - Third Party P,0090360043,TBG Mosaic,"2,800.00",26/05/2021
Delivery Units,Adults and Health,Other Agencies - Third Party P,0090360044,TBG Mosaic,160.14,26/05/2021
Delivery Units,Adults and Health,Other Agencies - Third Party P,0090360045,TBG Mosaic,"2,743.14",26/05/2021
Delivery Units,Adults and Health,Other Agencies - Third Party P,0090360046,TBG Mosaic,"2,498.00",26/05/2021
Delivery Units,Adults and Health,Other Agencies - Third Party P,0090360047,TBG Mosaic,"2,708.71",26/05/2021
Delivery Units,Adults and Health,Other Agencies - Third Party P,0090360048,TBG Mosaic,"2,708.71",26/05/2021
Delivery Units,Adults and Health,Other Agencies - Third Party P,0090360049,TBG Mosaic,"2,811.29",26/05/2021
Delivery Units,Adults and Health,Other Agencies - Third Party P,0090360050,TBG Mosaic,"2,708.71",26/05/2021
Delivery Units,Adults and Health,Other Agencies - Third Party P,0090360051,TBG Mosaic,"2,811.29",26/05/2021
Delivery Units,Adults and Health,Other Agencies - Third Party P,0090360052,TBG Mosaic,"2,811.29",26/05/2021
Delivery Units,Adults and Health,Other Agencies - Third Party P,0090360053,TBG Mosaic,"2,708.71",26/05/2021
Delivery Units,Adults and Health,Other Agencies - Third Party P,0090360054,TBG Mosaic,"2,708.71",26/05/2021
Delivery Units,Adults and Health,Other Agencies - Third Party P,0090360055,TBG Mosaic,"2,708.71",26/05/2021
Delivery Units,Adults and Health,Other Agencies - Third Party P,0090360056,TBG Mosaic,"2,708.71",26/05/2021
Delivery Units,Adults and Health,Other Agencies - Third Party P,0090360058,TBG Mosaic,"2,811.29",26/05/2021
Delivery Units,Adults and Health,Other Agencies - Third Party P,0090360059,TBG Mosaic,"-6,096.94",26/05/2021
Delivery Units,Adults and Health,Other Agencies - Third Party P,0090360060,TBG Mosaic,"2,811.29",26/05/2021
Delivery Units,Adults and Health,Other Agencies - Third Party P,0090360061,TBG Mosaic,"2,811.29",26/05/2021
Delivery Units,Adults and Health,Other Agencies - Third Party P,0090360062,TBG Mosaic,"2,811.29",26/05/2021
Delivery Units,Adults and Health,Other Agencies - Third Party P,0090360063,TBG Mosaic,"2,708.71",26/05/2021
Delivery Units,Adults and Health,Other Agencies - Third Party P,0090360065,TBG Mosaic,98.43,26/05/2021
Delivery Units,Adults and Health,Other Agencies - Third Party P,0090360066,TBG Mosaic,"7,241.14",26/05/2021
Delivery Units,Adults and Health,Other Agencies - Third Party P,0090360067,TBG Mosaic,"9,671.29",26/05/2021
Delivery Units,Adults and Health,Other Agencies - Third Party P,0090360068,TBG Mosaic,"14,070.86",26/05/2021
Delivery Units,Adults and Health,Other Agencies - Third Party P,0090360069,TBG Mosaic,"8,887.00",26/05/2021
Delivery Units,Adults and Health,Other Agencies - Third Party P,0090360168,ABBEY RAVENSCROFT PARK NURSING HOME,"3,800.00",26/05/2021
Delivery Units,Adults and Health,Other Agencies - Third Party P,0090360180,APPLE TREE COURT CARE HOME,"3,100.00",26/05/2021
Delivery Units,Adults and Health,Other Agencies - Third Party P,0090360181,APPLE TREE COURT CARE HOME,"-2,103.57",26/05/2021
Delivery Units,Adults and Health,Other Agencies - Third Party P,0090360182,APPLE TREE COURT CARE HOME,"2,657.14",26/05/2021
Delivery Units,Adults and Health,Other Agencies - Third Party P,0090360336,LIVABILITY,-13.80,27/05/2021
Delivery Units,Adults and Health,Other Agencies - Third Party P,0090352884,Arthur Morrison Ltd,463.50,04/05/2021
Delivery Units,Adults and Health,Other Agencies - Third Party P,0090352885,Arthur Morrison Ltd,364.50,04/05/2021
Delivery Units,Adults and Health,Other Agencies - Third Party P,0090352886,Arthur Morrison Ltd,220.50,04/05/2021
Delivery Units,Adults and Health,Other Agencies - Third Party P,0090352887,Arthur Morrison Ltd,220.50,04/05/2021
Delivery Units,Adults and Health,Other Agencies - Third Party P,0090352888,Arthur Morrison Ltd,252.00,04/05/2021
Delivery Units,Adults and Health,Other Agencies - Third Party P,0090352889,Arthur Morrison Ltd,126.00,04/05/2021
Delivery Units,Adults and Health,Other Agencies - Third Party P,0090352890,Arthur Morrison Ltd,567.00,04/05/2021
Delivery Units,Adults and Health,Other Agencies - Third Party P,0090352893,Arthur Morrison Ltd,18.00,04/05/2021
Delivery Units,Adults and Health,Other Agencies - Third Party P,0090352895,Arthur Morrison Ltd,94.50,04/05/2021
Delivery Units,Adults and Health,Other Agencies - Third Party P,0090352896,Arthur Morrison Ltd,135.00,04/05/2021
Delivery Units,Adults and Health,Other Agencies - Third Party P,0090352897,Arthur Morrison Ltd,40.50,04/05/2021
Delivery Units,Adults and Health,Other Agencies - Third Party P,0090352898,Arthur Morrison Ltd,283.50,04/05/2021
Delivery Units,Adults and Health,Other Agencies - Third Party P,0090352900,Arthur Morrison Ltd,785.88,04/05/2021
Delivery Units,Adults and Health,Other Agencies - Third Party P,0090352901,Arthur Morrison Ltd,364.50,04/05/2021
Delivery Units,Adults and Health,Other Agencies - Third Party P,0090352902,Arthur Morrison Ltd,220.50,04/05/2021
Delivery Units,Adults and Health,Other Agencies - Third Party P,0090352903,Arthur Morrison Ltd,220.50,04/05/2021
Delivery Units,Adults and Health,Other Agencies - Third Party P,0090352904,Arthur Morrison Ltd,252.00,04/05/2021
Delivery Units,Adults and Health,Other Agencies - Third Party P,0090352905,Arthur Morrison Ltd,126.00,04/05/2021
Delivery Units,Adults and Health,Other Agencies - Third Party P,0090352906,Arthur Morrison Ltd,567.00,04/05/2021
Delivery Units,Adults and Health,Other Agencies - Third Party P,0090352909,Arthur Morrison Ltd,94.50,04/05/2021
Delivery Units,Adults and Health,Other Agencies - Third Party P,0090352911,Arthur Morrison Ltd,94.50,04/05/2021
Delivery Units,Adults and Health,Other Agencies - Third Party P,0090352912,Arthur Morrison Ltd,135.00,04/05/2021
Delivery Units,Adults and Health,Other Agencies - Third Party P,0090352913,Arthur Morrison Ltd,40.50,04/05/2021
Delivery Units,Adults and Health,Other Agencies - Third Party P,0090352915,Thames Homecare Services Ltd,"1,283.67",04/05/2021
Delivery Units,Adults and Health,Other Agencies - Third Party P,0090352917,Thames Homecare Services Ltd,528.64,04/05/2021
Delivery Units,Adults and Health,Other Agencies - Third Party P,0090352918,Thames Homecare Services Ltd,587.44,04/05/2021
Delivery Units,Adults and Health,Other Agencies - Third Party P,0090352920,Thames Homecare Services Ltd,352.45,04/05/2021
Delivery Units,Adults and Health,Other Agencies - Third Party P,0090352922,Thames Homecare Services Ltd,176.19,04/05/2021
Delivery Units,Adults and Health,Other Agencies - Third Party P,0090352923,Thames Homecare Services Ltd,587.30,04/05/2021
Delivery Units,Adults and Health,Other Agencies - Third Party P,0090352924,Thames Homecare Services Ltd,142.63,04/05/2021
Delivery Units,Adults and Health,Other Agencies - Third Party P,0090352926,Thames Homecare Services Ltd,679.59,04/05/2021
Delivery Units,Adults and Health,Other Agencies - Third Party P,0090352928,Thames Homecare Services Ltd,352.52,04/05/2021
Delivery Units,Adults and Health,Other Agencies - Third Party P,0090352929,Thames Homecare Services Ltd,264.32,04/05/2021
Delivery Units,Adults and Health,Other Agencies - Third Party P,0090352930,Thames Homecare Services Ltd,264.32,04/05/2021
Delivery Units,Adults and Health,Other Agencies - Third Party P,0090352931,Thames Homecare Services Ltd,763.70,04/05/2021
Delivery Units,Adults and Health,Other Agencies - Third Party P,0090352932,Thames Homecare Services Ltd,679.80,04/05/2021
Delivery Units,Adults and Health,Other Agencies - Third Party P,0090352934,Thames Homecare Services Ltd,281.10,04/05/2021
Delivery Units,Adults and Health,Other Agencies - Third Party P,0090352936,Thames Homecare Services Ltd,369.16,04/05/2021
Delivery Units,Adults and Health,Other Agencies - Third Party P,0090352937,Thames Homecare Services Ltd,205.59,04/05/2021
Delivery Units,Adults and Health,Other Agencies - Third Party P,0090352938,Thames Homecare Services Ltd,117.46,04/05/2021
Delivery Units,Adults and Health,Other Agencies - Third Party P,0090352939,Thames Homecare Services Ltd,142.63,04/05/2021
Delivery Units,Adults and Health,Other Agencies - Third Party P,0090352940,Thames Homecare Services Ltd,419.50,04/05/2021
Delivery Units,Adults and Health,Other Agencies - Third Party P,0090352941,Thames Homecare Services Ltd,54.54,04/05/2021
Delivery Units,Adults and Health,Other Agencies - Third Party P,0090352942,Thames Homecare Services Ltd,792.86,04/05/2021
Delivery Units,Adults and Health,Other Agencies - Third Party P,0090352943,Thames Homecare Services Ltd,381.85,04/05/2021
Delivery Units,Adults and Health,Other Agencies - Third Party P,0090352944,Thames Homecare Services Ltd,381.78,04/05/2021
Delivery Units,Adults and Health,Other Agencies - Third Party P,0090352945,Thames Homecare Services Ltd,117.46,04/05/2021
Delivery Units,Adults and Health,Other Agencies - Third Party P,0090352946,Thames Homecare Services Ltd,117.46,04/05/2021
Delivery Units,Adults and Health,Other Agencies - Third Party P,0090352947,Thames Homecare Services Ltd,146.86,04/05/2021
Delivery Units,Adults and Health,Other Agencies - Third Party P,0090352948,Thames Homecare Services Ltd,704.83,04/05/2021
Delivery Units,Adults and Health,Other Agencies - Third Party P,0090352949,Thames Homecare Services Ltd,146.86,04/05/2021
Delivery Units,Adults and Health,Other Agencies - Third Party P,0090352950,Thames Homecare Services Ltd,587.44,04/05/2021
Delivery Units,Adults and Health,Other Agencies - Third Party P,0090352951,Thames Homecare Services Ltd,79.71,04/05/2021
Delivery Units,Adults and Health,Other Agencies - Third Party P,0090352952,Thames Homecare Services Ltd,763.70,04/05/2021
Delivery Units,Adults and Health,Other Agencies - Third Party P,0090352953,Thames Homecare Services Ltd,293.72,04/05/2021
Delivery Units,Adults and Health,Other Agencies - Third Party P,0090352954,Thames Homecare Services Ltd,264.32,04/05/2021
Delivery Units,Adults and Health,Other Agencies - Third Party P,0090352955,Thames Homecare Services Ltd,276.91,04/05/2021
Delivery Units,Adults and Health,Other Agencies - Third Party P,0090352956,Thames Homecare Services Ltd,469.84,04/05/2021
Delivery Units,Adults and Health,Other Agencies - Third Party P,0090352957,Thames Homecare Services Ltd,704.90,04/05/2021
Delivery Units,Adults and Health,Other Agencies - Third Party P,0090352959,Thames Homecare Services Ltd,587.30,04/05/2021
Delivery Units,Adults and Health,Other Agencies - Third Party P,0090352960,Thames Homecare Services Ltd,528.64,04/05/2021
Delivery Units,Adults and Health,Other Agencies - Third Party P,0090352961,Thames Homecare Services Ltd,469.98,04/05/2021
Delivery Units,Adults and Health,Other Agencies - Third Party P,0090352963,Thames Homecare Services Ltd,675.50,04/05/2021
Delivery Units,Adults and Health,Other Agencies - Third Party P,0090352964,Thames Homecare Services Ltd,293.65,04/05/2021
Delivery Units,Adults and Health,Other Agencies - Third Party P,0090352966,Thames Homecare Services Ltd,88.13,04/05/2021
Delivery Units,Adults and Health,Other Agencies - Third Party P,0090352968,Thames Homecare Services Ltd,146.86,04/05/2021
Delivery Units,Adults and Health,Other Agencies - Third Party P,0090352970,Thames Homecare Services Ltd,620.93,04/05/2021
Delivery Units,Adults and Health,Other Agencies - Third Party P,0090352973,Thames Homecare Services Ltd,822.36,04/05/2021
Delivery Units,Adults and Health,Other Agencies - Third Party P,0090352974,Thames Homecare Services Ltd,251.70,04/05/2021
Delivery Units,Adults and Health,Other Agencies - Third Party P,0090352975,Thames Homecare Services Ltd,213.98,04/05/2021
Delivery Units,Adults and Health,Other Agencies - Third Party P,0090352976,Thames Homecare Services Ltd,704.76,04/05/2021
Delivery Units,Adults and Health,Other Agencies - Third Party P,0090352977,Thames Homecare Services Ltd,88.13,04/05/2021
Delivery Units,Adults and Health,Other Agencies - Third Party P,0090352978,Thames Homecare Services Ltd,58.73,04/05/2021
Delivery Units,Adults and Health,Other Agencies - Third Party P,0090352979,Thames Homecare Services Ltd,327.21,04/05/2021
Delivery Units,Adults and Health,Other Agencies - Third Party P,0090352980,Thames Homecare Services Ltd,205.59,04/05/2021
Delivery Units,Adults and Health,Other Agencies - Third Party P,0090352981,Thames Homecare Services Ltd,910.49,04/05/2021
Delivery Units,Adults and Health,Other Agencies - Third Party P,0090352982,Thames Homecare Services Ltd,352.52,04/05/2021
Delivery Units,Adults and Health,Other Agencies - Third Party P,0090352983,Thames Homecare Services Ltd,264.32,04/05/2021
Delivery Units,Adults and Health,Other Agencies - Third Party P,0090352984,Thames Homecare Services Ltd,293.65,04/05/2021
Delivery Units,Adults and Health,Other Agencies - Third Party P,0090352985,Thames Homecare Services Ltd,58.73,04/05/2021
Delivery Units,Adults and Health,Other Agencies - Third Party P,0090352987,Thames Homecare Services Ltd,16.78,04/05/2021
Delivery Units,Adults and Health,Other Agencies - Third Party P,0090352988,Thames Homecare Services Ltd,117.46,04/05/2021
Delivery Units,Adults and Health,Other Agencies - Third Party P,0090352989,Thames Homecare Services Ltd,587.44,04/05/2021
Delivery Units,Adults and Health,Other Agencies - Third Party P,0090352991,Thames Homecare Services Ltd,125.85,04/05/2021
Delivery Units,Adults and Health,Other Agencies - Third Party P,0090352992,Thames Homecare Services Ltd,704.90,04/05/2021
Delivery Units,Adults and Health,Other Agencies - Third Party P,0090352993,Thames Homecare Services Ltd,205.59,04/05/2021
Delivery Units,Adults and Health,Other Agencies - Third Party P,0090352994,Thames Homecare Services Ltd,121.68,04/05/2021
Delivery Units,Adults and Health,Other Agencies - Third Party P,0090352995,Thames Homecare Services Ltd,415.34,04/05/2021
Delivery Units,Adults and Health,Other Agencies - Third Party P,0090352996,Thames Homecare Services Ltd,104.88,04/05/2021
Delivery Units,Adults and Health,Other Agencies - Third Party P,0090352998,Thames Homecare Services Ltd,117.46,04/05/2021
Delivery Units,Adults and Health,Other Agencies - Third Party P,0090353000,Thames Homecare Services Ltd,264.32,04/05/2021
Delivery Units,Adults and Health,Other Agencies - Third Party P,0090353001,Thames Homecare Services Ltd,234.92,04/05/2021
Delivery Units,Adults and Health,Other Agencies - Third Party P,0090353002,Thames Homecare Services Ltd,75.51,04/05/2021
Delivery Units,Adults and Health,Other Agencies - Third Party P,0090353003,Thames Homecare Services Ltd,88.13,04/05/2021
Delivery Units,Adults and Health,Other Agencies - Third Party P,0090353004,Thames Homecare Services Ltd,58.73,04/05/2021
Delivery Units,Adults and Health,Other Agencies - Third Party P,0090353005,Thames Homecare Services Ltd,104.88,04/05/2021
Delivery Units,Adults and Health,Other Agencies - Third Party P,0090353007,Thames Homecare Services Ltd,176.26,04/05/2021
Delivery Units,Adults and Health,Other Agencies - Third Party P,0090353008,Thames Homecare Services Ltd,293.65,04/05/2021
Delivery Units,Adults and Health,Other Agencies - Third Party P,0090353009,Thames Homecare Services Ltd,234.92,04/05/2021
Delivery Units,Adults and Health,Other Agencies - Third Party P,0090353010,Thames Homecare Services Ltd,83.90,04/05/2021
Delivery Units,Adults and Health,Other Agencies - Third Party P,0090353012,Thames Homecare Services Ltd,50.34,04/05/2021
Delivery Units,Adults and Health,Other Agencies - Third Party P,0090353014,Thames Homecare Services Ltd,264.32,04/05/2021
Delivery Units,Adults and Health,Other Agencies - Third Party P,0090353016,Thames Homecare Services Ltd,117.46,04/05/2021
Delivery Units,Adults and Health,Other Agencies - Third Party P,0090353017,Thames Homecare Services Ltd,297.88,04/05/2021
Delivery Units,Adults and Health,Other Agencies - Third Party P,0090353018,Thames Homecare Services Ltd,352.52,04/05/2021
Delivery Units,Adults and Health,Other Agencies - Third Party P,0090353019,Thames Homecare Services Ltd,264.32,04/05/2021
Delivery Units,Adults and Health,Other Agencies - Third Party P,0090353020,Thames Homecare Services Ltd,88.13,04/05/2021
Delivery Units,Adults and Health,Other Agencies - Third Party P,0090353021,Thames Homecare Services Ltd,62.95,04/05/2021
Delivery Units,Adults and Health,Other Agencies - Third Party P,0090353022,Thames Homecare Services Ltd,117.46,04/05/2021
Delivery Units,Adults and Health,Other Agencies - Third Party P,0090353023,Thames Homecare Services Ltd,352.45,04/05/2021
Delivery Units,Adults and Health,Other Agencies - Third Party P,0090353024,Thames Homecare Services Ltd,146.86,04/05/2021
Delivery Units,Adults and Health,Other Agencies - Third Party P,0090353029,Thames Homecare Services Ltd,251.77,04/05/2021
Delivery Units,Adults and Health,Other Agencies - Third Party P,0090353031,Thames Homecare Services Ltd,293.72,04/05/2021
Delivery Units,Adults and Health,Other Agencies - Third Party P,0090353032,Thames Homecare Services Ltd,323.05,04/05/2021
Delivery Units,Adults and Health,Other Agencies - Third Party P,0090353036,Thames Homecare Services Ltd,239.15,04/05/2021
Delivery Units,Adults and Health,Other Agencies - Third Party P,0090353039,Thames Homecare Services Ltd,264.32,04/05/2021
Delivery Units,Adults and Health,Other Agencies - Third Party P,0090353040,Thames Homecare Services Ltd,264.32,04/05/2021
Delivery Units,Adults and Health,Other Agencies - Third Party P,0090353041,Thames Homecare Services Ltd,293.65,04/05/2021
Delivery Units,Adults and Health,Other Agencies - Third Party P,0090353042,Thames Homecare Services Ltd,88.13,04/05/2021
Delivery Units,Adults and Health,Other Agencies - Third Party P,0090353043,Thames Homecare Services Ltd,528.64,04/05/2021
Delivery Units,Adults and Health,Other Agencies - Third Party P,0090353047,Thames Homecare Services Ltd,293.72,04/05/2021
Delivery Units,Adults and Health,Other Agencies - Third Party P,0090353048,Thames Homecare Services Ltd,205.59,04/05/2021
Delivery Units,Adults and Health,Other Agencies - Third Party P,0090353049,Thames Homecare Services Ltd,146.86,04/05/2021
Delivery Units,Adults and Health,Other Agencies - Third Party P,0090353050,Thames Homecare Services Ltd,407.02,04/05/2021
Delivery Units,Adults and Health,Other Agencies - Third Party P,0090353051,Thames Homecare Services Ltd,88.13,04/05/2021
Delivery Units,Adults and Health,Other Agencies - Third Party P,0090353055,Thames Homecare Services Ltd,151.02,04/05/2021
Delivery Units,Adults and Health,Other Agencies - Third Party P,0090353056,Thames Homecare Services Ltd,310.50,04/05/2021
Delivery Units,Adults and Health,Other Agencies - Third Party P,0090353058,Thames Homecare Services Ltd,25.17,04/05/2021
Delivery Units,Adults and Health,Other Agencies - Third Party P,0090353063,Thames Homecare Services Ltd,159.41,04/05/2021
Delivery Units,Adults and Health,Other Agencies - Third Party P,0090353064,Thames Homecare Services Ltd,88.10,04/05/2021
Delivery Units,Adults and Health,Other Agencies - Third Party P,0090353065,Thames Homecare Services Ltd,822.36,04/05/2021
Delivery Units,Adults and Health,Other Agencies - Third Party P,0090353067,Thames Homecare Services Ltd,763.70,04/05/2021
Delivery Units,Adults and Health,Other Agencies - Third Party P,0090353068,Thames Homecare Services Ltd,176.26,04/05/2021
Delivery Units,Adults and Health,Other Agencies - Third Party P,0090353069,Thames Homecare Services Ltd,587.30,04/05/2021
Delivery Units,Adults and Health,Other Agencies - Third Party P,0090353071,Thames Homecare Services Ltd,239.11,04/05/2021
Delivery Units,Adults and Health,Other Agencies - Third Party P,0090353073,Bluebird Care (Barnet),265.13,04/05/2021
Delivery Units,Adults and Health,Other Agencies - Third Party P,0090353076,Bluebird Care (Barnet),265.13,04/05/2021
Delivery Units,Adults and Health,Other Agencies - Third Party P,0090353079,Bluebird Care (Barnet),439.36,04/05/2021
Delivery Units,Adults and Health,Other Agencies - Third Party P,0090353080,Bluebird Care (Barnet),113.63,04/05/2021
Delivery Units,Adults and Health,Other Agencies - Third Party P,0090353081,Bluebird Care (Barnet),303.00,04/05/2021
Delivery Units,Adults and Health,Other Agencies - Third Party P,0090353082,Bluebird Care (Barnet),"1,400.00",04/05/2021
Delivery Units,Adults and Health,Other Agencies - Third Party P,0090353083,Bluebird Care (Barnet),116.15,04/05/2021
Delivery Units,Adults and Health,Other Agencies - Third Party P,0090353085,Bluebird Care (Barnet),378.76,04/05/2021
Delivery Units,Adults and Health,Other Agencies - Third Party P,0090353087,Bluebird Care (Barnet),784.00,04/05/2021
Delivery Units,Adults and Health,Other Agencies - Third Party P,0090353088,Bluebird Care (Barnet),151.50,04/05/2021
Delivery Units,Adults and Health,Other Agencies - Third Party P,0090353089,Bluebird Care (Barnet),227.25,04/05/2021
Delivery Units,Adults and Health,Other Agencies - Third Party P,0090353090,Bluebird Care (Barnet),328.25,04/05/2021
Delivery Units,Adults and Health,Other Agencies - Third Party P,0090353091,Bluebird Care (Barnet),305.53,04/05/2021
Delivery Units,Adults and Health,Other Agencies - Third Party P,0090353092,Bluebird Care (Barnet),366.13,04/05/2021
Delivery Units,Adults and Health,Other Agencies - Third Party P,0090353093,Bluebird Care (Barnet),189.38,04/05/2021
Delivery Units,Adults and Health,Other Agencies - Third Party P,0090353094,Bluebird Care (Barnet),303.01,04/05/2021
Delivery Units,Adults and Health,Other Agencies - Third Party P,0090353095,Bluebird Care (Barnet),40.40,04/05/2021
Delivery Units,Adults and Health,Other Agencies - Third Party P,0090353096,Bluebird Care (Barnet),"1,066.80",04/05/2021
Delivery Units,Adults and Health,Other Agencies - Third Party P,0090353097,Bluebird Care (Barnet),60.60,04/05/2021
Delivery Units,Adults and Health,Other Agencies - Third Party P,0090353098,Bluebird Care (Barnet),378.76,04/05/2021
Delivery Units,Adults and Health,Other Agencies - Third Party P,0090353099,Bluebird Care (Barnet),37.88,04/05/2021
Delivery Units,Adults and Health,Other Agencies - Third Party P,0090353101,Bluebird Care (Barnet),265.13,04/05/2021
Delivery Units,Adults and Health,Other Agencies - Third Party P,0090353104,Bluebird Care (Barnet),265.13,04/05/2021
Delivery Units,Adults and Health,Other Agencies - Third Party P,0090353107,Bluebird Care (Barnet),454.51,04/05/2021
Delivery Units,Adults and Health,Other Agencies - Third Party P,0090353108,Bluebird Care (Barnet),113.63,04/05/2021
Delivery Units,Adults and Health,Other Agencies - Third Party P,0090353109,Bluebird Care (Barnet),303.00,04/05/2021
Delivery Units,Adults and Health,Other Agencies - Third Party P,0090353110,Bluebird Care (Barnet),"1,400.00",04/05/2021
Delivery Units,Adults and Health,Other Agencies - Third Party P,0090353111,Bluebird Care (Barnet),101.00,04/05/2021
Delivery Units,Adults and Health,Other Agencies - Third Party P,0090353113,Bluebird Care (Barnet),53.03,04/05/2021
Delivery Units,Adults and Health,Other Agencies - Third Party P,0090353115,Bluebird Care (Barnet),784.00,04/05/2021
Delivery Units,Adults and Health,Other Agencies - Third Party P,0090353116,Bluebird Care (Barnet),151.50,04/05/2021
Delivery Units,Adults and Health,Other Agencies - Third Party P,0090353117,Bluebird Care (Barnet),227.25,04/05/2021
Delivery Units,Adults and Health,Other Agencies - Third Party P,0090353118,Bluebird Care (Barnet),378.75,04/05/2021
Delivery Units,Adults and Health,Other Agencies - Third Party P,0090353119,Bluebird Care (Barnet),305.53,04/05/2021
Delivery Units,Adults and Health,Other Agencies - Third Party P,0090353120,Bluebird Care (Barnet),446.93,04/05/2021
Delivery Units,Adults and Health,Other Agencies - Third Party P,0090353121,Bluebird Care (Barnet),189.38,04/05/2021
Delivery Units,Adults and Health,Other Agencies - Third Party P,0090353122,Bluebird Care (Barnet),303.01,04/05/2021
Delivery Units,Adults and Health,Other Agencies - Third Party P,0090353123,Bluebird Care (Barnet),"1,066.80",04/05/2021
Delivery Units,Adults and Health,Other Agencies - Third Party P,0090353124,Bluebird Care (Barnet),60.60,04/05/2021
Delivery Units,Adults and Health,Other Agencies - Third Party P,0090353125,Bluebird Care (Barnet),378.76,04/05/2021
Delivery Units,Adults and Health,Other Agencies - Third Party P,0090353126,Bluebird Care (Barnet),83.33,04/05/2021
Delivery Units,Adults and Health,Other Agencies - Third Party P,0090353128,Bluebird Care (Barnet),247.45,04/05/2021
Delivery Units,Adults and Health,Other Agencies - Third Party P,0090353131,Bluebird Care (Barnet),247.45,04/05/2021
Delivery Units,Adults and Health,Other Agencies - Third Party P,0090353134,Bluebird Care (Barnet),424.20,04/05/2021
Delivery Units,Adults and Health,Other Agencies - Third Party P,0090353135,Bluebird Care (Barnet),106.05,04/05/2021
Delivery Units,Adults and Health,Other Agencies - Third Party P,0090353136,Bluebird Care (Barnet),282.80,04/05/2021
Delivery Units,Adults and Health,Other Agencies - Third Party P,0090353137,Bluebird Care (Barnet),"1,400.00",04/05/2021
Delivery Units,Adults and Health,Other Agencies - Third Party P,0090353138,Bluebird Care (Barnet),90.90,04/05/2021
Delivery Units,Adults and Health,Other Agencies - Third Party P,0090353140,Bluebird Care (Barnet),282.80,04/05/2021
Delivery Units,Adults and Health,Other Agencies - Third Party P,0090353142,Bluebird Care (Barnet),784.00,04/05/2021
Delivery Units,Adults and Health,Other Agencies - Third Party P,0090353143,Bluebird Care (Barnet),141.40,04/05/2021
Delivery Units,Adults and Health,Other Agencies - Third Party P,0090353144,Bluebird Care (Barnet),212.10,04/05/2021
Delivery Units,Adults and Health,Other Agencies - Third Party P,0090353145,Bluebird Care (Barnet),353.50,04/05/2021
Delivery Units,Adults and Health,Other Agencies - Third Party P,0090353146,Bluebird Care (Barnet),287.85,04/05/2021
Delivery Units,Adults and Health,Other Agencies - Third Party P,0090353147,Bluebird Care (Barnet),338.35,04/05/2021
Delivery Units,Adults and Health,Other Agencies - Third Party P,0090353148,Bluebird Care (Barnet),176.75,04/05/2021
Delivery Units,Adults and Health,Other Agencies - Third Party P,0090353149,Bluebird Care (Barnet),282.80,04/05/2021
Delivery Units,Adults and Health,Other Agencies - Third Party P,0090353150,Bluebird Care (Barnet),20.20,04/05/2021
Delivery Units,Adults and Health,Other Agencies - Third Party P,0090353151,Bluebird Care (Barnet),"1,066.80",04/05/2021
Delivery Units,Adults and Health,Other Agencies - Third Party P,0090353152,Bluebird Care (Barnet),75.75,04/05/2021
Delivery Units,Adults and Health,Other Agencies - Third Party P,0090353153,Bluebird Care (Barnet),353.50,04/05/2021
Delivery Units,Adults and Health,Other Agencies - Third Party P,0090353154,Bluebird Care (Barnet),75.75,04/05/2021
Delivery Units,Adults and Health,Other Agencies - Third Party P,0090353156,Bluebird Care (Barnet),212.10,04/05/2021
Delivery Units,Adults and Health,Other Agencies - Third Party P,0090353159,Bluebird Care (Barnet),247.45,04/05/2021
Delivery Units,Adults and Health,Other Agencies - Third Party P,0090353162,Bluebird Care (Barnet),363.60,04/05/2021
Delivery Units,Adults and Health,Other Agencies - Third Party P,0090353163,Bluebird Care (Barnet),106.05,04/05/2021
Delivery Units,Adults and Health,Other Agencies - Third Party P,0090353164,Bluebird Care (Barnet),282.80,04/05/2021
Delivery Units,Adults and Health,Other Agencies - Third Party P,0090353165,Bluebird Care (Barnet),"1,400.00",04/05/2021
Delivery Units,Adults and Health,Other Agencies - Third Party P,0090353167,Bluebird Care (Barnet),353.50,04/05/2021
Delivery Units,Adults and Health,Other Agencies - Third Party P,0090353169,Bluebird Care (Barnet),784.00,04/05/2021
Delivery Units,Adults and Health,Other Agencies - Third Party P,0090353170,Bluebird Care (Barnet),141.40,04/05/2021
Delivery Units,Adults and Health,Other Agencies - Third Party P,0090353171,Bluebird Care (Barnet),212.10,04/05/2021
Delivery Units,Adults and Health,Other Agencies - Third Party P,0090353172,Bluebird Care (Barnet),353.50,04/05/2021
Delivery Units,Adults and Health,Other Agencies - Third Party P,0090353173,Bluebird Care (Barnet),287.85,04/05/2021
Delivery Units,Adults and Health,Other Agencies - Third Party P,0090353174,Bluebird Care (Barnet),358.55,04/05/2021
Delivery Units,Adults and Health,Other Agencies - Third Party P,0090353175,Bluebird Care (Barnet),176.75,04/05/2021
Delivery Units,Adults and Health,Other Agencies - Third Party P,0090353176,Bluebird Care (Barnet),282.80,04/05/2021
Delivery Units,Adults and Health,Other Agencies - Third Party P,0090353177,Bluebird Care (Barnet),"1,066.80",04/05/2021
Delivery Units,Adults and Health,Other Agencies - Third Party P,0090353178,Bluebird Care (Barnet),75.75,04/05/2021
Delivery Units,Adults and Health,Other Agencies - Third Party P,0090353179,Bluebird Care (Barnet),338.35,04/05/2021
Delivery Units,Adults and Health,Other Agencies - Third Party P,0090353180,Bluebird Care (Barnet),75.75,04/05/2021
Delivery Units,Adults and Health,Other Agencies - Third Party P,0090353220,MI HOMECARE LIMITED,54.57,05/05/2021
Delivery Units,Adults and Health,Other Agencies - Third Party P,0090353221,MI HOMECARE LIMITED,54.57,05/05/2021
Delivery Units,Adults and Health,Other Agencies - Third Party P,0090353222,MI HOMECARE LIMITED,177.35,05/05/2021
Delivery Units,Adults and Health,Other Agencies - Third Party P,0090353223,MI HOMECARE LIMITED,177.35,05/05/2021
Delivery Units,Adults and Health,Other Agencies - Third Party P,0090353224,MI HOMECARE LIMITED,263.76,05/05/2021
Delivery Units,Adults and Health,Other Agencies - Third Party P,0090353225,MI HOMECARE LIMITED,281.94,05/05/2021
Delivery Units,Adults and Health,Other Agencies - Third Party P,0090353226,MI HOMECARE LIMITED,54.57,05/05/2021
Delivery Units,Adults and Health,Other Agencies - Third Party P,0090353227,MI HOMECARE LIMITED,54.57,05/05/2021
Delivery Units,Adults and Health,Other Agencies - Third Party P,0090353228,MI HOMECARE LIMITED,236.47,05/05/2021
Delivery Units,Adults and Health,Other Agencies - Third Party P,0090353229,MI HOMECARE LIMITED,241.02,05/05/2021
Delivery Units,Adults and Health,Other Agencies - Third Party P,0090353230,MI HOMECARE LIMITED,127.33,05/05/2021
Delivery Units,Adults and Health,Other Agencies - Third Party P,0090353231,MI HOMECARE LIMITED,127.33,05/05/2021
Delivery Units,Adults and Health,Other Agencies - Third Party P,0090353232,MI HOMECARE LIMITED,463.84,05/05/2021
Delivery Units,Adults and Health,Other Agencies - Third Party P,0090353233,MI HOMECARE LIMITED,463.84,05/05/2021
Delivery Units,Adults and Health,Other Agencies - Third Party P,0090353234,MI HOMECARE LIMITED,291.04,05/05/2021
Delivery Units,Adults and Health,Other Agencies - Third Party P,0090353235,MI HOMECARE LIMITED,222.83,05/05/2021
Delivery Units,Adults and Health,Other Agencies - Third Party P,0090353236,MI HOMECARE LIMITED,222.83,05/05/2021
Delivery Units,Adults and Health,Other Agencies - Third Party P,0090353237,MI HOMECARE LIMITED,272.85,05/05/2021
Delivery Units,Adults and Health,Other Agencies - Third Party P,0090353238,MI HOMECARE LIMITED,268.30,05/05/2021
Delivery Units,Adults and Health,Other Agencies - Third Party P,0090353239,MI HOMECARE LIMITED,68.21,05/05/2021
Delivery Units,Adults and Health,Other Agencies - Third Party P,0090353240,MI HOMECARE LIMITED,68.21,05/05/2021
Delivery Units,Adults and Health,Other Agencies - Third Party P,0090353241,MI HOMECARE LIMITED,191.00,05/05/2021
Delivery Units,Adults and Health,Other Agencies - Third Party P,0090353242,MI HOMECARE LIMITED,191.00,05/05/2021
Delivery Units,Adults and Health,Other Agencies - Third Party P,0090353247,MI HOMECARE LIMITED,172.80,05/05/2021
Delivery Units,Adults and Health,Other Agencies - Third Party P,0090353248,MI HOMECARE LIMITED,172.80,05/05/2021
Delivery Units,Adults and Health,Other Agencies - Third Party P,0090353251,MI HOMECARE LIMITED,281.94,05/05/2021
Delivery Units,Adults and Health,Other Agencies - Third Party P,0090353252,MI HOMECARE LIMITED,281.94,05/05/2021
Delivery Units,Adults and Health,Other Agencies - Third Party P,0090353253,MI HOMECARE LIMITED,40.93,05/05/2021
Delivery Units,Adults and Health,Other Agencies - Third Party P,0090353254,MI HOMECARE LIMITED,40.93,05/05/2021
Delivery Units,Adults and Health,Other Agencies - Third Party P,0090353255,MI HOMECARE LIMITED,236.47,05/05/2021
Delivery Units,Adults and Health,Other Agencies - Third Party P,0090353256,MI HOMECARE LIMITED,236.47,05/05/2021
Delivery Units,Adults and Health,Other Agencies - Third Party P,0090353257,MI HOMECARE LIMITED,81.86,05/05/2021
Delivery Units,Adults and Health,Other Agencies - Third Party P,0090353258,MI HOMECARE LIMITED,81.86,05/05/2021
Delivery Units,Adults and Health,Other Agencies - Third Party P,0090353263,MI HOMECARE LIMITED,313.78,05/05/2021
Delivery Units,Adults and Health,Other Agencies - Third Party P,0090353264,MI HOMECARE LIMITED,318.33,05/05/2021
Delivery Units,Adults and Health,Other Agencies - Third Party P,0090353267,MI HOMECARE LIMITED,109.14,05/05/2021
Delivery Units,Adults and Health,Other Agencies - Third Party P,0090353268,MI HOMECARE LIMITED,109.14,05/05/2021
Delivery Units,Adults and Health,Other Agencies - Third Party P,0090353269,MI HOMECARE LIMITED,27.29,05/05/2021
Delivery Units,Adults and Health,Other Agencies - Third Party P,0090353270,MI HOMECARE LIMITED,118.24,05/05/2021
Delivery Units,Adults and Health,Other Agencies - Third Party P,0090353271,MI HOMECARE LIMITED,159.16,05/05/2021
Delivery Units,Adults and Health,Other Agencies - Third Party P,0090353272,MI HOMECARE LIMITED,191.00,05/05/2021
Delivery Units,Adults and Health,Other Agencies - Third Party P,0090353273,MI HOMECARE LIMITED,982.26,05/05/2021
Delivery Units,Adults and Health,Other Agencies - Third Party P,0090353274,MI HOMECARE LIMITED,982.26,05/05/2021
Delivery Units,Adults and Health,Other Agencies - Third Party P,0090353275,MI HOMECARE LIMITED,36.38,05/05/2021
Delivery Units,Adults and Health,Other Agencies - Third Party P,0090353276,MI HOMECARE LIMITED,36.38,05/05/2021
Delivery Units,Adults and Health,Other Agencies - Third Party P,0090353277,MI HOMECARE LIMITED,245.57,05/05/2021
Delivery Units,Adults and Health,Other Agencies - Third Party P,0090353278,MI HOMECARE LIMITED,245.57,05/05/2021
Delivery Units,Adults and Health,Other Agencies - Third Party P,0090353281,MI HOMECARE LIMITED,277.40,05/05/2021
Delivery Units,Adults and Health,Other Agencies - Third Party P,0090353282,MI HOMECARE LIMITED,277.40,05/05/2021
Delivery Units,Adults and Health,Other Agencies - Third Party P,0090353283,MI HOMECARE LIMITED,127.33,05/05/2021
Delivery Units,Adults and Health,Other Agencies - Third Party P,0090353284,MI HOMECARE LIMITED,127.33,05/05/2021
Delivery Units,Adults and Health,Other Agencies - Third Party P,0090353285,MI HOMECARE LIMITED,127.33,05/05/2021
Delivery Units,Adults and Health,Other Agencies - Third Party P,0090353286,MI HOMECARE LIMITED,127.33,05/05/2021
Delivery Units,Adults and Health,Other Agencies - Third Party P,0090353289,MI HOMECARE LIMITED,159.16,05/05/2021
Delivery Units,Adults and Health,Other Agencies - Third Party P,0090353290,MI HOMECARE LIMITED,159.16,05/05/2021
Delivery Units,Adults and Health,Other Agencies - Third Party P,0090353291,MI HOMECARE LIMITED,127.33,05/05/2021
Delivery Units,Adults and Health,Other Agencies - Third Party P,0090353292,MI HOMECARE LIMITED,127.33,05/05/2021
Delivery Units,Adults and Health,Other Agencies - Third Party P,0090353297,MI HOMECARE LIMITED,191.00,05/05/2021
Delivery Units,Adults and Health,Other Agencies - Third Party P,0090353298,MI HOMECARE LIMITED,191.00,05/05/2021
Delivery Units,Adults and Health,Other Agencies - Third Party P,0090353299,MI HOMECARE LIMITED,159.16,05/05/2021
Delivery Units,Adults and Health,Other Agencies - Third Party P,0090353300,MI HOMECARE LIMITED,154.62,05/05/2021
Delivery Units,Adults and Health,Other Agencies - Third Party P,0090353301,MI HOMECARE LIMITED,90.95,05/05/2021
Delivery Units,Adults and Health,Other Agencies - Third Party P,0090353302,MI HOMECARE LIMITED,127.33,05/05/2021
Delivery Units,Adults and Health,Other Agencies - Third Party P,0090353305,MI HOMECARE LIMITED,259.21,05/05/2021
Delivery Units,Adults and Health,Other Agencies - Third Party P,0090353306,MI HOMECARE LIMITED,254.66,05/05/2021
Delivery Units,Adults and Health,Other Agencies - Third Party P,0090353307,MI HOMECARE LIMITED,281.94,05/05/2021
Delivery Units,Adults and Health,Other Agencies - Third Party P,0090353308,MI HOMECARE LIMITED,281.94,05/05/2021
Delivery Units,Adults and Health,Other Agencies - Third Party P,0090353309,MI HOMECARE LIMITED,81.84,05/05/2021
Delivery Units,Adults and Health,Other Agencies - Third Party P,0090353310,MI HOMECARE LIMITED,572.98,05/05/2021
Delivery Units,Adults and Health,Other Agencies - Third Party P,0090353311,MI HOMECARE LIMITED,568.44,05/05/2021
Delivery Units,Adults and Health,Other Agencies - Third Party P,0090353314,MI HOMECARE LIMITED,286.49,05/05/2021
Delivery Units,Adults and Health,Other Agencies - Third Party P,0090353315,MI HOMECARE LIMITED,286.49,05/05/2021
Delivery Units,Adults and Health,Other Agencies - Third Party P,0090353316,MI HOMECARE LIMITED,95.50,05/05/2021
Delivery Units,Adults and Health,Other Agencies - Third Party P,0090353317,MI HOMECARE LIMITED,95.50,05/05/2021
Delivery Units,Adults and Health,Other Agencies - Third Party P,0090353318,MI HOMECARE LIMITED,90.95,05/05/2021
Delivery Units,Adults and Health,Other Agencies - Third Party P,0090353319,MI HOMECARE LIMITED,241.02,05/05/2021
Delivery Units,Adults and Health,Other Agencies - Third Party P,0090353320,MI HOMECARE LIMITED,241.02,05/05/2021
Delivery Units,Adults and Health,Other Agencies - Third Party P,0090353321,MI HOMECARE LIMITED,68.21,05/05/2021
Delivery Units,Adults and Health,Other Agencies - Third Party P,0090353322,MI HOMECARE LIMITED,81.86,05/05/2021
Delivery Units,Adults and Health,Other Agencies - Third Party P,0090353323,MI HOMECARE LIMITED,127.33,05/05/2021
Delivery Units,Adults and Health,Other Agencies - Third Party P,0090353324,MI HOMECARE LIMITED,127.33,05/05/2021
Delivery Units,Adults and Health,Other Agencies - Third Party P,0090353326,MI HOMECARE LIMITED,659.39,05/05/2021
Delivery Units,Adults and Health,Other Agencies - Third Party P,0090353327,MI HOMECARE LIMITED,645.74,05/05/2021
Delivery Units,Adults and Health,Other Agencies - Third Party P,0090353328,MI HOMECARE LIMITED,736.70,05/05/2021
Delivery Units,Adults and Health,Other Agencies - Third Party P,0090353329,MI HOMECARE LIMITED,736.70,05/05/2021
Delivery Units,Adults and Health,Other Agencies - Third Party P,0090353330,MI HOMECARE LIMITED,254.66,05/05/2021
Delivery Units,Adults and Health,Other Agencies - Third Party P,0090353331,MI HOMECARE LIMITED,286.49,05/05/2021
Delivery Units,Adults and Health,Other Agencies - Third Party P,0090353332,MI HOMECARE LIMITED,59.12,05/05/2021
Delivery Units,Adults and Health,Other Agencies - Third Party P,0090353333,MI HOMECARE LIMITED,63.67,05/05/2021
Delivery Units,Adults and Health,Other Agencies - Third Party P,0090353336,MI HOMECARE LIMITED,327.42,05/05/2021
Delivery Units,Adults and Health,Other Agencies - Third Party P,0090353337,MI HOMECARE LIMITED,327.42,05/05/2021
Delivery Units,Adults and Health,Other Agencies - Third Party P,0090353338,MI HOMECARE LIMITED,81.86,05/05/2021
Delivery Units,Adults and Health,Other Agencies - Third Party P,0090353339,MI HOMECARE LIMITED,54.57,05/05/2021
Delivery Units,Adults and Health,Other Agencies - Third Party P,0090353340,MI HOMECARE LIMITED,222.83,05/05/2021
Delivery Units,Adults and Health,Other Agencies - Third Party P,0090353341,MI HOMECARE LIMITED,222.83,05/05/2021
Delivery Units,Adults and Health,Other Agencies - Third Party P,0090353342,MI HOMECARE LIMITED,95.50,05/05/2021
Delivery Units,Adults and Health,Other Agencies - Third Party P,0090353343,MI HOMECARE LIMITED,95.50,05/05/2021
Delivery Units,Adults and Health,Other Agencies - Third Party P,0090353344,MI HOMECARE LIMITED,254.66,05/05/2021
Delivery Units,Adults and Health,Other Agencies - Third Party P,0090353345,MI HOMECARE LIMITED,254.66,05/05/2021
Delivery Units,Adults and Health,Other Agencies - Third Party P,0090353346,MI HOMECARE LIMITED,63.67,05/05/2021
Delivery Units,Adults and Health,Other Agencies - Third Party P,0090353347,MI HOMECARE LIMITED,63.67,05/05/2021
Delivery Units,Adults and Health,Other Agencies - Third Party P,0090353348,MI HOMECARE LIMITED,250.11,05/05/2021
Delivery Units,Adults and Health,Other Agencies - Third Party P,0090353349,MI HOMECARE LIMITED,254.66,05/05/2021
Delivery Units,Adults and Health,Other Agencies - Third Party P,0090353350,MI HOMECARE LIMITED,286.49,05/05/2021
Delivery Units,Adults and Health,Other Agencies - Third Party P,0090353351,MI HOMECARE LIMITED,286.49,05/05/2021
Delivery Units,Adults and Health,Other Agencies - Third Party P,0090353352,MI HOMECARE LIMITED,181.90,05/05/2021
Delivery Units,Adults and Health,Other Agencies - Third Party P,0090353353,MI HOMECARE LIMITED,181.90,05/05/2021
Delivery Units,Adults and Health,Other Agencies - Third Party P,0090353354,MI HOMECARE LIMITED,27.29,05/05/2021
Delivery Units,Adults and Health,Other Agencies - Third Party P,0090353355,MI HOMECARE LIMITED,27.29,05/05/2021
Delivery Units,Adults and Health,Other Agencies - Third Party P,0090353360,MI HOMECARE LIMITED,377.44,05/05/2021
Delivery Units,Adults and Health,Other Agencies - Third Party P,0090353361,MI HOMECARE LIMITED,372.90,05/05/2021
Delivery Units,Adults and Health,Other Agencies - Third Party P,0090353362,MI HOMECARE LIMITED,309.23,05/05/2021
Delivery Units,Adults and Health,Other Agencies - Third Party P,0090353363,MI HOMECARE LIMITED,322.87,05/05/2021
Delivery Units,Adults and Health,Other Agencies - Third Party P,0090353364,MI HOMECARE LIMITED,90.95,05/05/2021
Delivery Units,Adults and Health,Other Agencies - Third Party P,0090353365,MI HOMECARE LIMITED,90.95,05/05/2021
Delivery Units,Adults and Health,Other Agencies - Third Party P,0090353366,MI HOMECARE LIMITED,159.16,05/05/2021
Delivery Units,Adults and Health,Other Agencies - Third Party P,0090353367,MI HOMECARE LIMITED,159.16,05/05/2021
Delivery Units,Adults and Health,Other Agencies - Third Party P,0090353368,MI HOMECARE LIMITED,63.67,05/05/2021
Delivery Units,Adults and Health,Other Agencies - Third Party P,0090353369,MI HOMECARE LIMITED,63.67,05/05/2021
Delivery Units,Adults and Health,Other Agencies - Third Party P,0090353372,MI HOMECARE LIMITED,286.49,05/05/2021
Delivery Units,Adults and Health,Other Agencies - Third Party P,0090353373,MI HOMECARE LIMITED,286.49,05/05/2021
Delivery Units,Adults and Health,Other Agencies - Third Party P,0090353374,MI HOMECARE LIMITED,322.87,05/05/2021
Delivery Units,Adults and Health,Other Agencies - Third Party P,0090353375,MI HOMECARE LIMITED,322.87,05/05/2021
Delivery Units,Adults and Health,Other Agencies - Third Party P,0090353376,MI HOMECARE LIMITED,127.33,05/05/2021
Delivery Units,Adults and Health,Other Agencies - Third Party P,0090353377,MI HOMECARE LIMITED,109.14,05/05/2021
Delivery Units,Adults and Health,Other Agencies - Third Party P,0090353382,MI HOMECARE LIMITED,336.52,05/05/2021
Delivery Units,Adults and Health,Other Agencies - Third Party P,0090353383,MI HOMECARE LIMITED,336.52,05/05/2021
Delivery Units,Adults and Health,Other Agencies - Third Party P,0090353384,MI HOMECARE LIMITED,163.71,05/05/2021
Delivery Units,Adults and Health,Other Agencies - Third Party P,0090353385,MI HOMECARE LIMITED,163.71,05/05/2021
Delivery Units,Adults and Health,Other Agencies - Third Party P,0090353388,MI HOMECARE LIMITED,222.83,05/05/2021
Delivery Units,Adults and Health,Other Agencies - Third Party P,0090353389,MI HOMECARE LIMITED,222.83,05/05/2021
Delivery Units,Adults and Health,Other Agencies - Third Party P,0090353390,MI HOMECARE LIMITED,259.21,05/05/2021
Delivery Units,Adults and Health,Other Agencies - Third Party P,0090353391,MI HOMECARE LIMITED,272.85,05/05/2021
Delivery Units,Adults and Health,Other Agencies - Third Party P,0090353394,MI HOMECARE LIMITED,318.33,05/05/2021
Delivery Units,Adults and Health,Other Agencies - Third Party P,0090353395,MI HOMECARE LIMITED,313.78,05/05/2021
Delivery Units,Adults and Health,Other Agencies - Third Party P,0090353396,MI HOMECARE LIMITED,90.95,05/05/2021
Delivery Units,Adults and Health,Other Agencies - Third Party P,0090353397,MI HOMECARE LIMITED,90.95,05/05/2021
Delivery Units,Adults and Health,Other Agencies - Third Party P,0090353398,MI HOMECARE LIMITED,222.83,05/05/2021
Delivery Units,Adults and Health,Other Agencies - Third Party P,0090353399,MI HOMECARE LIMITED,222.83,05/05/2021
Delivery Units,Adults and Health,Other Agencies - Third Party P,0090353400,MI HOMECARE LIMITED,81.86,05/05/2021
Delivery Units,Adults and Health,Other Agencies - Third Party P,0090353401,MI HOMECARE LIMITED,81.86,05/05/2021
Delivery Units,Adults and Health,Other Agencies - Third Party P,0090353406,MI HOMECARE LIMITED,159.16,05/05/2021
Delivery Units,Adults and Health,Other Agencies - Third Party P,0090353407,MI HOMECARE LIMITED,159.16,05/05/2021
Delivery Units,Adults and Health,Other Agencies - Third Party P,0090353408,MI HOMECARE LIMITED,604.82,05/05/2021
Delivery Units,Adults and Health,Other Agencies - Third Party P,0090353409,MI HOMECARE LIMITED,600.27,05/05/2021
Delivery Units,Adults and Health,Other Agencies - Third Party P,0090353410,MI HOMECARE LIMITED,304.68,05/05/2021
Delivery Units,Adults and Health,Other Agencies - Third Party P,0090353411,MI HOMECARE LIMITED,318.33,05/05/2021
Delivery Units,Adults and Health,Other Agencies - Third Party P,0090353414,MI HOMECARE LIMITED,127.33,05/05/2021
Delivery Units,Adults and Health,Other Agencies - Third Party P,0090353415,MI HOMECARE LIMITED,118.24,05/05/2021
Delivery Units,Adults and Health,Other Agencies - Third Party P,0090353416,MI HOMECARE LIMITED,222.83,05/05/2021
Delivery Units,Adults and Health,Other Agencies - Third Party P,0090353417,MI HOMECARE LIMITED,213.73,05/05/2021
Delivery Units,Adults and Health,Other Agencies - Third Party P,0090353418,MI HOMECARE LIMITED,159.16,05/05/2021
Delivery Units,Adults and Health,Other Agencies - Third Party P,0090353419,MI HOMECARE LIMITED,127.33,05/05/2021
Delivery Units,Adults and Health,Other Agencies - Third Party P,0090353420,MI HOMECARE LIMITED,254.66,05/05/2021
Delivery Units,Adults and Health,Other Agencies - Third Party P,0090353421,MI HOMECARE LIMITED,254.66,05/05/2021
Delivery Units,Adults and Health,Other Agencies - Third Party P,0090353422,MI HOMECARE LIMITED,286.49,05/05/2021
Delivery Units,Adults and Health,Other Agencies - Third Party P,0090353423,MI HOMECARE LIMITED,286.49,05/05/2021
Delivery Units,Adults and Health,Other Agencies - Third Party P,0090353424,MI HOMECARE LIMITED,691.22,05/05/2021
Delivery Units,Adults and Health,Other Agencies - Third Party P,0090353425,MI HOMECARE LIMITED,700.32,05/05/2021
Delivery Units,Adults and Health,Other Agencies - Third Party P,0090353428,MI HOMECARE LIMITED,318.33,05/05/2021
Delivery Units,Adults and Health,Other Agencies - Third Party P,0090353429,MI HOMECARE LIMITED,318.33,05/05/2021
Delivery Units,Adults and Health,Other Agencies - Third Party P,0090353430,MI HOMECARE LIMITED,445.66,05/05/2021
Delivery Units,Adults and Health,Other Agencies - Third Party P,0090353431,MI HOMECARE LIMITED,445.66,05/05/2021
Delivery Units,Adults and Health,Other Agencies - Third Party P,0090353432,MI HOMECARE LIMITED,127.33,05/05/2021
Delivery Units,Adults and Health,Other Agencies - Third Party P,0090353433,MI HOMECARE LIMITED,127.33,05/05/2021
Delivery Units,Adults and Health,Other Agencies - Third Party P,0090353434,MI HOMECARE LIMITED,286.49,05/05/2021
Delivery Units,Adults and Health,Other Agencies - Third Party P,0090353435,MI HOMECARE LIMITED,286.49,05/05/2021
Delivery Units,Adults and Health,Other Agencies - Third Party P,0090353440,MI HOMECARE LIMITED,191.00,05/05/2021
Delivery Units,Adults and Health,Other Agencies - Third Party P,0090353441,MI HOMECARE LIMITED,191.00,05/05/2021
Delivery Units,Adults and Health,Other Agencies - Third Party P,0090353446,MI HOMECARE LIMITED,127.33,05/05/2021
Delivery Units,Adults and Health,Other Agencies - Third Party P,0090353447,MI HOMECARE LIMITED,127.33,05/05/2021
Delivery Units,Adults and Health,Other Agencies - Third Party P,0090353448,MI HOMECARE LIMITED,95.50,05/05/2021
Delivery Units,Adults and Health,Other Agencies - Third Party P,0090353449,MI HOMECARE LIMITED,95.50,05/05/2021
Delivery Units,Adults and Health,Other Agencies - Third Party P,0090353450,MI HOMECARE LIMITED,222.83,05/05/2021
Delivery Units,Adults and Health,Other Agencies - Third Party P,0090353451,MI HOMECARE LIMITED,218.28,05/05/2021
Delivery Units,Adults and Health,Other Agencies - Third Party P,0090353452,MI HOMECARE LIMITED,254.66,05/05/2021
Delivery Units,Adults and Health,Other Agencies - Third Party P,0090353453,MI HOMECARE LIMITED,254.66,05/05/2021
Delivery Units,Adults and Health,Other Agencies - Third Party P,0090353454,MI HOMECARE LIMITED,127.33,05/05/2021
Delivery Units,Adults and Health,Other Agencies - Third Party P,0090353455,MI HOMECARE LIMITED,127.33,05/05/2021
Delivery Units,Adults and Health,Other Agencies - Third Party P,0090353456,MI HOMECARE LIMITED,218.28,05/05/2021
Delivery Units,Adults and Health,Other Agencies - Third Party P,0090353457,MI HOMECARE LIMITED,209.18,05/05/2021
Delivery Units,Adults and Health,Other Agencies - Third Party P,0090353458,MI HOMECARE LIMITED,291.04,05/05/2021
Delivery Units,Adults and Health,Other Agencies - Third Party P,0090353459,MI HOMECARE LIMITED,291.04,05/05/2021
Delivery Units,Adults and Health,Other Agencies - Third Party P,0090353462,MI HOMECARE LIMITED,40.93,05/05/2021
Delivery Units,Adults and Health,Other Agencies - Third Party P,0090353463,MI HOMECARE LIMITED,40.93,05/05/2021
Delivery Units,Adults and Health,Other Agencies - Third Party P,0090353464,MI HOMECARE LIMITED,227.38,05/05/2021
Delivery Units,Adults and Health,Other Agencies - Third Party P,0090353465,MI HOMECARE LIMITED,227.38,05/05/2021
Delivery Units,Adults and Health,Other Agencies - Third Party P,0090353466,MI HOMECARE LIMITED,72.76,05/05/2021
Delivery Units,Adults and Health,Other Agencies - Third Party P,0090353467,MI HOMECARE LIMITED,68.21,05/05/2021
Delivery Units,Adults and Health,Other Agencies - Third Party P,0090353470,MI HOMECARE LIMITED,222.83,05/05/2021
Delivery Units,Adults and Health,Other Agencies - Third Party P,0090353471,MI HOMECARE LIMITED,222.83,05/05/2021
Delivery Units,Adults and Health,Other Agencies - Third Party P,0090353476,MI HOMECARE LIMITED,318.33,05/05/2021
Delivery Units,Adults and Health,Other Agencies - Third Party P,0090353477,MI HOMECARE LIMITED,318.33,05/05/2021
Delivery Units,Adults and Health,Other Agencies - Third Party P,0090353480,MI HOMECARE LIMITED,68.21,05/05/2021
Delivery Units,Adults and Health,Other Agencies - Third Party P,0090353481,MI HOMECARE LIMITED,341.06,05/05/2021
Delivery Units,Adults and Health,Other Agencies - Third Party P,0090353482,MI HOMECARE LIMITED,322.87,05/05/2021
Delivery Units,Adults and Health,Other Agencies - Third Party P,0090353483,MI HOMECARE LIMITED,268.30,05/05/2021
Delivery Units,Adults and Health,Other Agencies - Third Party P,0090353484,MI HOMECARE LIMITED,267.76,05/05/2021
Delivery Units,Adults and Health,Other Agencies - Third Party P,0090353485,MI HOMECARE LIMITED,254.66,05/05/2021
Delivery Units,Adults and Health,Other Agencies - Third Party P,0090353486,MI HOMECARE LIMITED,254.66,05/05/2021
Delivery Units,Adults and Health,Other Agencies - Third Party P,0090353487,MI HOMECARE LIMITED,127.33,05/05/2021
Delivery Units,Adults and Health,Other Agencies - Third Party P,0090353488,MI HOMECARE LIMITED,127.33,05/05/2021
Delivery Units,Adults and Health,Other Agencies - Third Party P,0090353491,MI HOMECARE LIMITED,350.16,05/05/2021
Delivery Units,Adults and Health,Other Agencies - Third Party P,0090353492,MI HOMECARE LIMITED,345.61,05/05/2021
Delivery Units,Adults and Health,Other Agencies - Third Party P,0090353493,MI HOMECARE LIMITED,272.85,05/05/2021
Delivery Units,Adults and Health,Other Agencies - Third Party P,0090353494,MI HOMECARE LIMITED,272.85,05/05/2021
Delivery Units,Adults and Health,Other Agencies - Third Party P,0090353495,MI HOMECARE LIMITED,191.00,05/05/2021
Delivery Units,Adults and Health,Other Agencies - Third Party P,0090353496,MI HOMECARE LIMITED,200.09,05/05/2021
Delivery Units,Adults and Health,Other Agencies - Third Party P,0090353497,MI HOMECARE LIMITED,50.02,05/05/2021
Delivery Units,Adults and Health,Other Agencies - Third Party P,0090353498,MI HOMECARE LIMITED,50.02,05/05/2021
Delivery Units,Adults and Health,Other Agencies - Third Party P,0090353499,MI HOMECARE LIMITED,231.92,05/05/2021
Delivery Units,Adults and Health,Other Agencies - Third Party P,0090353500,MI HOMECARE LIMITED,245.57,05/05/2021
Delivery Units,Adults and Health,Other Agencies - Third Party P,0090353501,MI HOMECARE LIMITED,241.02,05/05/2021
Delivery Units,Adults and Health,Other Agencies - Third Party P,0090353502,MI HOMECARE LIMITED,241.02,05/05/2021
Delivery Units,Adults and Health,Other Agencies - Third Party P,0090353503,MI HOMECARE LIMITED,131.88,05/05/2021
Delivery Units,Adults and Health,Other Agencies - Third Party P,0090353504,MI HOMECARE LIMITED,286.49,05/05/2021
Delivery Units,Adults and Health,Other Agencies - Third Party P,0090353505,MI HOMECARE LIMITED,854.93,05/05/2021
Delivery Units,Adults and Health,Other Agencies - Third Party P,0090353506,MI HOMECARE LIMITED,45.48,05/05/2021
Delivery Units,Adults and Health,Other Agencies - Third Party P,0090353507,MI HOMECARE LIMITED,45.48,05/05/2021
Delivery Units,Adults and Health,Other Agencies - Third Party P,0090353508,MI HOMECARE LIMITED,663.94,05/05/2021
Delivery Units,Adults and Health,Other Agencies - Third Party P,0090353509,MI HOMECARE LIMITED,668.48,05/05/2021
Delivery Units,Adults and Health,Other Agencies - Third Party P,0090353514,MI HOMECARE LIMITED,609.36,05/05/2021
Delivery Units,Adults and Health,Other Agencies - Third Party P,0090353515,MI HOMECARE LIMITED,609.36,05/05/2021
Delivery Units,Adults and Health,Other Agencies - Third Party P,0090353516,MI HOMECARE LIMITED,204.64,05/05/2021
Delivery Units,Adults and Health,Other Agencies - Third Party P,0090353517,MI HOMECARE LIMITED,209.18,05/05/2021
Delivery Units,Adults and Health,Other Agencies - Third Party P,0090353518,MI HOMECARE LIMITED,95.50,05/05/2021
Delivery Units,Adults and Health,Other Agencies - Third Party P,0090353519,MI HOMECARE LIMITED,86.40,05/05/2021
Delivery Units,Adults and Health,Other Agencies - Third Party P,0090353523,MI HOMECARE LIMITED,63.67,05/05/2021
Delivery Units,Adults and Health,Other Agencies - Third Party P,0090353524,MI HOMECARE LIMITED,63.67,05/05/2021
Delivery Units,Adults and Health,Other Agencies - Third Party P,0090353525,MI HOMECARE LIMITED,95.50,05/05/2021
Delivery Units,Adults and Health,Other Agencies - Third Party P,0090353526,MI HOMECARE LIMITED,95.50,05/05/2021
Delivery Units,Adults and Health,Other Agencies - Third Party P,0090353527,MI HOMECARE LIMITED,95.50,05/05/2021
Delivery Units,Adults and Health,Other Agencies - Third Party P,0090353528,MI HOMECARE LIMITED,95.50,05/05/2021
Delivery Units,Adults and Health,Other Agencies - Third Party P,0090353529,MI HOMECARE LIMITED,250.11,05/05/2021
Delivery Units,Adults and Health,Other Agencies - Third Party P,0090353530,MI HOMECARE LIMITED,250.11,05/05/2021
Delivery Units,Adults and Health,Other Agencies - Third Party P,0090353531,MI HOMECARE LIMITED,163.71,05/05/2021
Delivery Units,Adults and Health,Other Agencies - Third Party P,0090353532,MI HOMECARE LIMITED,163.71,05/05/2021
Delivery Units,Adults and Health,Other Agencies - Third Party P,0090353533,MI HOMECARE LIMITED,382.00,05/05/2021
Delivery Units,Adults and Health,Other Agencies - Third Party P,0090353534,MI HOMECARE LIMITED,404.73,05/05/2021
Delivery Units,Adults and Health,Other Agencies - Third Party P,0090353535,MI HOMECARE LIMITED,159.16,05/05/2021
Delivery Units,Adults and Health,Other Agencies - Third Party P,0090353536,MI HOMECARE LIMITED,159.16,05/05/2021
Delivery Units,Adults and Health,Other Agencies - Third Party P,0090353537,MI HOMECARE LIMITED,159.16,05/05/2021
Delivery Units,Adults and Health,Other Agencies - Third Party P,0090353538,MI HOMECARE LIMITED,159.16,05/05/2021
Delivery Units,Adults and Health,Other Agencies - Third Party P,0090353539,MI HOMECARE LIMITED,372.90,05/05/2021
Delivery Units,Adults and Health,Other Agencies - Third Party P,0090353540,MI HOMECARE LIMITED,372.90,05/05/2021
Delivery Units,Adults and Health,Other Agencies - Third Party P,0090353541,MI HOMECARE LIMITED,222.83,05/05/2021
Delivery Units,Adults and Health,Other Agencies - Third Party P,0090353542,MI HOMECARE LIMITED,222.83,05/05/2021
Delivery Units,Adults and Health,Other Agencies - Third Party P,0090353543,MI HOMECARE LIMITED,127.33,05/05/2021
Delivery Units,Adults and Health,Other Agencies - Third Party P,0090353544,MI HOMECARE LIMITED,127.33,05/05/2021
Delivery Units,Adults and Health,Other Agencies - Third Party P,0090353549,MI HOMECARE LIMITED,127.33,05/05/2021
Delivery Units,Adults and Health,Other Agencies - Third Party P,0090353550,MI HOMECARE LIMITED,127.33,05/05/2021
Delivery Units,Adults and Health,Other Agencies - Third Party P,0090353551,MI HOMECARE LIMITED,886.76,05/05/2021
Delivery Units,Adults and Health,Other Agencies - Third Party P,0090353552,MI HOMECARE LIMITED,891.31,05/05/2021
Delivery Units,Adults and Health,Other Agencies - Third Party P,0090353553,MI HOMECARE LIMITED,231.92,05/05/2021
Delivery Units,Adults and Health,Other Agencies - Third Party P,0090353556,MI HOMECARE LIMITED,286.49,05/05/2021
Delivery Units,Adults and Health,Other Agencies - Third Party P,0090353557,MI HOMECARE LIMITED,281.94,05/05/2021
Delivery Units,Adults and Health,Other Agencies - Third Party P,0090353558,MI HOMECARE LIMITED,27.29,05/05/2021
Delivery Units,Adults and Health,Other Agencies - Third Party P,0090353559,MI HOMECARE LIMITED,27.29,05/05/2021
Delivery Units,Adults and Health,Other Agencies - Third Party P,0090353560,MI HOMECARE LIMITED,90.95,05/05/2021
Delivery Units,Adults and Health,Other Agencies - Third Party P,0090353561,MI HOMECARE LIMITED,90.95,05/05/2021
Delivery Units,Adults and Health,Other Agencies - Third Party P,0090353562,MI HOMECARE LIMITED,95.50,05/05/2021
Delivery Units,Adults and Health,Other Agencies - Third Party P,0090353563,MI HOMECARE LIMITED,95.50,05/05/2021
Delivery Units,Adults and Health,Other Agencies - Third Party P,0090353564,MI HOMECARE LIMITED,95.50,05/05/2021
Delivery Units,Adults and Health,Other Agencies - Third Party P,0090353565,MI HOMECARE LIMITED,95.50,05/05/2021
Delivery Units,Adults and Health,Other Agencies - Third Party P,0090353566,MI HOMECARE LIMITED,286.49,05/05/2021
Delivery Units,Adults and Health,Other Agencies - Third Party P,0090353567,MI HOMECARE LIMITED,286.49,05/05/2021
Delivery Units,Adults and Health,Other Agencies - Third Party P,0090353570,MI HOMECARE LIMITED,54.57,05/05/2021
Delivery Units,Adults and Health,Other Agencies - Third Party P,0090353571,MI HOMECARE LIMITED,54.57,05/05/2021
Delivery Units,Adults and Health,Other Agencies - Third Party P,0090353572,MI HOMECARE LIMITED,145.52,05/05/2021
Delivery Units,Adults and Health,Other Agencies - Third Party P,0090353573,MI HOMECARE LIMITED,145.52,05/05/2021
Delivery Units,Adults and Health,Other Agencies - Third Party P,0090353574,MI HOMECARE LIMITED,159.16,05/05/2021
Delivery Units,Adults and Health,Other Agencies - Third Party P,0090353575,MI HOMECARE LIMITED,159.16,05/05/2021
Delivery Units,Adults and Health,Other Agencies - Third Party P,0090353576,MI HOMECARE LIMITED,90.95,05/05/2021
Delivery Units,Adults and Health,Other Agencies - Third Party P,0090353577,MI HOMECARE LIMITED,90.95,05/05/2021
Delivery Units,Adults and Health,Other Agencies - Third Party P,0090353584,MI HOMECARE LIMITED,318.33,05/05/2021
Delivery Units,Adults and Health,Other Agencies - Third Party P,0090353585,MI HOMECARE LIMITED,318.33,05/05/2021
Delivery Units,Adults and Health,Other Agencies - Third Party P,0090353588,MI HOMECARE LIMITED,13.64,05/05/2021
Delivery Units,Adults and Health,Other Agencies - Third Party P,0090353589,MI HOMECARE LIMITED,309.23,05/05/2021
Delivery Units,Adults and Health,Other Agencies - Third Party P,0090353591,MI HOMECARE LIMITED,36.38,05/05/2021
Delivery Units,Adults and Health,Other Agencies - Third Party P,0090353592,MI HOMECARE LIMITED,159.16,05/05/2021
Delivery Units,Adults and Health,Other Agencies - Third Party P,0090353594,MI HOMECARE LIMITED,68.21,05/05/2021
Delivery Units,Adults and Health,Other Agencies - Third Party P,0090353610,MI HOMECARE LIMITED,113.69,05/05/2021
Delivery Units,Adults and Health,Other Agencies - Third Party P,0090353611,MI HOMECARE LIMITED,131.88,05/05/2021
Delivery Units,Adults and Health,Other Agencies - Third Party P,0090353614,MI HOMECARE LIMITED,63.67,05/05/2021
Delivery Units,Adults and Health,Other Agencies - Third Party P,0090353615,MI HOMECARE LIMITED,63.67,05/05/2021
Delivery Units,Adults and Health,Other Agencies - Third Party P,0090353616,MI HOMECARE LIMITED,90.95,05/05/2021
Delivery Units,Adults and Health,Other Agencies - Third Party P,0090353623,Mayfair Homecare Ltd,"1,458.54",06/05/2021
Delivery Units,Adults and Health,Other Agencies - Third Party P,0090353624,Mayfair Homecare Ltd,79.92,06/05/2021
Delivery Units,Adults and Health,Other Agencies - Third Party P,0090353625,Mayfair Homecare Ltd,719.28,06/05/2021
Delivery Units,Adults and Health,Other Agencies - Third Party P,0090353626,Mayfair Homecare Ltd,539.46,06/05/2021
Delivery Units,Adults and Health,Other Agencies - Third Party P,0090353627,Mayfair Homecare Ltd,824.18,06/05/2021
Delivery Units,Adults and Health,Other Agencies - Third Party P,0090353629,Mayfair Homecare Ltd,"3,076.92",06/05/2021
Delivery Units,Adults and Health,Other Agencies - Third Party P,0090353631,Mayfair Homecare Ltd,79.92,06/05/2021
Delivery Units,Adults and Health,Other Agencies - Third Party P,0090353632,Mayfair Homecare Ltd,"1,338.66",06/05/2021
Delivery Units,Adults and Health,Other Agencies - Third Party P,0090353634,Mayfair Homecare Ltd,449.55,06/05/2021
Delivery Units,Adults and Health,Other Agencies - Third Party P,0090353636,Mayfair Homecare Ltd,"1,278.72",06/05/2021
Delivery Units,Adults and Health,Other Agencies - Third Party P,0090353638,Mayfair Homecare Ltd,599.40,06/05/2021
Delivery Units,Adults and Health,Other Agencies - Third Party P,0090353639,Mayfair Homecare Ltd,"3,636.36",06/05/2021
Delivery Units,Adults and Health,Other Agencies - Third Party P,0090353640,Mayfair Homecare Ltd,259.74,06/05/2021
Delivery Units,Adults and Health,Other Agencies - Third Party P,0090353641,Mayfair Homecare Ltd,279.72,06/05/2021
Delivery Units,Adults and Health,Other Agencies - Third Party P,0090353642,Mayfair Homecare Ltd,"2,157.84",06/05/2021
Delivery Units,Adults and Health,Other Agencies - Third Party P,0090353644,Mayfair Homecare Ltd,"1,958.04",06/05/2021
Delivery Units,Adults and Health,Other Agencies - Third Party P,0090353645,Mayfair Homecare Ltd,229.77,06/05/2021
Delivery Units,Adults and Health,Other Agencies - Third Party P,0090353646,Mayfair Homecare Ltd,"1,518.48",06/05/2021
Delivery Units,Adults and Health,Other Agencies - Third Party P,0090353647,Mayfair Homecare Ltd,559.44,06/05/2021
Delivery Units,Adults and Health,Other Agencies - Third Party P,0090353651,Mayfair Homecare Ltd,559.44,06/05/2021
Delivery Units,Adults and Health,Other Agencies - Third Party P,0090353652,Mayfair Homecare Ltd,"1,478.52",06/05/2021
Delivery Units,Adults and Health,Other Agencies - Third Party P,0090353653,Mayfair Homecare Ltd,"3,276.72",06/05/2021
Delivery Units,Adults and Health,Other Agencies - Third Party P,0090353654,Mayfair Homecare Ltd,419.58,06/05/2021
Delivery Units,Adults and Health,Other Agencies - Third Party P,0090353655,Mayfair Homecare Ltd,499.50,06/05/2021
Delivery Units,Adults and Health,Other Agencies - Third Party P,0090353656,Mayfair Homecare Ltd,669.33,06/05/2021
Delivery Units,Adults and Health,Other Agencies - Third Party P,0090353658,Mayfair Homecare Ltd,299.70,06/05/2021
Delivery Units,Adults and Health,Other Agencies - Third Party P,0090353659,Mayfair Homecare Ltd,"1,338.66",06/05/2021
Delivery Units,Adults and Health,Other Agencies - Third Party P,0090353661,Mayfair Homecare Ltd,"1,078.92",06/05/2021
Delivery Units,Adults and Health,Other Agencies - Third Party P,0090353665,Mayfair Homecare Ltd,519.48,06/05/2021
Delivery Units,Adults and Health,Other Agencies - Third Party P,0090353666,Mayfair Homecare Ltd,359.64,06/05/2021
Delivery Units,Adults and Health,Other Agencies - Third Party P,0090353668,Mayfair Homecare Ltd,"1,118.88",06/05/2021
Delivery Units,Adults and Health,Other Agencies - Third Party P,0090353670,Mayfair Homecare Ltd,"1,073.93",06/05/2021
Delivery Units,Adults and Health,Other Agencies - Third Party P,0090353672,Mayfair Homecare Ltd,284.72,06/05/2021
Delivery Units,Adults and Health,Other Agencies - Third Party P,0090353673,Mayfair Homecare Ltd,239.76,06/05/2021
Delivery Units,Adults and Health,Other Agencies - Third Party P,0090353674,Mayfair Homecare Ltd,159.84,06/05/2021
Delivery Units,Adults and Health,Other Agencies - Third Party P,0090353675,Mayfair Homecare Ltd,779.22,06/05/2021
Delivery Units,Adults and Health,Other Agencies - Third Party P,0090353690,Bliss Care and Training Ltd,"1,019.97",06/05/2021
Delivery Units,Adults and Health,Other Agencies - Third Party P,0090353691,Bliss Care and Training Ltd,"1,335.82",06/05/2021
Delivery Units,Adults and Health,Other Agencies - Third Party P,0090353922,The Link Care Nursing Agency Ltd,"1,950.00",06/05/2021
Delivery Units,Adults and Health,Other Agencies - Third Party P,0090353925,The Link Care Nursing Agency Ltd,"1,750.00",06/05/2021
Delivery Units,Adults and Health,Other Agencies - Third Party P,0090353926,The Link Care Nursing Agency Ltd,"1,919.06",06/05/2021
Delivery Units,Adults and Health,Other Agencies - Third Party P,0090353927,The Link Care Nursing Agency Ltd,409.40,06/05/2021
Delivery Units,Adults and Health,Other Agencies - Third Party P,0090353929,The Link Care Nursing Agency Ltd,"1,356.14",06/05/2021
Delivery Units,Adults and Health,Other Agencies - Third Party P,0090353931,The Link Care Nursing Agency Ltd,"2,200.00",06/05/2021
Delivery Units,Adults and Health,Other Agencies - Third Party P,0090353932,The Link Care Nursing Agency Ltd,"2,100.00",06/05/2021
Delivery Units,Adults and Health,Other Agencies - Third Party P,0090353934,The Link Care Nursing Agency Ltd,"2,025.00",06/05/2021
Delivery Units,Adults and Health,Other Agencies - Third Party P,0090353935,The Link Care Nursing Agency Ltd,"1,500.00",06/05/2021
Delivery Units,Adults and Health,Other Agencies - Third Party P,0090353936,The Link Care Nursing Agency Ltd,"3,850.00",06/05/2021
Delivery Units,Adults and Health,Other Agencies - Third Party P,0090353940,The Link Care Nursing Agency Ltd,"3,150.00",06/05/2021
Delivery Units,Adults and Health,Other Agencies - Third Party P,0090353943,The Link Care Nursing Agency Ltd,"1,500.00",06/05/2021
Delivery Units,Adults and Health,Other Agencies - Third Party P,0090353944,The Link Care Nursing Agency Ltd,"1,862.77",06/05/2021
Delivery Units,Adults and Health,Other Agencies - Third Party P,0090353946,The Link Care Nursing Agency Ltd,110.00,06/05/2021
Delivery Units,Adults and Health,Other Agencies - Third Party P,0090353947,The Link Care Nursing Agency Ltd,204.70,06/05/2021
Delivery Units,Adults and Health,Other Agencies - Third Party P,0090353948,The Link Care Nursing Agency Ltd,"1,750.00",06/05/2021
Delivery Units,Adults and Health,Other Agencies - Third Party P,0090353949,The Link Care Nursing Agency Ltd,"2,275.00",06/05/2021
Delivery Units,Adults and Health,Other Agencies - Third Party P,0090353950,The Link Care Nursing Agency Ltd,921.15,06/05/2021
Delivery Units,Adults and Health,Other Agencies - Third Party P,0090353951,The Link Care Nursing Agency Ltd,"2,400.00",06/05/2021
Delivery Units,Adults and Health,Other Agencies - Third Party P,0090353952,The Link Care Nursing Agency Ltd,"1,050.00",06/05/2021
Delivery Units,Adults and Health,Other Agencies - Third Party P,0090353953,The Link Care Nursing Agency Ltd,895.56,06/05/2021
Delivery Units,Adults and Health,Other Agencies - Third Party P,0090353954,Arthur Morrison Ltd,283.50,06/05/2021
Delivery Units,Adults and Health,Other Agencies - Third Party P,0090353956,Arthur Morrison Ltd,"1,288.08",06/05/2021
Delivery Units,Adults and Health,Other Agencies - Third Party P,0090353957,Arthur Morrison Ltd,364.50,06/05/2021
Delivery Units,Adults and Health,Other Agencies - Third Party P,0090353958,Arthur Morrison Ltd,220.50,06/05/2021
Delivery Units,Adults and Health,Other Agencies - Third Party P,0090353959,Arthur Morrison Ltd,220.50,06/05/2021
Delivery Units,Adults and Health,Other Agencies - Third Party P,0090353960,Arthur Morrison Ltd,252.00,06/05/2021
Delivery Units,Adults and Health,Other Agencies - Third Party P,0090353961,Arthur Morrison Ltd,157.50,06/05/2021
Delivery Units,Adults and Health,Other Agencies - Third Party P,0090353962,Arthur Morrison Ltd,567.00,06/05/2021
Delivery Units,Adults and Health,Other Agencies - Third Party P,0090353965,Arthur Morrison Ltd,54.00,06/05/2021
Delivery Units,Adults and Health,Other Agencies - Third Party P,0090353967,Arthur Morrison Ltd,94.50,06/05/2021
Delivery Units,Adults and Health,Other Agencies - Third Party P,0090353968,Arthur Morrison Ltd,135.00,06/05/2021
Delivery Units,Adults and Health,Other Agencies - Third Party P,0090353969,Arthur Morrison Ltd,40.50,06/05/2021
Delivery Units,Adults and Health,Other Agencies - Third Party P,0090353970,Arthur Morrison Ltd,270.00,06/05/2021
Delivery Units,Adults and Health,Other Agencies - Third Party P,0090353971,Arthur Morrison Ltd,283.50,06/05/2021
Delivery Units,Adults and Health,Other Agencies - Third Party P,0090353973,Arthur Morrison Ltd,"1,288.08",06/05/2021
Delivery Units,Adults and Health,Other Agencies - Third Party P,0090353974,Arthur Morrison Ltd,364.50,06/05/2021
Delivery Units,Adults and Health,Other Agencies - Third Party P,0090353975,Arthur Morrison Ltd,220.50,06/05/2021
Delivery Units,Adults and Health,Other Agencies - Third Party P,0090353976,Arthur Morrison Ltd,220.50,06/05/2021
Delivery Units,Adults and Health,Other Agencies - Third Party P,0090353977,Arthur Morrison Ltd,252.00,06/05/2021
Delivery Units,Adults and Health,Other Agencies - Third Party P,0090353978,Arthur Morrison Ltd,126.00,06/05/2021
Delivery Units,Adults and Health,Other Agencies - Third Party P,0090353979,Arthur Morrison Ltd,567.00,06/05/2021
Delivery Units,Adults and Health,Other Agencies - Third Party P,0090353981,Arthur Morrison Ltd,54.00,06/05/2021
Delivery Units,Adults and Health,Other Agencies - Third Party P,0090353983,Arthur Morrison Ltd,94.50,06/05/2021
Delivery Units,Adults and Health,Other Agencies - Third Party P,0090353984,Arthur Morrison Ltd,135.00,06/05/2021
Delivery Units,Adults and Health,Other Agencies - Third Party P,0090353985,Arthur Morrison Ltd,40.50,06/05/2021
Delivery Units,Adults and Health,Other Agencies - Third Party P,0090353986,Arthur Morrison Ltd,378.00,06/05/2021
Delivery Units,Adults and Health,Other Agencies - Third Party P,0090353988,Arthur Morrison Ltd,283.50,06/05/2021
Delivery Units,Adults and Health,Other Agencies - Third Party P,0090353990,Arthur Morrison Ltd,"1,288.08",06/05/2021
Delivery Units,Adults and Health,Other Agencies - Third Party P,0090354005,Mercury Care Services,106.25,06/05/2021
Delivery Units,Adults and Health,Other Agencies - Third Party P,0090354006,Mercury Care Services,238.00,06/05/2021
Delivery Units,Adults and Health,Other Agencies - Third Party P,0090354007,Mercury Care Services,250.75,06/05/2021
Delivery Units,Adults and Health,Other Agencies - Third Party P,0090354008,Mercury Care Services,255.00,06/05/2021
Delivery Units,Adults and Health,Other Agencies - Third Party P,0090354009,Mercury Care Services,221.00,06/05/2021
Delivery Units,Adults and Health,Other Agencies - Third Party P,0090354011,Mercury Care Services,595.00,06/05/2021
Delivery Units,Adults and Health,Other Agencies - Third Party P,0090354012,Mercury Care Services,267.75,06/05/2021
Delivery Units,Adults and Health,Other Agencies - Third Party P,0090354013,Mercury Care Services,331.50,06/05/2021
Delivery Units,Adults and Health,Other Agencies - Third Party P,0090354014,Mercury Care Services,51.00,06/05/2021
Delivery Units,Adults and Health,Other Agencies - Third Party P,0090354015,Mercury Care Services,119.00,06/05/2021
Delivery Units,Adults and Health,Other Agencies - Third Party P,0090354016,Mercury Care Services,136.00,06/05/2021
Delivery Units,Adults and Health,Other Agencies - Third Party P,0090354017,Mercury Care Services,238.00,06/05/2021
Delivery Units,Adults and Health,Other Agencies - Third Party P,0090354018,Mercury Care Services,238.00,06/05/2021
Delivery Units,Adults and Health,Other Agencies - Third Party P,0090354021,Mercury Care Services,106.25,06/05/2021
Delivery Units,Adults and Health,Other Agencies - Third Party P,0090354022,Mercury Care Services,238.00,06/05/2021
Delivery Units,Adults and Health,Other Agencies - Third Party P,0090354023,Mercury Care Services,250.75,06/05/2021
Delivery Units,Adults and Health,Other Agencies - Third Party P,0090354024,Mercury Care Services,255.00,06/05/2021
Delivery Units,Adults and Health,Other Agencies - Third Party P,0090354025,Mercury Care Services,221.00,06/05/2021
Delivery Units,Adults and Health,Other Agencies - Third Party P,0090354026,Mercury Care Services,238.00,06/05/2021
Delivery Units,Adults and Health,Other Agencies - Third Party P,0090354027,Mercury Care Services,595.00,06/05/2021
Delivery Units,Adults and Health,Other Agencies - Third Party P,0090354028,Mercury Care Services,267.75,06/05/2021
Delivery Units,Adults and Health,Other Agencies - Third Party P,0090354029,Mercury Care Services,331.50,06/05/2021
Delivery Units,Adults and Health,Other Agencies - Third Party P,0090354030,Mercury Care Services,51.00,06/05/2021
Delivery Units,Adults and Health,Other Agencies - Third Party P,0090354031,Mercury Care Services,136.00,06/05/2021
Delivery Units,Adults and Health,Other Agencies - Third Party P,0090354032,Mercury Care Services,102.00,06/05/2021
Delivery Units,Adults and Health,Other Agencies - Third Party P,0090354033,Mercury Care Services,238.00,06/05/2021
Delivery Units,Adults and Health,Other Agencies - Third Party P,0090354037,Mercury Care Services,106.25,06/05/2021
Delivery Units,Adults and Health,Other Agencies - Third Party P,0090354038,Mercury Care Services,238.00,06/05/2021
Delivery Units,Adults and Health,Other Agencies - Third Party P,0090354039,Mercury Care Services,250.75,06/05/2021
Delivery Units,Adults and Health,Other Agencies - Third Party P,0090354040,Mercury Care Services,170.00,06/05/2021
Delivery Units,Adults and Health,Other Agencies - Third Party P,0090354041,Mercury Care Services,221.00,06/05/2021
Delivery Units,Adults and Health,Other Agencies - Third Party P,0090354042,Mercury Care Services,238.00,06/05/2021
Delivery Units,Adults and Health,Other Agencies - Third Party P,0090354043,Mercury Care Services,595.00,06/05/2021
Delivery Units,Adults and Health,Other Agencies - Third Party P,0090354044,Mercury Care Services,267.75,06/05/2021
Delivery Units,Adults and Health,Other Agencies - Third Party P,0090354045,Mercury Care Services,246.50,06/05/2021
Delivery Units,Adults and Health,Other Agencies - Third Party P,0090354046,Mercury Care Services,51.00,06/05/2021
Delivery Units,Adults and Health,Other Agencies - Third Party P,0090354047,Mercury Care Services,119.00,06/05/2021
Delivery Units,Adults and Health,Other Agencies - Third Party P,0090354048,Mercury Care Services,102.00,06/05/2021
Delivery Units,Adults and Health,Other Agencies - Third Party P,0090354049,Mercury Care Services,238.00,06/05/2021
Delivery Units,Adults and Health,Other Agencies - Third Party P,0090354052,Mercury Care Services,106.25,06/05/2021
Delivery Units,Adults and Health,Other Agencies - Third Party P,0090354053,Mercury Care Services,238.00,06/05/2021
Delivery Units,Adults and Health,Other Agencies - Third Party P,0090354054,Mercury Care Services,250.75,06/05/2021
Delivery Units,Adults and Health,Other Agencies - Third Party P,0090354055,Mercury Care Services,255.00,06/05/2021
Delivery Units,Adults and Health,Other Agencies - Third Party P,0090354056,Mercury Care Services,221.00,06/05/2021
Delivery Units,Adults and Health,Other Agencies - Third Party P,0090354057,Mercury Care Services,238.00,06/05/2021
Delivery Units,Adults and Health,Other Agencies - Third Party P,0090354058,Mercury Care Services,595.00,06/05/2021
Delivery Units,Adults and Health,Other Agencies - Third Party P,0090354059,Mercury Care Services,267.75,06/05/2021
Delivery Units,Adults and Health,Other Agencies - Third Party P,0090354060,Mercury Care Services,297.50,06/05/2021
Delivery Units,Adults and Health,Other Agencies - Third Party P,0090354061,Mercury Care Services,51.00,06/05/2021
Delivery Units,Adults and Health,Other Agencies - Third Party P,0090354062,Mercury Care Services,119.00,06/05/2021
Delivery Units,Adults and Health,Other Agencies - Third Party P,0090354063,Mercury Care Services,238.00,06/05/2021
Delivery Units,Adults and Health,Other Agencies - Third Party P,0090354066,Mercury Care Services,106.25,06/05/2021
Delivery Units,Adults and Health,Other Agencies - Third Party P,0090354067,Mercury Care Services,238.00,06/05/2021
Delivery Units,Adults and Health,Other Agencies - Third Party P,0090354068,Mercury Care Services,250.75,06/05/2021
Delivery Units,Adults and Health,Other Agencies - Third Party P,0090354069,Mercury Care Services,255.00,06/05/2021
Delivery Units,Adults and Health,Other Agencies - Third Party P,0090354070,Mercury Care Services,221.00,06/05/2021
Delivery Units,Adults and Health,Other Agencies - Third Party P,0090354071,Mercury Care Services,238.00,06/05/2021
Delivery Units,Adults and Health,Other Agencies - Third Party P,0090354072,Mercury Care Services,595.00,06/05/2021
Delivery Units,Adults and Health,Other Agencies - Third Party P,0090354073,Mercury Care Services,267.75,06/05/2021
Delivery Units,Adults and Health,Other Agencies - Third Party P,0090354074,Mercury Care Services,331.50,06/05/2021
Delivery Units,Adults and Health,Other Agencies - Third Party P,0090354075,Mercury Care Services,51.00,06/05/2021
Delivery Units,Adults and Health,Other Agencies - Third Party P,0090354076,Mercury Care Services,119.00,06/05/2021
Delivery Units,Adults and Health,Other Agencies - Third Party P,0090354077,Mercury Care Services,238.00,06/05/2021
Delivery Units,Adults and Health,Other Agencies - Third Party P,0090354079,Mercury Care Services,"3,600.10",06/05/2021
Delivery Units,Adults and Health,Other Agencies - Third Party P,0090353622,Bluebird Care (Barnet),90.90,06/05/2021
Delivery Units,Adults and Health,Other Agencies - Third Party P,0090353692,CAPITAL HOMECARE (UK) LIMITED,484.50,06/05/2021
Delivery Units,Adults and Health,Other Agencies - Third Party P,0090353694,CAPITAL HOMECARE (UK) LIMITED,"2,344.16",06/05/2021
Delivery Units,Adults and Health,Other Agencies - Third Party P,0090353695,CAPITAL HOMECARE (UK) LIMITED,351.68,06/05/2021
Delivery Units,Adults and Health,Other Agencies - Third Party P,0090353696,CAPITAL HOMECARE (UK) LIMITED,"2,660.00",06/05/2021
Delivery Units,Adults and Health,Other Agencies - Third Party P,0090353699,CAPITAL HOMECARE (UK) LIMITED,"1,862.00",06/05/2021
Delivery Units,Adults and Health,Other Agencies - Third Party P,0090353701,CAPITAL HOMECARE (UK) LIMITED,"3,048.08",06/05/2021
Delivery Units,Adults and Health,Other Agencies - Third Party P,0090353705,CAPITAL HOMECARE (UK) LIMITED,"1,172.08",06/05/2021
Delivery Units,Adults and Health,Other Agencies - Third Party P,0090353707,CAPITAL HOMECARE (UK) LIMITED,820.40,06/05/2021
Delivery Units,Adults and Health,Other Agencies - Third Party P,0090353708,CAPITAL HOMECARE (UK) LIMITED,950.00,06/05/2021
Delivery Units,Adults and Health,Other Agencies - Third Party P,0090353709,CAPITAL HOMECARE (UK) LIMITED,237.50,06/05/2021
Delivery Units,Adults and Health,Other Agencies - Third Party P,0090353710,CAPITAL HOMECARE (UK) LIMITED,485.74,06/05/2021
Delivery Units,Adults and Health,Other Agencies - Third Party P,0090353711,CAPITAL HOMECARE (UK) LIMITED,"2,345.00",06/05/2021
Delivery Units,Adults and Health,Other Agencies - Third Party P,0090353712,CAPITAL HOMECARE (UK) LIMITED,931.00,06/05/2021
Delivery Units,Adults and Health,Other Agencies - Third Party P,0090353716,CAPITAL HOMECARE (UK) LIMITED,"1,289.40",06/05/2021
Delivery Units,Adults and Health,Other Agencies - Third Party P,0090353718,CAPITAL HOMECARE (UK) LIMITED,920.88,06/05/2021
Delivery Units,Adults and Health,Other Agencies - Third Party P,0090353719,CAPITAL HOMECARE (UK) LIMITED,418.68,06/05/2021
Delivery Units,Adults and Health,Other Agencies - Third Party P,0090353721,CAPITAL HOMECARE (UK) LIMITED,"3,383.48",06/05/2021
Delivery Units,Adults and Health,Other Agencies - Third Party P,0090353722,CAPITAL HOMECARE (UK) LIMITED,"3,383.48",06/05/2021
Delivery Units,Adults and Health,Other Agencies - Third Party P,0090353723,CAPITAL HOMECARE (UK) LIMITED,"1,272.56",06/05/2021
Delivery Units,Adults and Health,Other Agencies - Third Party P,0090353724,CAPITAL HOMECARE (UK) LIMITED,798.00,06/05/2021
Delivery Units,Adults and Health,Other Agencies - Third Party P,0090353725,CAPITAL HOMECARE (UK) LIMITED,342.00,06/05/2021
Delivery Units,Adults and Health,Other Agencies - Third Party P,0090353726,CAPITAL HOMECARE (UK) LIMITED,"1,054.76",06/05/2021
Delivery Units,Adults and Health,Other Agencies - Third Party P,0090353727,CAPITAL HOMECARE (UK) LIMITED,"1,054.76",06/05/2021
Delivery Units,Adults and Health,Other Agencies - Third Party P,0090353728,CAPITAL HOMECARE (UK) LIMITED,"1,054.76",06/05/2021
Delivery Units,Adults and Health,Other Agencies - Third Party P,0090353730,CAPITAL HOMECARE (UK) LIMITED,"1,054.76",06/05/2021
Delivery Units,Adults and Health,Other Agencies - Third Party P,0090353731,CAPITAL HOMECARE (UK) LIMITED,"1,306.08",06/05/2021
Delivery Units,Adults and Health,Other Agencies - Third Party P,0090353732,CAPITAL HOMECARE (UK) LIMITED,"1,105.36",06/05/2021
Delivery Units,Adults and Health,Other Agencies - Third Party P,0090353733,CAPITAL HOMECARE (UK) LIMITED,351.68,06/05/2021
Delivery Units,Adults and Health,Other Agencies - Third Party P,0090353734,CAPITAL HOMECARE (UK) LIMITED,468.72,06/05/2021
Delivery Units,Adults and Health,Other Agencies - Third Party P,0090353735,CAPITAL HOMECARE (UK) LIMITED,"1,289.40",06/05/2021
Delivery Units,Adults and Health,Other Agencies - Third Party P,0090353738,CAPITAL HOMECARE (UK) LIMITED,666.00,06/05/2021
Delivery Units,Adults and Health,Other Agencies - Third Party P,0090353740,BARNET CARERS CENTRE,121.88,06/05/2021
Delivery Units,Adults and Health,Other Agencies - Third Party P,0090353763,Practical Care,397.64,06/05/2021
Delivery Units,Adults and Health,Other Agencies - Third Party P,0090353764,Practical Care,36.52,06/05/2021
Delivery Units,Adults and Health,Other Agencies - Third Party P,0090353765,Practical Care,681.66,06/05/2021
Delivery Units,Adults and Health,Other Agencies - Third Party P,0090353766,Practical Care,357.06,06/05/2021
Delivery Units,Adults and Health,Other Agencies - Third Party P,0090353769,Practical Care,255.62,06/05/2021
Delivery Units,Adults and Health,Other Agencies - Third Party P,0090353770,Practical Care,198.82,06/05/2021
Delivery Units,Adults and Health,Other Agencies - Third Party P,0090353771,Practical Care,600.51,06/05/2021
Delivery Units,Adults and Health,Other Agencies - Third Party P,0090353773,Practical Care,198.82,06/05/2021
Delivery Units,Adults and Health,Other Agencies - Third Party P,0090353775,Practical Care,77.09,06/05/2021
Delivery Units,Adults and Health,Other Agencies - Third Party P,0090353776,Practical Care,766.87,06/05/2021
Delivery Units,Adults and Health,Other Agencies - Third Party P,0090353777,Practical Care,405.75,06/05/2021
Delivery Units,Adults and Health,Other Agencies - Third Party P,0090353778,Practical Care,681.66,06/05/2021
Delivery Units,Adults and Health,Other Agencies - Third Party P,0090353779,Practical Care,819.62,06/05/2021
Delivery Units,Adults and Health,Other Agencies - Third Party P,0090353781,Practical Care,738.47,06/05/2021
Delivery Units,Adults and Health,Other Agencies - Third Party P,0090353782,Practical Care,284.03,06/05/2021
Delivery Units,Adults and Health,Other Agencies - Third Party P,0090353783,Practical Care,267.80,06/05/2021
Delivery Units,Adults and Health,Other Agencies - Third Party P,0090353784,Practical Care,568.05,06/05/2021
Delivery Units,Adults and Health,Other Agencies - Third Party P,0090353785,Practical Care,624.86,06/05/2021
Delivery Units,Adults and Health,Other Agencies - Third Party P,0090353786,Practical Care,697.89,06/05/2021
Delivery Units,Adults and Health,Other Agencies - Third Party P,0090353787,Practical Care,397.64,06/05/2021
Delivery Units,Adults and Health,Other Agencies - Third Party P,0090353788,Practical Care,373.29,06/05/2021
Delivery Units,Adults and Health,Other Agencies - Third Party P,0090353789,Practical Care,255.62,06/05/2021
Delivery Units,Adults and Health,Other Agencies - Third Party P,0090353790,Practical Care,137.96,06/05/2021
Delivery Units,Adults and Health,Other Agencies - Third Party P,0090353791,Practical Care,198.82,06/05/2021
Delivery Units,Adults and Health,Other Agencies - Third Party P,0090353794,Practical Care,198.82,06/05/2021
Delivery Units,Adults and Health,Other Agencies - Third Party P,0090353795,Practical Care,511.25,06/05/2021
Delivery Units,Adults and Health,Other Agencies - Third Party P,0090353796,Practical Care,170.42,06/05/2021
Delivery Units,Adults and Health,Other Agencies - Third Party P,0090353797,Practical Care,823.67,06/05/2021
Delivery Units,Adults and Health,Other Agencies - Third Party P,0090353798,Practical Care,738.47,06/05/2021
Delivery Units,Adults and Health,Other Agencies - Third Party P,0090353799,Practical Care,56.81,06/05/2021
Delivery Units,Adults and Health,Other Agencies - Third Party P,0090353800,Practical Care,255.62,06/05/2021
Delivery Units,Adults and Health,Other Agencies - Third Party P,0090353801,Practical Care,681.66,06/05/2021
Delivery Units,Adults and Health,Other Agencies - Third Party P,0090353802,Practical Care,223.16,06/05/2021
Delivery Units,Adults and Health,Other Agencies - Third Party P,0090353803,Practical Care,738.47,06/05/2021
Delivery Units,Adults and Health,Other Agencies - Third Party P,0090353804,Practical Care,198.82,06/05/2021
Delivery Units,Adults and Health,Other Agencies - Third Party P,0090353805,Practical Care,227.22,06/05/2021
Delivery Units,Adults and Health,Other Agencies - Third Party P,0090353806,Practical Care,624.86,06/05/2021
Delivery Units,Adults and Health,Other Agencies - Third Party P,0090354085,Arthur Morrison Ltd,364.50,10/05/2021
Delivery Units,Adults and Health,Other Agencies - Third Party P,0090354086,Arthur Morrison Ltd,220.50,10/05/2021
Delivery Units,Adults and Health,Other Agencies - Third Party P,0090354087,Arthur Morrison Ltd,220.50,10/05/2021
Delivery Units,Adults and Health,Other Agencies - Third Party P,0090354088,Arthur Morrison Ltd,252.00,10/05/2021
Delivery Units,Adults and Health,Other Agencies - Third Party P,0090354089,Arthur Morrison Ltd,126.00,10/05/2021
Delivery Units,Adults and Health,Other Agencies - Third Party P,0090354090,Arthur Morrison Ltd,567.00,10/05/2021
Delivery Units,Adults and Health,Other Agencies - Third Party P,0090354092,Arthur Morrison Ltd,18.00,10/05/2021
Delivery Units,Adults and Health,Other Agencies - Third Party P,0090354094,Arthur Morrison Ltd,94.50,10/05/2021
Delivery Units,Adults and Health,Other Agencies - Third Party P,0090354095,Arthur Morrison Ltd,135.00,10/05/2021
Delivery Units,Adults and Health,Other Agencies - Third Party P,0090354096,Arthur Morrison Ltd,40.50,10/05/2021
Delivery Units,Adults and Health,Other Agencies - Third Party P,0090354097,Arthur Morrison Ltd,378.00,10/05/2021
Delivery Units,Adults and Health,Other Agencies - Third Party P,0090354099,Arthur Morrison Ltd,283.50,10/05/2021
Delivery Units,Adults and Health,Other Agencies - Third Party P,0090354101,Arthur Morrison Ltd,"1,288.08",10/05/2021
Delivery Units,Adults and Health,Other Agencies - Third Party P,0090354102,Arthur Morrison Ltd,364.50,10/05/2021
Delivery Units,Adults and Health,Other Agencies - Third Party P,0090354103,Arthur Morrison Ltd,220.50,10/05/2021
Delivery Units,Adults and Health,Other Agencies - Third Party P,0090354104,Arthur Morrison Ltd,220.50,10/05/2021
Delivery Units,Adults and Health,Other Agencies - Third Party P,0090354105,Arthur Morrison Ltd,252.00,10/05/2021
Delivery Units,Adults and Health,Other Agencies - Third Party P,0090354106,Arthur Morrison Ltd,126.00,10/05/2021
Delivery Units,Adults and Health,Other Agencies - Third Party P,0090354107,Arthur Morrison Ltd,567.00,10/05/2021
Delivery Units,Adults and Health,Other Agencies - Third Party P,0090354109,Arthur Morrison Ltd,94.50,10/05/2021
Delivery Units,Adults and Health,Other Agencies - Third Party P,0090354111,Arthur Morrison Ltd,94.50,10/05/2021
Delivery Units,Adults and Health,Other Agencies - Third Party P,0090354112,Arthur Morrison Ltd,135.00,10/05/2021
Delivery Units,Adults and Health,Other Agencies - Third Party P,0090354113,Arthur Morrison Ltd,40.50,10/05/2021
Delivery Units,Adults and Health,Other Agencies - Third Party P,0090354114,Arthur Morrison Ltd,378.00,10/05/2021
Delivery Units,Adults and Health,Other Agencies - Third Party P,0090354116,DYNAMIC PEOPLE LTD,273.90,10/05/2021
Delivery Units,Adults and Health,Other Agencies - Third Party P,0090354117,DYNAMIC PEOPLE LTD,13.70,10/05/2021
Delivery Units,Adults and Health,Other Agencies - Third Party P,0090354118,DYNAMIC PEOPLE LTD,273.90,10/05/2021
Delivery Units,Adults and Health,Other Agencies - Third Party P,0090354119,DYNAMIC PEOPLE LTD,86.76,10/05/2021
Delivery Units,Adults and Health,Other Agencies - Third Party P,0090354120,DYNAMIC PEOPLE LTD,86.76,10/05/2021
Delivery Units,Adults and Health,Other Agencies - Third Party P,0090354121,DYNAMIC PEOPLE LTD,287.63,10/05/2021
Delivery Units,Adults and Health,Other Agencies - Third Party P,0090354122,DYNAMIC PEOPLE LTD,862.96,10/05/2021
Delivery Units,Adults and Health,Other Agencies - Third Party P,0090354123,DYNAMIC PEOPLE LTD,86.76,10/05/2021
Delivery Units,Adults and Health,Other Agencies - Third Party P,0090354124,DYNAMIC PEOPLE LTD,287.63,10/05/2021
Delivery Units,Adults and Health,Other Agencies - Third Party P,0090354125,DYNAMIC PEOPLE LTD,127.82,10/05/2021
Delivery Units,Adults and Health,Other Agencies - Third Party P,0090354126,DYNAMIC PEOPLE LTD,182.60,10/05/2021
Delivery Units,Adults and Health,Other Agencies - Third Party P,0090354127,DYNAMIC PEOPLE LTD,182.60,10/05/2021
Delivery Units,Adults and Health,Other Agencies - Third Party P,0090354128,DYNAMIC PEOPLE LTD,182.60,10/05/2021
Delivery Units,Adults and Health,Other Agencies - Third Party P,0090354131,DYNAMIC PEOPLE LTD,196.33,10/05/2021
Delivery Units,Adults and Health,Other Agencies - Third Party P,0090354133,DYNAMIC PEOPLE LTD,73.04,10/05/2021
Delivery Units,Adults and Health,Other Agencies - Third Party P,0090354134,DYNAMIC PEOPLE LTD,862.96,10/05/2021
Delivery Units,Adults and Health,Other Agencies - Third Party P,0090354135,DYNAMIC PEOPLE LTD,159.81,10/05/2021
Delivery Units,Adults and Health,Other Agencies - Third Party P,0090354136,DYNAMIC PEOPLE LTD,164.34,10/05/2021
Delivery Units,Adults and Health,Other Agencies - Third Party P,0090354137,DYNAMIC PEOPLE LTD,904.06,10/05/2021
Delivery Units,Adults and Health,Other Agencies - Third Party P,0090354138,DYNAMIC PEOPLE LTD,136.98,10/05/2021
Delivery Units,Adults and Health,Other Agencies - Third Party P,0090354139,DYNAMIC PEOPLE LTD,237.38,10/05/2021
Delivery Units,Adults and Health,Other Agencies - Third Party P,0090354140,DYNAMIC PEOPLE LTD,191.73,10/05/2021
Delivery Units,Adults and Health,Other Agencies - Third Party P,0090354141,DYNAMIC PEOPLE LTD,958.86,10/05/2021
Delivery Units,Adults and Health,Other Agencies - Third Party P,0090354142,DYNAMIC PEOPLE LTD,136.98,10/05/2021
Delivery Units,Adults and Health,Other Agencies - Third Party P,0090354143,City Homecare Ltd,595.00,10/05/2021
Delivery Units,Adults and Health,Other Agencies - Third Party P,0090354146,City Homecare Ltd,595.00,10/05/2021
Delivery Units,Adults and Health,Other Agencies - Third Party P,0090354149,City Homecare Ltd,595.00,10/05/2021
Delivery Units,Adults and Health,Other Agencies - Third Party P,0090354152,City Homecare Ltd,55.25,10/05/2021
Delivery Units,Adults and Health,Other Agencies - Third Party P,0090354153,City Homecare Ltd,289.00,10/05/2021
Delivery Units,Adults and Health,Other Agencies - Third Party P,0090354155,City Homecare Ltd,102.00,10/05/2021
Delivery Units,Adults and Health,Other Agencies - Third Party P,0090354157,City Homecare Ltd,119.00,10/05/2021
Delivery Units,Adults and Health,Other Agencies - Third Party P,0090354159,City Homecare Ltd,119.00,10/05/2021
Delivery Units,Adults and Health,Other Agencies - Third Party P,0090354162,City Homecare Ltd,561.00,10/05/2021
Delivery Units,Adults and Health,Other Agencies - Third Party P,0090354164,City Homecare Ltd,119.00,10/05/2021
Delivery Units,Adults and Health,Other Agencies - Third Party P,0090354167,City Homecare Ltd,654.50,10/05/2021
Delivery Units,Adults and Health,Other Agencies - Third Party P,0090354169,City Homecare Ltd,289.00,10/05/2021
Delivery Units,Adults and Health,Other Agencies - Third Party P,0090354170,City Homecare Ltd,289.00,10/05/2021
Delivery Units,Adults and Health,Other Agencies - Third Party P,0090354171,City Homecare Ltd,289.00,10/05/2021
Delivery Units,Adults and Health,Other Agencies - Third Party P,0090354172,Homecare Alliance Ltd,591.48,10/05/2021
Delivery Units,Adults and Health,Other Agencies - Third Party P,0090354173,Bluebird Care Camden & Hampstead,"2,753.00",10/05/2021
Delivery Units,Adults and Health,Other Agencies - Third Party P,0090354228,Primera Assisted Living Ltd,276.92,10/05/2021
Delivery Units,Adults and Health,Other Agencies - Third Party P,0090354229,Primera Assisted Living Ltd,70.32,10/05/2021
Delivery Units,Adults and Health,Other Agencies - Third Party P,0090354230,Primera Assisted Living Ltd,39.57,10/05/2021
Delivery Units,Adults and Health,Other Agencies - Third Party P,0090354231,Primera Assisted Living Ltd,369.25,10/05/2021
Delivery Units,Adults and Health,Other Agencies - Third Party P,0090354233,Primera Assisted Living Ltd,215.39,10/05/2021
Delivery Units,Adults and Health,Other Agencies - Third Party P,0090354234,Primera Assisted Living Ltd,43.95,10/05/2021
Delivery Units,Adults and Health,Other Agencies - Third Party P,0090354236,Primera Assisted Living Ltd,35.16,10/05/2021
Delivery Units,Adults and Health,Other Agencies - Third Party P,0090354237,Primera Assisted Living Ltd,215.39,10/05/2021
Delivery Units,Adults and Health,Other Agencies - Third Party P,0090354240,Primera Assisted Living Ltd,228.60,10/05/2021
Delivery Units,Adults and Health,Other Agencies - Third Party P,0090354241,Primera Assisted Living Ltd,92.33,10/05/2021
Delivery Units,Adults and Health,Other Agencies - Third Party P,0090354242,Primera Assisted Living Ltd,435.21,10/05/2021
Delivery Units,Adults and Health,Other Agencies - Third Party P,0090354245,Primera Assisted Living Ltd,52.74,10/05/2021
Delivery Units,Adults and Health,Other Agencies - Third Party P,0090354247,Primera Assisted Living Ltd,123.06,10/05/2021
Delivery Units,Adults and Health,Other Agencies - Third Party P,0090354250,Primera Assisted Living Ltd,87.90,10/05/2021
Delivery Units,Adults and Health,Other Agencies - Third Party P,0090354255,Primera Assisted Living Ltd,430.78,10/05/2021
Delivery Units,Adults and Health,Other Agencies - Third Party P,0090354257,Primera Assisted Living Ltd,17.58,10/05/2021
Delivery Units,Adults and Health,Other Agencies - Third Party P,0090354258,Primera Assisted Living Ltd,149.43,10/05/2021
Delivery Units,Adults and Health,Other Agencies - Third Party P,0090354260,Primera Assisted Living Ltd,276.92,10/05/2021
Delivery Units,Adults and Health,Other Agencies - Third Party P,0090354261,Primera Assisted Living Ltd,35.16,10/05/2021
Delivery Units,Adults and Health,Other Agencies - Third Party P,0090354262,Primera Assisted Living Ltd,26.38,10/05/2021
Delivery Units,Adults and Health,Other Agencies - Third Party P,0090354263,Primera Assisted Living Ltd,369.25,10/05/2021
Delivery Units,Adults and Health,Other Agencies - Third Party P,0090354264,Primera Assisted Living Ltd,215.39,10/05/2021
Delivery Units,Adults and Health,Other Agencies - Third Party P,0090354265,Primera Assisted Living Ltd,43.95,10/05/2021
Delivery Units,Adults and Health,Other Agencies - Third Party P,0090354266,Primera Assisted Living Ltd,35.16,10/05/2021
Delivery Units,Adults and Health,Other Agencies - Third Party P,0090354267,Primera Assisted Living Ltd,215.39,10/05/2021
Delivery Units,Adults and Health,Other Agencies - Third Party P,0090354269,Primera Assisted Living Ltd,92.33,10/05/2021
Delivery Units,Adults and Health,Other Agencies - Third Party P,0090354270,Primera Assisted Living Ltd,435.21,10/05/2021
Delivery Units,Adults and Health,Other Agencies - Third Party P,0090354273,Primera Assisted Living Ltd,52.74,10/05/2021
Delivery Units,Adults and Health,Other Agencies - Third Party P,0090354274,Primera Assisted Living Ltd,96.69,10/05/2021
Delivery Units,Adults and Health,Other Agencies - Third Party P,0090354276,Primera Assisted Living Ltd,123.06,10/05/2021
Delivery Units,Adults and Health,Other Agencies - Third Party P,0090354278,Primera Assisted Living Ltd,87.90,10/05/2021
Delivery Units,Adults and Health,Other Agencies - Third Party P,0090354283,Primera Assisted Living Ltd,334.08,10/05/2021
Delivery Units,Adults and Health,Other Agencies - Third Party P,0090354285,Primera Assisted Living Ltd,17.58,10/05/2021
Delivery Units,Adults and Health,Other Agencies - Third Party P,0090354286,Primera Assisted Living Ltd,149.43,10/05/2021
Delivery Units,Adults and Health,Other Agencies - Third Party P,0090354288,Primera Assisted Living Ltd,276.92,10/05/2021
Delivery Units,Adults and Health,Other Agencies - Third Party P,0090354289,Primera Assisted Living Ltd,70.32,10/05/2021
Delivery Units,Adults and Health,Other Agencies - Third Party P,0090354290,Primera Assisted Living Ltd,39.57,10/05/2021
Delivery Units,Adults and Health,Other Agencies - Third Party P,0090354291,Primera Assisted Living Ltd,369.25,10/05/2021
Delivery Units,Adults and Health,Other Agencies - Third Party P,0090354292,Primera Assisted Living Ltd,215.39,10/05/2021
Delivery Units,Adults and Health,Other Agencies - Third Party P,0090354293,Primera Assisted Living Ltd,43.95,10/05/2021
Delivery Units,Adults and Health,Other Agencies - Third Party P,0090354295,Primera Assisted Living Ltd,35.16,10/05/2021
Delivery Units,Adults and Health,Other Agencies - Third Party P,0090354296,Primera Assisted Living Ltd,215.39,10/05/2021
Delivery Units,Adults and Health,Other Agencies - Third Party P,0090354298,Primera Assisted Living Ltd,307.65,10/05/2021
Delivery Units,Adults and Health,Other Agencies - Third Party P,0090354300,Primera Assisted Living Ltd,92.33,10/05/2021
Delivery Units,Adults and Health,Other Agencies - Third Party P,0090354302,Primera Assisted Living Ltd,435.21,10/05/2021
Delivery Units,Adults and Health,Other Agencies - Third Party P,0090354305,Primera Assisted Living Ltd,52.74,10/05/2021
Delivery Units,Adults and Health,Other Agencies - Third Party P,0090354306,Primera Assisted Living Ltd,184.59,10/05/2021
Delivery Units,Adults and Health,Other Agencies - Third Party P,0090354308,Primera Assisted Living Ltd,123.06,10/05/2021
Delivery Units,Adults and Health,Other Agencies - Third Party P,0090354310,Primera Assisted Living Ltd,87.90,10/05/2021
Delivery Units,Adults and Health,Other Agencies - Third Party P,0090354314,Primera Assisted Living Ltd,17.58,10/05/2021
Delivery Units,Adults and Health,Other Agencies - Third Party P,0090354315,Primera Assisted Living Ltd,149.43,10/05/2021
Delivery Units,Adults and Health,Other Agencies - Third Party P,0090354318,Primera Assisted Living Ltd,276.92,10/05/2021
Delivery Units,Adults and Health,Other Agencies - Third Party P,0090354319,Primera Assisted Living Ltd,35.16,10/05/2021
Delivery Units,Adults and Health,Other Agencies - Third Party P,0090354320,Primera Assisted Living Ltd,39.57,10/05/2021
Delivery Units,Adults and Health,Other Agencies - Third Party P,0090354321,Primera Assisted Living Ltd,356.06,10/05/2021
Delivery Units,Adults and Health,Other Agencies - Third Party P,0090354322,Primera Assisted Living Ltd,215.39,10/05/2021
Delivery Units,Adults and Health,Other Agencies - Third Party P,0090354323,Primera Assisted Living Ltd,43.95,10/05/2021
Delivery Units,Adults and Health,Other Agencies - Third Party P,0090354325,Primera Assisted Living Ltd,35.16,10/05/2021
Delivery Units,Adults and Health,Other Agencies - Third Party P,0090354326,Primera Assisted Living Ltd,215.39,10/05/2021
Delivery Units,Adults and Health,Other Agencies - Third Party P,0090354327,Primera Assisted Living Ltd,307.65,10/05/2021
Delivery Units,Adults and Health,Other Agencies - Third Party P,0090354331,Primera Assisted Living Ltd,92.33,10/05/2021
Delivery Units,Adults and Health,Other Agencies - Third Party P,0090354334,Primera Assisted Living Ltd,65.94,10/05/2021
Delivery Units,Adults and Health,Other Agencies - Third Party P,0090354337,Primera Assisted Living Ltd,52.74,10/05/2021
Delivery Units,Adults and Health,Other Agencies - Third Party P,0090354338,Primera Assisted Living Ltd,184.59,10/05/2021
Delivery Units,Adults and Health,Other Agencies - Third Party P,0090354340,Primera Assisted Living Ltd,123.06,10/05/2021
Delivery Units,Adults and Health,Other Agencies - Third Party P,0090354342,Primera Assisted Living Ltd,140.66,10/05/2021
Delivery Units,Adults and Health,Other Agencies - Third Party P,0090354345,Primera Assisted Living Ltd,17.58,10/05/2021
Delivery Units,Adults and Health,Other Agencies - Third Party P,0090354346,Primera Assisted Living Ltd,149.43,10/05/2021
Delivery Units,Adults and Health,Other Agencies - Third Party P,0090354372,DYNAMIC PEOPLE LTD,68.48,10/05/2021
Delivery Units,Adults and Health,Other Agencies - Third Party P,0090354373,DYNAMIC PEOPLE LTD,68.48,10/05/2021
Delivery Units,Adults and Health,Other Agencies - Third Party P,0090354374,DYNAMIC PEOPLE LTD,146.08,10/05/2021
Delivery Units,Adults and Health,Other Agencies - Third Party P,0090354375,DYNAMIC PEOPLE LTD,146.08,10/05/2021
Delivery Units,Adults and Health,Other Agencies - Third Party P,0090354376,DYNAMIC PEOPLE LTD,319.55,10/05/2021
Delivery Units,Adults and Health,Other Agencies - Third Party P,0090354377,DYNAMIC PEOPLE LTD,319.55,10/05/2021
Delivery Units,Adults and Health,Other Agencies - Third Party P,0090354382,DYNAMIC PEOPLE LTD,68.48,10/05/2021
Delivery Units,Adults and Health,Other Agencies - Third Party P,0090354383,DYNAMIC PEOPLE LTD,68.48,10/05/2021
Delivery Units,Adults and Health,Other Agencies - Third Party P,0090354384,DYNAMIC PEOPLE LTD,287.60,10/05/2021
Delivery Units,Adults and Health,Other Agencies - Third Party P,0090354385,DYNAMIC PEOPLE LTD,287.60,10/05/2021
Delivery Units,Adults and Health,Other Agencies - Third Party P,0090354386,DYNAMIC PEOPLE LTD,214.56,10/05/2021
Delivery Units,Adults and Health,Other Agencies - Third Party P,0090354387,DYNAMIC PEOPLE LTD,214.56,10/05/2021
Delivery Units,Adults and Health,Other Agencies - Third Party P,0090354391,DYNAMIC PEOPLE LTD,59.35,10/05/2021
Delivery Units,Adults and Health,Other Agencies - Third Party P,0090354392,DYNAMIC PEOPLE LTD,59.35,10/05/2021
Delivery Units,Adults and Health,Other Agencies - Third Party P,0090354394,DYNAMIC PEOPLE LTD,159.78,10/05/2021
Delivery Units,Adults and Health,Other Agencies - Third Party P,0090354395,DYNAMIC PEOPLE LTD,159.78,10/05/2021
Delivery Units,Adults and Health,Other Agencies - Third Party P,0090354398,DYNAMIC PEOPLE LTD,127.82,10/05/2021
Delivery Units,Adults and Health,Other Agencies - Third Party P,0090354399,DYNAMIC PEOPLE LTD,91.30,10/05/2021
Delivery Units,Adults and Health,Other Agencies - Third Party P,0090354400,DYNAMIC PEOPLE LTD,127.82,10/05/2021
Delivery Units,Adults and Health,Other Agencies - Third Party P,0090354401,DYNAMIC PEOPLE LTD,118.69,10/05/2021
Delivery Units,Adults and Health,Other Agencies - Third Party P,0090354402,DYNAMIC PEOPLE LTD,68.48,10/05/2021
Delivery Units,Adults and Health,Other Agencies - Third Party P,0090354403,DYNAMIC PEOPLE LTD,68.48,10/05/2021
Delivery Units,Adults and Health,Other Agencies - Third Party P,0090354404,DYNAMIC PEOPLE LTD,109.56,10/05/2021
Delivery Units,Adults and Health,Other Agencies - Third Party P,0090354405,DYNAMIC PEOPLE LTD,109.56,10/05/2021
Delivery Units,Adults and Health,Other Agencies - Third Party P,0090354406,DYNAMIC PEOPLE LTD,511.28,10/05/2021
Delivery Units,Adults and Health,Other Agencies - Third Party P,0090354407,DYNAMIC PEOPLE LTD,511.28,10/05/2021
Delivery Units,Adults and Health,Other Agencies - Third Party P,0090354410,DYNAMIC PEOPLE LTD,383.46,10/05/2021
Delivery Units,Adults and Health,Other Agencies - Third Party P,0090354411,DYNAMIC PEOPLE LTD,383.46,10/05/2021
Delivery Units,Adults and Health,Other Agencies - Third Party P,0090354413,DYNAMIC PEOPLE LTD,255.64,10/05/2021
Delivery Units,Adults and Health,Other Agencies - Third Party P,0090354414,DYNAMIC PEOPLE LTD,255.64,10/05/2021
Delivery Units,Adults and Health,Other Agencies - Third Party P,0090354417,DYNAMIC PEOPLE LTD,351.51,10/05/2021
Delivery Units,Adults and Health,Other Agencies - Third Party P,0090354418,DYNAMIC PEOPLE LTD,351.51,10/05/2021
Delivery Units,Adults and Health,Other Agencies - Third Party P,0090354419,DYNAMIC PEOPLE LTD,223.69,10/05/2021
Delivery Units,Adults and Health,Other Agencies - Third Party P,0090354420,DYNAMIC PEOPLE LTD,223.69,10/05/2021
Delivery Units,Adults and Health,Other Agencies - Third Party P,0090354421,DYNAMIC PEOPLE LTD,63.91,10/05/2021
Delivery Units,Adults and Health,Other Agencies - Third Party P,0090354422,DYNAMIC PEOPLE LTD,63.91,10/05/2021
Delivery Units,Adults and Health,Other Agencies - Third Party P,0090354431,DYNAMIC PEOPLE LTD,41.08,10/05/2021
Delivery Units,Adults and Health,Other Agencies - Third Party P,0090354432,DYNAMIC PEOPLE LTD,41.08,10/05/2021
Delivery Units,Adults and Health,Other Agencies - Third Party P,0090354435,DYNAMIC PEOPLE LTD,146.08,10/05/2021
Delivery Units,Adults and Health,Other Agencies - Third Party P,0090354440,DYNAMIC PEOPLE LTD,127.82,10/05/2021
Delivery Units,Adults and Health,Other Agencies - Third Party P,0090354441,DYNAMIC PEOPLE LTD,127.82,10/05/2021
Delivery Units,Adults and Health,Other Agencies - Third Party P,0090354442,DYNAMIC PEOPLE LTD,95.86,10/05/2021
Delivery Units,Adults and Health,Other Agencies - Third Party P,0090354443,DYNAMIC PEOPLE LTD,95.86,10/05/2021
Delivery Units,Adults and Health,Other Agencies - Third Party P,0090354446,DYNAMIC PEOPLE LTD,351.51,10/05/2021
Delivery Units,Adults and Health,Other Agencies - Third Party P,0090354447,DYNAMIC PEOPLE LTD,351.51,10/05/2021
Delivery Units,Adults and Health,Other Agencies - Third Party P,0090354448,DYNAMIC PEOPLE LTD,219.12,10/05/2021
Delivery Units,Adults and Health,Other Agencies - Third Party P,0090354449,DYNAMIC PEOPLE LTD,219.12,10/05/2021
Delivery Units,Adults and Health,Other Agencies - Third Party P,0090354450,DYNAMIC PEOPLE LTD,159.78,10/05/2021
Delivery Units,Adults and Health,Other Agencies - Third Party P,0090354451,DYNAMIC PEOPLE LTD,159.78,10/05/2021
Delivery Units,Adults and Health,Other Agencies - Third Party P,0090354452,DYNAMIC PEOPLE LTD,191.73,10/05/2021
Delivery Units,Adults and Health,Other Agencies - Third Party P,0090354453,DYNAMIC PEOPLE LTD,191.73,10/05/2021
Delivery Units,Adults and Health,Other Agencies - Third Party P,0090354456,DYNAMIC PEOPLE LTD,671.06,10/05/2021
Delivery Units,Adults and Health,Other Agencies - Third Party P,0090354457,DYNAMIC PEOPLE LTD,671.06,10/05/2021
Delivery Units,Adults and Health,Other Agencies - Third Party P,0090354458,DYNAMIC PEOPLE LTD,319.55,10/05/2021
Delivery Units,Adults and Health,Other Agencies - Third Party P,0090354459,DYNAMIC PEOPLE LTD,319.55,10/05/2021
Delivery Units,Adults and Health,Other Agencies - Third Party P,0090354460,DYNAMIC PEOPLE LTD,214.56,10/05/2021
Delivery Units,Adults and Health,Other Agencies - Third Party P,0090354461,DYNAMIC PEOPLE LTD,214.56,10/05/2021
Delivery Units,Adults and Health,Other Agencies - Third Party P,0090354462,DYNAMIC PEOPLE LTD,223.69,10/05/2021
Delivery Units,Adults and Health,Other Agencies - Third Party P,0090354463,DYNAMIC PEOPLE LTD,223.69,10/05/2021
Delivery Units,Adults and Health,Other Agencies - Third Party P,0090354464,DYNAMIC PEOPLE LTD,141.52,10/05/2021
Delivery Units,Adults and Health,Other Agencies - Third Party P,0090354465,DYNAMIC PEOPLE LTD,141.52,10/05/2021
Delivery Units,Adults and Health,Other Agencies - Third Party P,0090354466,DYNAMIC PEOPLE LTD,73.04,10/05/2021
Delivery Units,Adults and Health,Other Agencies - Third Party P,0090354467,DYNAMIC PEOPLE LTD,73.04,10/05/2021
Delivery Units,Adults and Health,Other Agencies - Third Party P,0090354468,DYNAMIC PEOPLE LTD,209.99,10/05/2021
Delivery Units,Adults and Health,Other Agencies - Third Party P,0090354469,DYNAMIC PEOPLE LTD,223.69,10/05/2021
Delivery Units,Adults and Health,Other Agencies - Third Party P,0090354470,DYNAMIC PEOPLE LTD,369.77,10/05/2021
Delivery Units,Adults and Health,Other Agencies - Third Party P,0090354471,DYNAMIC PEOPLE LTD,369.77,10/05/2021
Delivery Units,Adults and Health,Other Agencies - Third Party P,0090354474,DYNAMIC PEOPLE LTD,68.48,10/05/2021
Delivery Units,Adults and Health,Other Agencies - Third Party P,0090354475,DYNAMIC PEOPLE LTD,68.48,10/05/2021
Delivery Units,Adults and Health,Other Agencies - Third Party P,0090354478,DYNAMIC PEOPLE LTD,100.43,10/05/2021
Delivery Units,Adults and Health,Other Agencies - Third Party P,0090354479,DYNAMIC PEOPLE LTD,100.43,10/05/2021
Delivery Units,Adults and Health,Other Agencies - Third Party P,0090354482,DYNAMIC PEOPLE LTD,223.69,10/05/2021
Delivery Units,Adults and Health,Other Agencies - Third Party P,0090354483,DYNAMIC PEOPLE LTD,223.69,10/05/2021
Delivery Units,Adults and Health,Other Agencies - Third Party P,0090354484,DYNAMIC PEOPLE LTD,319.55,10/05/2021
Delivery Units,Adults and Health,Other Agencies - Third Party P,0090354485,DYNAMIC PEOPLE LTD,319.55,10/05/2021
Delivery Units,Adults and Health,Other Agencies - Third Party P,0090354486,DYNAMIC PEOPLE LTD,95.86,10/05/2021
Delivery Units,Adults and Health,Other Agencies - Third Party P,0090354487,DYNAMIC PEOPLE LTD,95.86,10/05/2021
Delivery Units,Adults and Health,Other Agencies - Third Party P,0090354488,DYNAMIC PEOPLE LTD,141.52,10/05/2021
Delivery Units,Adults and Health,Other Agencies - Third Party P,0090354489,DYNAMIC PEOPLE LTD,141.52,10/05/2021
Delivery Units,Adults and Health,Other Agencies - Third Party P,0090354492,DYNAMIC PEOPLE LTD,447.37,10/05/2021
Delivery Units,Adults and Health,Other Agencies - Third Party P,0090354493,DYNAMIC PEOPLE LTD,424.54,10/05/2021
Delivery Units,Adults and Health,Other Agencies - Third Party P,0090354494,DYNAMIC PEOPLE LTD,273.90,10/05/2021
Delivery Units,Adults and Health,Other Agencies - Third Party P,0090354495,DYNAMIC PEOPLE LTD,273.90,10/05/2021
Delivery Units,Adults and Health,Other Agencies - Third Party P,0090354496,DYNAMIC PEOPLE LTD,511.28,10/05/2021
Delivery Units,Adults and Health,Other Agencies - Third Party P,0090354497,DYNAMIC PEOPLE LTD,511.28,10/05/2021
Delivery Units,Adults and Health,Other Agencies - Third Party P,0090354498,DYNAMIC PEOPLE LTD,127.82,10/05/2021
Delivery Units,Adults and Health,Other Agencies - Third Party P,0090354499,DYNAMIC PEOPLE LTD,127.82,10/05/2021
Delivery Units,Adults and Health,Other Agencies - Third Party P,0090354500,DYNAMIC PEOPLE LTD,95.86,10/05/2021
Delivery Units,Adults and Health,Other Agencies - Third Party P,0090354501,DYNAMIC PEOPLE LTD,95.86,10/05/2021
Delivery Units,Adults and Health,Other Agencies - Third Party P,0090354502,DYNAMIC PEOPLE LTD,159.78,10/05/2021
Delivery Units,Adults and Health,Other Agencies - Third Party P,0090354503,DYNAMIC PEOPLE LTD,159.78,10/05/2021
Delivery Units,Adults and Health,Other Agencies - Third Party P,0090354508,DYNAMIC PEOPLE LTD,337.81,10/05/2021
Delivery Units,Adults and Health,Other Agencies - Third Party P,0090354509,DYNAMIC PEOPLE LTD,337.81,10/05/2021
Delivery Units,Adults and Health,Other Agencies - Third Party P,0090354512,DYNAMIC PEOPLE LTD,237.38,10/05/2021
Delivery Units,Adults and Health,Other Agencies - Third Party P,0090354513,DYNAMIC PEOPLE LTD,228.25,10/05/2021
Delivery Units,Adults and Health,Other Agencies - Third Party P,0090354517,DYNAMIC PEOPLE LTD,191.73,10/05/2021
Delivery Units,Adults and Health,Other Agencies - Third Party P,0090354518,DYNAMIC PEOPLE LTD,191.73,10/05/2021
Delivery Units,Adults and Health,Other Agencies - Third Party P,0090354521,DYNAMIC PEOPLE LTD,41.08,10/05/2021
Delivery Units,Adults and Health,Other Agencies - Third Party P,0090354522,DYNAMIC PEOPLE LTD,95.86,10/05/2021
Delivery Units,Adults and Health,Other Agencies - Third Party P,0090354523,DYNAMIC PEOPLE LTD,95.86,10/05/2021
Delivery Units,Adults and Health,Other Agencies - Third Party P,0090354524,DYNAMIC PEOPLE LTD,95.86,10/05/2021
Delivery Units,Adults and Health,Other Agencies - Third Party P,0090354525,DYNAMIC PEOPLE LTD,36.52,10/05/2021
Delivery Units,Adults and Health,Other Agencies - Third Party P,0090354526,DYNAMIC PEOPLE LTD,54.78,10/05/2021
Delivery Units,Adults and Health,Other Agencies - Third Party P,0090354529,DYNAMIC PEOPLE LTD,54.78,10/05/2021
Delivery Units,Adults and Health,Other Agencies - Third Party P,0090354530,DYNAMIC PEOPLE LTD,68.48,10/05/2021
Delivery Units,Adults and Health,Other Agencies - Third Party P,0090354531,DYNAMIC PEOPLE LTD,255.64,10/05/2021
Delivery Units,Adults and Health,Other Agencies - Third Party P,0090354532,DYNAMIC PEOPLE LTD,255.64,10/05/2021
Delivery Units,Adults and Health,Other Agencies - Third Party P,0090354533,DYNAMIC PEOPLE LTD,223.69,10/05/2021
Delivery Units,Adults and Health,Other Agencies - Third Party P,0090354534,DYNAMIC PEOPLE LTD,223.69,10/05/2021
Delivery Units,Adults and Health,Other Agencies - Third Party P,0090354535,DYNAMIC PEOPLE LTD,95.86,10/05/2021
Delivery Units,Adults and Health,Other Agencies - Third Party P,0090354536,DYNAMIC PEOPLE LTD,95.86,10/05/2021
Delivery Units,Adults and Health,Other Agencies - Third Party P,0090354537,DYNAMIC PEOPLE LTD,191.73,10/05/2021
Delivery Units,Adults and Health,Other Agencies - Third Party P,0090354538,DYNAMIC PEOPLE LTD,191.73,10/05/2021
Delivery Units,Adults and Health,Other Agencies - Third Party P,0090354543,DYNAMIC PEOPLE LTD,127.82,10/05/2021
Delivery Units,Adults and Health,Other Agencies - Third Party P,0090354544,DYNAMIC PEOPLE LTD,127.82,10/05/2021
Delivery Units,Adults and Health,Other Agencies - Third Party P,0090354545,DYNAMIC PEOPLE LTD,54.78,10/05/2021
Delivery Units,Adults and Health,Other Agencies - Third Party P,0090354546,DYNAMIC PEOPLE LTD,82.17,10/05/2021
Delivery Units,Adults and Health,Other Agencies - Third Party P,0090354547,DYNAMIC PEOPLE LTD,127.82,10/05/2021
Delivery Units,Adults and Health,Other Agencies - Third Party P,0090354548,DYNAMIC PEOPLE LTD,127.82,10/05/2021
Delivery Units,Adults and Health,Other Agencies - Third Party P,0090354549,DYNAMIC PEOPLE LTD,958.65,10/05/2021
Delivery Units,Adults and Health,Other Agencies - Third Party P,0090354550,DYNAMIC PEOPLE LTD,958.65,10/05/2021
Delivery Units,Adults and Health,Other Agencies - Third Party P,0090354551,DYNAMIC PEOPLE LTD,146.08,10/05/2021
Delivery Units,Adults and Health,Other Agencies - Third Party P,0090354552,DYNAMIC PEOPLE LTD,109.56,10/05/2021
Delivery Units,Adults and Health,Other Agencies - Third Party P,0090354553,DYNAMIC PEOPLE LTD,118.69,10/05/2021
Delivery Units,Adults and Health,Other Agencies - Third Party P,0090354554,DYNAMIC PEOPLE LTD,118.69,10/05/2021
Delivery Units,Adults and Health,Other Agencies - Third Party P,0090354556,DYNAMIC PEOPLE LTD,438.24,10/05/2021
Delivery Units,Adults and Health,Other Agencies - Third Party P,0090354557,DYNAMIC PEOPLE LTD,447.37,10/05/2021
Delivery Units,Adults and Health,Other Agencies - Third Party P,0090354560,DYNAMIC PEOPLE LTD,292.16,10/05/2021
Delivery Units,Adults and Health,Other Agencies - Third Party P,0090354561,DYNAMIC PEOPLE LTD,283.03,10/05/2021
Delivery Units,Adults and Health,Other Agencies - Third Party P,0090354562,DYNAMIC PEOPLE LTD,351.51,10/05/2021
Delivery Units,Adults and Health,Other Agencies - Third Party P,0090354563,DYNAMIC PEOPLE LTD,351.51,10/05/2021
Delivery Units,Adults and Health,Other Agencies - Third Party P,0090354564,DYNAMIC PEOPLE LTD,273.90,10/05/2021
Delivery Units,Adults and Health,Other Agencies - Third Party P,0090354565,DYNAMIC PEOPLE LTD,273.90,10/05/2021
Delivery Units,Adults and Health,Other Agencies - Third Party P,0090354566,DYNAMIC PEOPLE LTD,95.86,10/05/2021
Delivery Units,Adults and Health,Other Agencies - Third Party P,0090354567,DYNAMIC PEOPLE LTD,95.86,10/05/2021
Delivery Units,Adults and Health,Other Agencies - Third Party P,0090354570,DYNAMIC PEOPLE LTD,127.82,10/05/2021
Delivery Units,Adults and Health,Other Agencies - Third Party P,0090354571,DYNAMIC PEOPLE LTD,127.82,10/05/2021
Delivery Units,Adults and Health,Other Agencies - Third Party P,0090354572,DYNAMIC PEOPLE LTD,127.82,10/05/2021
Delivery Units,Adults and Health,Other Agencies - Third Party P,0090354573,DYNAMIC PEOPLE LTD,127.82,10/05/2021
Delivery Units,Adults and Health,Other Agencies - Third Party P,0090354574,DYNAMIC PEOPLE LTD,287.60,10/05/2021
Delivery Units,Adults and Health,Other Agencies - Third Party P,0090354575,DYNAMIC PEOPLE LTD,287.60,10/05/2021
Delivery Units,Adults and Health,Other Agencies - Third Party P,0090354576,DYNAMIC PEOPLE LTD,191.73,10/05/2021
Delivery Units,Adults and Health,Other Agencies - Third Party P,0090354577,DYNAMIC PEOPLE LTD,73.04,10/05/2021
Delivery Units,Adults and Health,Other Agencies - Third Party P,0090354578,DYNAMIC PEOPLE LTD,241.95,10/05/2021
Delivery Units,Adults and Health,Other Agencies - Third Party P,0090354579,DYNAMIC PEOPLE LTD,241.95,10/05/2021
Delivery Units,Adults and Health,Other Agencies - Third Party P,0090354580,DYNAMIC PEOPLE LTD,273.90,10/05/2021
Delivery Units,Adults and Health,Other Agencies - Third Party P,0090354581,DYNAMIC PEOPLE LTD,273.90,10/05/2021
Delivery Units,Adults and Health,Other Agencies - Third Party P,0090354582,DYNAMIC PEOPLE LTD,41.08,10/05/2021
Delivery Units,Adults and Health,Other Agencies - Third Party P,0090354583,DYNAMIC PEOPLE LTD,182.60,10/05/2021
Delivery Units,Adults and Health,Other Agencies - Third Party P,0090354584,DYNAMIC PEOPLE LTD,182.60,10/05/2021
Delivery Units,Adults and Health,Other Agencies - Third Party P,0090354585,DYNAMIC PEOPLE LTD,127.82,10/05/2021
Delivery Units,Adults and Health,Other Agencies - Third Party P,0090354586,DYNAMIC PEOPLE LTD,127.82,10/05/2021
Delivery Units,Adults and Health,Other Agencies - Third Party P,0090354589,DYNAMIC PEOPLE LTD,146.08,10/05/2021
Delivery Units,Adults and Health,Other Agencies - Third Party P,0090354590,DYNAMIC PEOPLE LTD,146.08,10/05/2021
Delivery Units,Adults and Health,Other Agencies - Third Party P,0090354591,DYNAMIC PEOPLE LTD,766.92,10/05/2021
Delivery Units,Adults and Health,Other Agencies - Third Party P,0090354592,DYNAMIC PEOPLE LTD,766.92,10/05/2021
Delivery Units,Adults and Health,Other Agencies - Third Party P,0090354593,DYNAMIC PEOPLE LTD,351.51,10/05/2021
Delivery Units,Adults and Health,Other Agencies - Third Party P,0090354594,DYNAMIC PEOPLE LTD,351.51,10/05/2021
Delivery Units,Adults and Health,Other Agencies - Third Party P,0090354595,DYNAMIC PEOPLE LTD,200.86,10/05/2021
Delivery Units,Adults and Health,Other Agencies - Third Party P,0090354596,DYNAMIC PEOPLE LTD,200.86,10/05/2021
Delivery Units,Adults and Health,Other Agencies - Third Party P,0090354599,DYNAMIC PEOPLE LTD,9.13,10/05/2021
Delivery Units,Adults and Health,Other Agencies - Third Party P,0090354600,DYNAMIC PEOPLE LTD,319.55,10/05/2021
Delivery Units,Adults and Health,Other Agencies - Third Party P,0090354601,DYNAMIC PEOPLE LTD,319.55,10/05/2021
Delivery Units,Adults and Health,Other Agencies - Third Party P,0090354604,DYNAMIC PEOPLE LTD,95.86,10/05/2021
Delivery Units,Adults and Health,Other Agencies - Third Party P,0090354605,DYNAMIC PEOPLE LTD,95.86,10/05/2021
Delivery Units,Adults and Health,Other Agencies - Third Party P,0090354606,DYNAMIC PEOPLE LTD,182.60,10/05/2021
Delivery Units,Adults and Health,Other Agencies - Third Party P,0090354607,DYNAMIC PEOPLE LTD,182.60,10/05/2021
Delivery Units,Adults and Health,Other Agencies - Third Party P,0090354609,DYNAMIC PEOPLE LTD,91.30,10/05/2021
Delivery Units,Adults and Health,Other Agencies - Third Party P,0090354612,DYNAMIC PEOPLE LTD,191.73,10/05/2021
Delivery Units,Adults and Health,Other Agencies - Third Party P,0090354617,DYNAMIC PEOPLE LTD,273.90,10/05/2021
Delivery Units,Adults and Health,Other Agencies - Third Party P,0090354618,DYNAMIC PEOPLE LTD,260.21,10/05/2021
Delivery Units,Adults and Health,Other Agencies - Third Party P,0090354622,DYNAMIC PEOPLE LTD,511.28,10/05/2021
Delivery Units,Adults and Health,Other Agencies - Third Party P,0090354623,DYNAMIC PEOPLE LTD,511.28,10/05/2021
Delivery Units,Adults and Health,Other Agencies - Third Party P,0090354624,DYNAMIC PEOPLE LTD,95.86,10/05/2021
Delivery Units,Adults and Health,Other Agencies - Third Party P,0090354625,DYNAMIC PEOPLE LTD,82.17,10/05/2021
Delivery Units,Adults and Health,Other Agencies - Third Party P,0090354626,DYNAMIC PEOPLE LTD,54.78,10/05/2021
Delivery Units,Adults and Health,Other Agencies - Third Party P,0090354627,DYNAMIC PEOPLE LTD,68.48,10/05/2021
Delivery Units,Adults and Health,Other Agencies - Third Party P,0090354628,DYNAMIC PEOPLE LTD,68.48,10/05/2021
Delivery Units,Adults and Health,Other Agencies - Third Party P,0090354629,DYNAMIC PEOPLE LTD,337.81,10/05/2021
Delivery Units,Adults and Health,Other Agencies - Third Party P,0090354630,DYNAMIC PEOPLE LTD,337.81,10/05/2021
Delivery Units,Adults and Health,Other Agencies - Third Party P,0090354631,DYNAMIC PEOPLE LTD,200.86,10/05/2021
Delivery Units,Adults and Health,Other Agencies - Third Party P,0090354632,DYNAMIC PEOPLE LTD,54.78,10/05/2021
Delivery Units,Adults and Health,Other Agencies - Third Party P,0090354638,DYNAMIC PEOPLE LTD,337.81,10/05/2021
Delivery Units,Adults and Health,Other Agencies - Third Party P,0090354643,DYNAMIC PEOPLE LTD,27.39,10/05/2021
Delivery Units,Adults and Health,Other Agencies - Third Party P,0090354644,DYNAMIC PEOPLE LTD,27.39,10/05/2021
Delivery Units,Adults and Health,Other Agencies - Third Party P,0090354645,DYNAMIC PEOPLE LTD,337.81,10/05/2021
Delivery Units,Adults and Health,Other Agencies - Third Party P,0090354646,DYNAMIC PEOPLE LTD,337.81,10/05/2021
Delivery Units,Adults and Health,Other Agencies - Third Party P,0090354647,DYNAMIC PEOPLE LTD,305.86,10/05/2021
Delivery Units,Adults and Health,Other Agencies - Third Party P,0090354648,DYNAMIC PEOPLE LTD,305.86,10/05/2021
Delivery Units,Adults and Health,Other Agencies - Third Party P,0090354651,DYNAMIC PEOPLE LTD,91.30,10/05/2021
Delivery Units,Adults and Health,Other Agencies - Third Party P,0090354652,DYNAMIC PEOPLE LTD,91.30,10/05/2021
Delivery Units,Adults and Health,Other Agencies - Third Party P,0090354653,DYNAMIC PEOPLE LTD,95.86,10/05/2021
Delivery Units,Adults and Health,Other Agencies - Third Party P,0090354654,DYNAMIC PEOPLE LTD,95.86,10/05/2021
Delivery Units,Adults and Health,Other Agencies - Third Party P,0090354655,DYNAMIC PEOPLE LTD,27.39,10/05/2021
Delivery Units,Adults and Health,Other Agencies - Third Party P,0090354656,DYNAMIC PEOPLE LTD,27.39,10/05/2021
Delivery Units,Adults and Health,Other Agencies - Third Party P,0090354657,DYNAMIC PEOPLE LTD,91.30,10/05/2021
Delivery Units,Adults and Health,Other Agencies - Third Party P,0090354658,DYNAMIC PEOPLE LTD,95.86,10/05/2021
Delivery Units,Adults and Health,Other Agencies - Third Party P,0090354661,DYNAMIC PEOPLE LTD,511.28,10/05/2021
Delivery Units,Adults and Health,Other Agencies - Third Party P,0090354662,DYNAMIC PEOPLE LTD,511.28,10/05/2021
Delivery Units,Adults and Health,Other Agencies - Third Party P,0090354670,Servesoul Limited,251.86,10/05/2021
Delivery Units,Adults and Health,Other Agencies - Third Party P,0090354672,Servesoul Limited,94.45,10/05/2021
Delivery Units,Adults and Health,Other Agencies - Third Party P,0090354673,Servesoul Limited,157.41,10/05/2021
Delivery Units,Adults and Health,Other Agencies - Third Party P,0090354674,Servesoul Limited,251.86,10/05/2021
Delivery Units,Adults and Health,Other Agencies - Third Party P,0090354675,Servesoul Limited,440.75,10/05/2021
Delivery Units,Adults and Health,Other Agencies - Third Party P,0090354678,Servesoul Limited,67.46,10/05/2021
Delivery Units,Adults and Health,Other Agencies - Third Party P,0090354679,Servesoul Limited,125.93,10/05/2021
Delivery Units,Adults and Health,Other Agencies - Third Party P,0090354683,Servesoul Limited,566.68,10/05/2021
Delivery Units,Adults and Health,Other Agencies - Third Party P,0090354685,Servesoul Limited,125.93,10/05/2021
Delivery Units,Adults and Health,Other Agencies - Third Party P,0090354686,Servesoul Limited,332.82,10/05/2021
Delivery Units,Adults and Health,Other Agencies - Third Party P,0090354687,Servesoul Limited,157.41,10/05/2021
Delivery Units,Adults and Health,Other Agencies - Third Party P,0090354688,Servesoul Limited,395.78,10/05/2021
Delivery Units,Adults and Health,Other Agencies - Third Party P,0090354689,Servesoul Limited,"3,242.70",10/05/2021
Delivery Units,Adults and Health,Other Agencies - Third Party P,0090354690,Servesoul Limited,382.29,10/05/2021
Delivery Units,Adults and Health,Other Agencies - Third Party P,0090354691,Servesoul Limited,251.86,10/05/2021
Delivery Units,Adults and Health,Other Agencies - Third Party P,0090354692,Servesoul Limited,26.98,10/05/2021
Delivery Units,Adults and Health,Other Agencies - Third Party P,0090354693,Servesoul Limited,472.24,10/05/2021
Delivery Units,Adults and Health,Other Agencies - Third Party P,0090354694,Servesoul Limited,440.75,10/05/2021
Delivery Units,Adults and Health,Other Agencies - Third Party P,0090354695,Servesoul Limited,503.72,10/05/2021
Delivery Units,Adults and Health,Other Agencies - Third Party P,0090354696,Servesoul Limited,94.45,10/05/2021
Delivery Units,Adults and Health,Other Agencies - Third Party P,0090354697,Servesoul Limited,283.34,10/05/2021
Delivery Units,Adults and Health,Other Agencies - Third Party P,0090354698,Servesoul Limited,301.33,10/05/2021
Delivery Units,Adults and Health,Other Agencies - Third Party P,0090354699,Servesoul Limited,917.49,10/05/2021
Delivery Units,Adults and Health,Other Agencies - Third Party P,0090354700,Servesoul Limited,490.23,10/05/2021
Delivery Units,Adults and Health,Other Agencies - Third Party P,0090354701,Servesoul Limited,346.31,10/05/2021
Delivery Units,Adults and Health,Other Agencies - Third Party P,0090354702,Servesoul Limited,584.67,10/05/2021
Delivery Units,Adults and Health,Other Agencies - Third Party P,0090354703,Servesoul Limited,188.90,10/05/2021
Delivery Units,Adults and Health,Other Agencies - Third Party P,0090354704,Servesoul Limited,125.93,10/05/2021
Delivery Units,Adults and Health,Other Agencies - Third Party P,0090354705,Servesoul Limited,521.71,10/05/2021
Delivery Units,Adults and Health,Other Agencies - Third Party P,0090354706,Servesoul Limited,125.93,10/05/2021
Delivery Units,Adults and Health,Other Agencies - Third Party P,0090354707,Servesoul Limited,395.78,10/05/2021
Delivery Units,Adults and Health,Other Agencies - Third Party P,0090354708,Servesoul Limited,188.90,10/05/2021
Delivery Units,Adults and Health,Other Agencies - Third Party P,0090354710,Servesoul Limited,674.62,10/05/2021
Delivery Units,Adults and Health,Other Agencies - Third Party P,0090354711,Servesoul Limited,220.38,10/05/2021
Delivery Units,Adults and Health,Other Agencies - Third Party P,0090354712,Servesoul Limited,494.72,10/05/2021
Delivery Units,Adults and Health,Other Agencies - Third Party P,0090354714,Servesoul Limited,17.99,10/05/2021
Delivery Units,Adults and Health,Other Agencies - Third Party P,0090354715,Servesoul Limited,220.38,10/05/2021
Delivery Units,Adults and Health,Other Agencies - Third Party P,0090354716,Servesoul Limited,886.01,10/05/2021
Delivery Units,Adults and Health,Other Agencies - Third Party P,0090354717,Servesoul Limited,319.32,10/05/2021
Delivery Units,Adults and Health,Other Agencies - Third Party P,0090354718,Servesoul Limited,"2,040.76",10/05/2021
Delivery Units,Adults and Health,Other Agencies - Third Party P,0090354719,Servesoul Limited,107.94,10/05/2021
Delivery Units,Adults and Health,Other Agencies - Third Party P,0090354720,Servesoul Limited,35.98,10/05/2021
Delivery Units,Adults and Health,Other Agencies - Third Party P,0090354721,Servesoul Limited,220.38,10/05/2021
Delivery Units,Adults and Health,Other Agencies - Third Party P,0090354722,Servesoul Limited,62.96,10/05/2021
Delivery Units,Adults and Health,Other Agencies - Third Party P,0090354723,Servesoul Limited,566.68,10/05/2021
Delivery Units,Adults and Health,Other Agencies - Third Party P,0090354724,Servesoul Limited,251.86,10/05/2021
Delivery Units,Adults and Health,Other Agencies - Third Party P,0090354725,Servesoul Limited,314.82,10/05/2021
Delivery Units,Adults and Health,Other Agencies - Third Party P,0090354726,Servesoul Limited,161.91,10/05/2021
Delivery Units,Adults and Health,Other Agencies - Third Party P,0090354727,Servesoul Limited,188.90,10/05/2021
Delivery Units,Adults and Health,Other Agencies - Third Party P,0090354728,Servesoul Limited,377.79,10/05/2021
Delivery Units,Adults and Health,Other Agencies - Third Party P,0090354729,Servesoul Limited,283.34,10/05/2021
Delivery Units,Adults and Health,Other Agencies - Third Party P,0090354730,Servesoul Limited,62.96,10/05/2021
Delivery Units,Adults and Health,Other Agencies - Third Party P,0090354731,Servesoul Limited,629.65,10/05/2021
Delivery Units,Adults and Health,Other Agencies - Third Party P,0090354732,Servesoul Limited,125.93,10/05/2021
Delivery Units,Adults and Health,Other Agencies - Third Party P,0090354733,Servesoul Limited,62.96,10/05/2021
Delivery Units,Adults and Health,Other Agencies - Third Party P,0090354735,Servesoul Limited,157.41,10/05/2021
Delivery Units,Adults and Health,Other Agencies - Third Party P,0090354736,Servesoul Limited,251.86,10/05/2021
Delivery Units,Adults and Health,Other Agencies - Third Party P,0090354737,Servesoul Limited,440.75,10/05/2021
Delivery Units,Adults and Health,Other Agencies - Third Party P,0090354740,Servesoul Limited,67.46,10/05/2021
Delivery Units,Adults and Health,Other Agencies - Third Party P,0090354741,Servesoul Limited,125.93,10/05/2021
Delivery Units,Adults and Health,Other Agencies - Third Party P,0090354745,Servesoul Limited,323.82,10/05/2021
Delivery Units,Adults and Health,Other Agencies - Third Party P,0090354747,Servesoul Limited,125.93,10/05/2021
Delivery Units,Adults and Health,Other Agencies - Third Party P,0090354748,Servesoul Limited,251.86,10/05/2021
Delivery Units,Adults and Health,Other Agencies - Third Party P,0090354749,Servesoul Limited,157.41,10/05/2021
Delivery Units,Adults and Health,Other Agencies - Third Party P,0090354750,Servesoul Limited,395.78,10/05/2021
Delivery Units,Adults and Health,Other Agencies - Third Party P,0090354752,Servesoul Limited,"3,242.70",10/05/2021
Delivery Units,Adults and Health,Other Agencies - Third Party P,0090354753,Servesoul Limited,382.29,10/05/2021
Delivery Units,Adults and Health,Other Agencies - Third Party P,0090354754,Servesoul Limited,251.86,10/05/2021
Delivery Units,Adults and Health,Other Agencies - Third Party P,0090354755,Servesoul Limited,35.98,10/05/2021
Delivery Units,Adults and Health,Other Agencies - Third Party P,0090354756,Servesoul Limited,472.24,10/05/2021
Delivery Units,Adults and Health,Other Agencies - Third Party P,0090354757,Servesoul Limited,440.75,10/05/2021
Delivery Units,Adults and Health,Other Agencies - Third Party P,0090354758,Servesoul Limited,503.72,10/05/2021
Delivery Units,Adults and Health,Other Agencies - Third Party P,0090354759,Servesoul Limited,94.45,10/05/2021
Delivery Units,Adults and Health,Other Agencies - Third Party P,0090354760,Servesoul Limited,283.34,10/05/2021
Delivery Units,Adults and Health,Other Agencies - Third Party P,0090354761,Servesoul Limited,301.33,10/05/2021
Delivery Units,Adults and Health,Other Agencies - Third Party P,0090354762,Servesoul Limited,917.49,10/05/2021
Delivery Units,Adults and Health,Other Agencies - Third Party P,0090354763,Servesoul Limited,94.45,10/05/2021
Delivery Units,Adults and Health,Other Agencies - Third Party P,0090354764,Servesoul Limited,490.23,10/05/2021
Delivery Units,Adults and Health,Other Agencies - Third Party P,0090354765,Servesoul Limited,346.31,10/05/2021
Delivery Units,Adults and Health,Other Agencies - Third Party P,0090354766,Servesoul Limited,584.67,10/05/2021
Delivery Units,Adults and Health,Other Agencies - Third Party P,0090354767,Servesoul Limited,8.99,10/05/2021
Delivery Units,Adults and Health,Other Agencies - Third Party P,0090354768,Servesoul Limited,188.90,10/05/2021
Delivery Units,Adults and Health,Other Agencies - Third Party P,0090354769,Servesoul Limited,125.93,10/05/2021
Delivery Units,Adults and Health,Other Agencies - Third Party P,0090354770,Servesoul Limited,521.71,10/05/2021
Delivery Units,Adults and Health,Other Agencies - Third Party P,0090354771,Servesoul Limited,125.93,10/05/2021
Delivery Units,Adults and Health,Other Agencies - Third Party P,0090354772,Servesoul Limited,395.78,10/05/2021
Delivery Units,Adults and Health,Other Agencies - Third Party P,0090354774,Servesoul Limited,188.90,10/05/2021
Delivery Units,Adults and Health,Other Agencies - Third Party P,0090354776,Servesoul Limited,755.58,10/05/2021
Delivery Units,Adults and Health,Other Agencies - Third Party P,0090354777,Servesoul Limited,220.38,10/05/2021
Delivery Units,Adults and Health,Other Agencies - Third Party P,0090354778,Servesoul Limited,494.72,10/05/2021
Delivery Units,Adults and Health,Other Agencies - Third Party P,0090354780,Servesoul Limited,17.99,10/05/2021
Delivery Units,Adults and Health,Other Agencies - Third Party P,0090354781,Servesoul Limited,220.38,10/05/2021
Delivery Units,Adults and Health,Other Agencies - Third Party P,0090354783,Servesoul Limited,886.01,10/05/2021
Delivery Units,Adults and Health,Other Agencies - Third Party P,0090354784,Servesoul Limited,319.32,10/05/2021
Delivery Units,Adults and Health,Other Agencies - Third Party P,0090354785,Servesoul Limited,"2,040.76",10/05/2021
Delivery Units,Adults and Health,Other Agencies - Third Party P,0090354786,Servesoul Limited,107.94,10/05/2021
Delivery Units,Adults and Health,Other Agencies - Third Party P,0090354787,Servesoul Limited,35.98,10/05/2021
Delivery Units,Adults and Health,Other Agencies - Third Party P,0090354788,Servesoul Limited,220.38,10/05/2021
Delivery Units,Adults and Health,Other Agencies - Third Party P,0090354789,Servesoul Limited,62.96,10/05/2021
Delivery Units,Adults and Health,Other Agencies - Third Party P,0090354790,Servesoul Limited,566.68,10/05/2021
Delivery Units,Adults and Health,Other Agencies - Third Party P,0090354791,Servesoul Limited,251.86,10/05/2021
Delivery Units,Adults and Health,Other Agencies - Third Party P,0090354792,Servesoul Limited,314.82,10/05/2021
Delivery Units,Adults and Health,Other Agencies - Third Party P,0090354793,Servesoul Limited,161.91,10/05/2021
Delivery Units,Adults and Health,Other Agencies - Third Party P,0090354794,Servesoul Limited,188.90,10/05/2021
Delivery Units,Adults and Health,Other Agencies - Third Party P,0090354795,Servesoul Limited,377.79,10/05/2021
Delivery Units,Adults and Health,Other Agencies - Third Party P,0090354796,Servesoul Limited,283.34,10/05/2021
Delivery Units,Adults and Health,Other Agencies - Third Party P,0090354798,Servesoul Limited,62.96,10/05/2021
Delivery Units,Adults and Health,Other Agencies - Third Party P,0090354799,Servesoul Limited,629.65,10/05/2021
Delivery Units,Adults and Health,Other Agencies - Third Party P,0090354800,Servesoul Limited,125.93,10/05/2021
Delivery Units,Adults and Health,Other Agencies - Third Party P,0090354801,Servesoul Limited,62.96,10/05/2021
Delivery Units,Adults and Health,Other Agencies - Third Party P,0090354804,Servesoul Limited,251.86,10/05/2021
Delivery Units,Adults and Health,Other Agencies - Third Party P,0090354806,Servesoul Limited,94.45,10/05/2021
Delivery Units,Adults and Health,Other Agencies - Third Party P,0090354808,Servesoul Limited,125.93,10/05/2021
Delivery Units,Adults and Health,Other Agencies - Third Party P,0090354810,St Georges Home Care ltd,318.94,10/05/2021
Delivery Units,Adults and Health,Other Agencies - Third Party P,0090354811,Servesoul Limited,62.97,10/05/2021
Delivery Units,Adults and Health,Other Agencies - Third Party P,0090354812,Servesoul Limited,490.23,10/05/2021
Delivery Units,Adults and Health,Other Agencies - Third Party P,0090354813,Servesoul Limited,157.41,10/05/2021
Delivery Units,Adults and Health,Other Agencies - Third Party P,0090354814,Servesoul Limited,440.76,10/05/2021
Delivery Units,Adults and Health,Other Agencies - Third Party P,0090354815,Servesoul Limited,188.90,10/05/2021
Delivery Units,Adults and Health,Other Agencies - Third Party P,0090354816,Servesoul Limited,395.78,10/05/2021
Delivery Units,Adults and Health,Other Agencies - Third Party P,0090354817,Servesoul Limited,755.58,10/05/2021
Delivery Units,Adults and Health,Other Agencies - Third Party P,0090354818,Servesoul Limited,503.72,10/05/2021
Delivery Units,Adults and Health,Other Agencies - Third Party P,0090354819,Servesoul Limited,323.82,10/05/2021
Delivery Units,Adults and Health,Other Agencies - Third Party P,0090354820,Servesoul Limited,62.97,10/05/2021
Delivery Units,Adults and Health,Other Agencies - Third Party P,0090354822,Servesoul Limited,251.86,10/05/2021
Delivery Units,Adults and Health,Other Agencies - Third Party P,0090354823,Servesoul Limited,377.79,10/05/2021
Delivery Units,Adults and Health,Other Agencies - Third Party P,0090354824,Servesoul Limited,440.76,10/05/2021
Delivery Units,Adults and Health,Other Agencies - Third Party P,0090354825,Servesoul Limited,283.34,10/05/2021
Delivery Units,Adults and Health,Other Agencies - Third Party P,0090354826,Servesoul Limited,296.84,10/05/2021
Delivery Units,Adults and Health,Other Agencies - Third Party P,0090354827,Servesoul Limited,125.93,10/05/2021
Delivery Units,Adults and Health,Other Agencies - Third Party P,0090354829,Servesoul Limited,188.90,10/05/2021
Delivery Units,Adults and Health,Other Agencies - Third Party P,0090354830,Servesoul Limited,94.45,10/05/2021
Delivery Units,Adults and Health,Other Agencies - Third Party P,0090354831,Servesoul Limited,157.41,10/05/2021
Delivery Units,Adults and Health,Other Agencies - Third Party P,0090354832,Servesoul Limited,161.91,10/05/2021
Delivery Units,Adults and Health,Other Agencies - Third Party P,0090354834,Servesoul Limited,301.33,10/05/2021
Delivery Units,Adults and Health,Other Agencies - Third Party P,0090354835,Servesoul Limited,161.91,10/05/2021
Delivery Units,Adults and Health,Other Agencies - Third Party P,0090354836,Servesoul Limited,17.99,10/05/2021
Delivery Units,Adults and Health,Other Agencies - Third Party P,0090354837,Servesoul Limited,584.68,10/05/2021
Delivery Units,Adults and Health,Other Agencies - Third Party P,0090354838,Servesoul Limited,395.78,10/05/2021
Delivery Units,Adults and Health,Other Agencies - Third Party P,0090354839,Servesoul Limited,382.29,10/05/2021
Delivery Units,Adults and Health,Other Agencies - Third Party P,0090354841,Servesoul Limited,346.31,10/05/2021
Delivery Units,Adults and Health,Other Agencies - Third Party P,0090354844,Servesoul Limited,314.83,10/05/2021
Delivery Units,Adults and Health,Other Agencies - Third Party P,0090354845,Servesoul Limited,125.93,10/05/2021
Delivery Units,Adults and Health,Other Agencies - Third Party P,0090354846,Servesoul Limited,521.71,10/05/2021
Delivery Units,Adults and Health,Other Agencies - Third Party P,0090354847,Servesoul Limited,629.65,10/05/2021
Delivery Units,Adults and Health,Other Agencies - Third Party P,0090354848,Servesoul Limited,472.24,10/05/2021
Delivery Units,Adults and Health,Other Agencies - Third Party P,0090354849,Servesoul Limited,319.32,10/05/2021
Delivery Units,Adults and Health,Other Agencies - Third Party P,0090354850,Servesoul Limited,251.86,10/05/2021
Delivery Units,Adults and Health,Other Agencies - Third Party P,0090354851,Servesoul Limited,188.90,10/05/2021
Delivery Units,Adults and Health,Other Agencies - Third Party P,0090354852,Servesoul Limited,35.98,10/05/2021
Delivery Units,Adults and Health,Other Agencies - Third Party P,0090354853,Servesoul Limited,67.46,10/05/2021
Delivery Units,Adults and Health,Other Agencies - Third Party P,0090354854,Servesoul Limited,125.93,10/05/2021
Delivery Units,Adults and Health,Other Agencies - Third Party P,0090354856,Servesoul Limited,"3,242.70",10/05/2021
Delivery Units,Adults and Health,Other Agencies - Third Party P,0090354857,Servesoul Limited,251.86,10/05/2021
Delivery Units,Adults and Health,Other Agencies - Third Party P,0090354858,Servesoul Limited,917.49,10/05/2021
Delivery Units,Adults and Health,Other Agencies - Third Party P,0090354859,Servesoul Limited,125.93,10/05/2021
Delivery Units,Adults and Health,Other Agencies - Third Party P,0090354861,Servesoul Limited,220.38,10/05/2021
Delivery Units,Adults and Health,Other Agencies - Third Party P,0090354862,Servesoul Limited,494.72,10/05/2021
Delivery Units,Adults and Health,Other Agencies - Third Party P,0090354863,Servesoul Limited,220.38,10/05/2021
Delivery Units,Adults and Health,Other Agencies - Third Party P,0090354864,Servesoul Limited,886.01,10/05/2021
Delivery Units,Adults and Health,Other Agencies - Third Party P,0090354865,Servesoul Limited,"2,040.76",10/05/2021
Delivery Units,Adults and Health,Other Agencies - Third Party P,0090354866,Servesoul Limited,107.94,10/05/2021
Delivery Units,Adults and Health,Other Agencies - Third Party P,0090354867,Servesoul Limited,220.38,10/05/2021
Delivery Units,Adults and Health,Other Agencies - Third Party P,0090354868,Servesoul Limited,566.68,10/05/2021
Delivery Units,Adults and Health,Other Agencies - Third Party P,0090354869,Servesoul Limited,62.96,10/05/2021
Delivery Units,Adults and Health,Other Agencies - Third Party P,0090354871,Servesoul Limited,157.41,10/05/2021
Delivery Units,Adults and Health,Other Agencies - Third Party P,0090354872,Servesoul Limited,251.86,10/05/2021
Delivery Units,Adults and Health,Other Agencies - Third Party P,0090354873,Servesoul Limited,440.75,10/05/2021
Delivery Units,Adults and Health,Other Agencies - Third Party P,0090354876,Servesoul Limited,67.46,10/05/2021
Delivery Units,Adults and Health,Other Agencies - Third Party P,0090354877,Servesoul Limited,125.93,10/05/2021
Delivery Units,Adults and Health,Other Agencies - Third Party P,0090354881,Servesoul Limited,566.68,10/05/2021
Delivery Units,Adults and Health,Other Agencies - Third Party P,0090354883,Servesoul Limited,125.93,10/05/2021
Delivery Units,Adults and Health,Other Agencies - Third Party P,0090354884,Servesoul Limited,251.86,10/05/2021
Delivery Units,Adults and Health,Other Agencies - Third Party P,0090354885,Servesoul Limited,157.41,10/05/2021
Delivery Units,Adults and Health,Other Agencies - Third Party P,0090354886,Servesoul Limited,395.78,10/05/2021
Delivery Units,Adults and Health,Other Agencies - Third Party P,0090354888,Servesoul Limited,"3,242.70",10/05/2021
Delivery Units,Adults and Health,Other Agencies - Third Party P,0090354889,Servesoul Limited,382.29,10/05/2021
Delivery Units,Adults and Health,Other Agencies - Third Party P,0090354890,Servesoul Limited,251.86,10/05/2021
Delivery Units,Adults and Health,Other Agencies - Third Party P,0090354891,Servesoul Limited,314.82,10/05/2021
Delivery Units,Adults and Health,Other Agencies - Third Party P,0090354892,Servesoul Limited,472.24,10/05/2021
Delivery Units,Adults and Health,Other Agencies - Third Party P,0090354893,Servesoul Limited,440.75,10/05/2021
Delivery Units,Adults and Health,Other Agencies - Third Party P,0090354894,Servesoul Limited,503.72,10/05/2021
Delivery Units,Adults and Health,Other Agencies - Third Party P,0090354895,Servesoul Limited,94.45,10/05/2021
Delivery Units,Adults and Health,Other Agencies - Third Party P,0090354896,Servesoul Limited,139.42,10/05/2021
Delivery Units,Adults and Health,Other Agencies - Third Party P,0090354897,Servesoul Limited,301.33,10/05/2021
Delivery Units,Adults and Health,Other Agencies - Third Party P,0090354898,Servesoul Limited,917.49,10/05/2021
Delivery Units,Adults and Health,Other Agencies - Third Party P,0090354899,Servesoul Limited,94.45,10/05/2021
Delivery Units,Adults and Health,Other Agencies - Third Party P,0090354900,Servesoul Limited,490.23,10/05/2021
Delivery Units,Adults and Health,Other Agencies - Third Party P,0090354901,Servesoul Limited,346.31,10/05/2021
Delivery Units,Adults and Health,Other Agencies - Third Party P,0090354902,Servesoul Limited,584.67,10/05/2021
Delivery Units,Adults and Health,Other Agencies - Third Party P,0090354903,Servesoul Limited,188.90,10/05/2021
Delivery Units,Adults and Health,Other Agencies - Third Party P,0090354904,Servesoul Limited,125.93,10/05/2021
Delivery Units,Adults and Health,Other Agencies - Third Party P,0090354905,Servesoul Limited,521.71,10/05/2021
Delivery Units,Adults and Health,Other Agencies - Third Party P,0090354906,Servesoul Limited,125.93,10/05/2021
Delivery Units,Adults and Health,Other Agencies - Third Party P,0090354907,Servesoul Limited,395.78,10/05/2021
Delivery Units,Adults and Health,Other Agencies - Third Party P,0090354909,Servesoul Limited,188.90,10/05/2021
Delivery Units,Adults and Health,Other Agencies - Third Party P,0090354911,Servesoul Limited,755.58,10/05/2021
Delivery Units,Adults and Health,Other Agencies - Third Party P,0090354912,Servesoul Limited,220.38,10/05/2021
Delivery Units,Adults and Health,Other Agencies - Third Party P,0090354913,Servesoul Limited,494.72,10/05/2021
Delivery Units,Adults and Health,Other Agencies - Third Party P,0090354915,Servesoul Limited,17.99,10/05/2021
Delivery Units,Adults and Health,Other Agencies - Third Party P,0090354916,Servesoul Limited,220.38,10/05/2021
Delivery Units,Adults and Health,Other Agencies - Third Party P,0090354918,Servesoul Limited,886.01,10/05/2021
Delivery Units,Adults and Health,Other Agencies - Third Party P,0090354919,Servesoul Limited,319.32,10/05/2021
Delivery Units,Adults and Health,Other Agencies - Third Party P,0090354920,Servesoul Limited,"2,040.76",10/05/2021
Delivery Units,Adults and Health,Other Agencies - Third Party P,0090354921,Servesoul Limited,107.94,10/05/2021
Delivery Units,Adults and Health,Other Agencies - Third Party P,0090354922,Servesoul Limited,35.98,10/05/2021
Delivery Units,Adults and Health,Other Agencies - Third Party P,0090354923,Servesoul Limited,220.38,10/05/2021
Delivery Units,Adults and Health,Other Agencies - Third Party P,0090354924,Servesoul Limited,62.96,10/05/2021
Delivery Units,Adults and Health,Other Agencies - Third Party P,0090354925,Servesoul Limited,566.68,10/05/2021
Delivery Units,Adults and Health,Other Agencies - Third Party P,0090354926,Servesoul Limited,251.86,10/05/2021
Delivery Units,Adults and Health,Other Agencies - Third Party P,0090354927,Servesoul Limited,314.82,10/05/2021
Delivery Units,Adults and Health,Other Agencies - Third Party P,0090354928,Servesoul Limited,161.91,10/05/2021
Delivery Units,Adults and Health,Other Agencies - Third Party P,0090354929,Servesoul Limited,188.90,10/05/2021
Delivery Units,Adults and Health,Other Agencies - Third Party P,0090354930,Servesoul Limited,377.79,10/05/2021
Delivery Units,Adults and Health,Other Agencies - Third Party P,0090354931,Servesoul Limited,283.34,10/05/2021
Delivery Units,Adults and Health,Other Agencies - Third Party P,0090354933,Servesoul Limited,62.96,10/05/2021
Delivery Units,Adults and Health,Other Agencies - Third Party P,0090354934,Servesoul Limited,629.65,10/05/2021
Delivery Units,Adults and Health,Other Agencies - Third Party P,0090354935,Servesoul Limited,125.93,10/05/2021
Delivery Units,Adults and Health,Other Agencies - Third Party P,0090354936,Servesoul Limited,62.96,10/05/2021
Delivery Units,Adults and Health,Other Agencies - Third Party P,0090354938,Servesoul Limited,80.96,10/05/2021
Delivery Units,Adults and Health,Other Agencies - Third Party P,0090354941,DYNAMIC PEOPLE LTD,68.48,10/05/2021
Delivery Units,Adults and Health,Other Agencies - Third Party P,0090354942,DYNAMIC PEOPLE LTD,68.48,10/05/2021
Delivery Units,Adults and Health,Other Agencies - Third Party P,0090354943,DYNAMIC PEOPLE LTD,146.08,10/05/2021
Delivery Units,Adults and Health,Other Agencies - Third Party P,0090354944,DYNAMIC PEOPLE LTD,146.08,10/05/2021
Delivery Units,Adults and Health,Other Agencies - Third Party P,0090354945,DYNAMIC PEOPLE LTD,319.55,10/05/2021
Delivery Units,Adults and Health,Other Agencies - Third Party P,0090354946,DYNAMIC PEOPLE LTD,319.55,10/05/2021
Delivery Units,Adults and Health,Other Agencies - Third Party P,0090354951,DYNAMIC PEOPLE LTD,68.48,10/05/2021
Delivery Units,Adults and Health,Other Agencies - Third Party P,0090354952,DYNAMIC PEOPLE LTD,68.48,10/05/2021
Delivery Units,Adults and Health,Other Agencies - Third Party P,0090354953,DYNAMIC PEOPLE LTD,287.60,10/05/2021
Delivery Units,Adults and Health,Other Agencies - Third Party P,0090354954,DYNAMIC PEOPLE LTD,287.60,10/05/2021
Delivery Units,Adults and Health,Other Agencies - Third Party P,0090354955,DYNAMIC PEOPLE LTD,214.56,10/05/2021
Delivery Units,Adults and Health,Other Agencies - Third Party P,0090354956,DYNAMIC PEOPLE LTD,214.56,10/05/2021
Delivery Units,Adults and Health,Other Agencies - Third Party P,0090354961,DYNAMIC PEOPLE LTD,59.35,10/05/2021
Delivery Units,Adults and Health,Other Agencies - Third Party P,0090354962,DYNAMIC PEOPLE LTD,59.35,10/05/2021
Delivery Units,Adults and Health,Other Agencies - Third Party P,0090354964,DYNAMIC PEOPLE LTD,127.82,10/05/2021
Delivery Units,Adults and Health,Other Agencies - Third Party P,0090354965,DYNAMIC PEOPLE LTD,118.69,10/05/2021
Delivery Units,Adults and Health,Other Agencies - Third Party P,0090354966,DYNAMIC PEOPLE LTD,68.48,10/05/2021
Delivery Units,Adults and Health,Other Agencies - Third Party P,0090354967,DYNAMIC PEOPLE LTD,68.48,10/05/2021
Delivery Units,Adults and Health,Other Agencies - Third Party P,0090354968,DYNAMIC PEOPLE LTD,109.56,10/05/2021
Delivery Units,Adults and Health,Other Agencies - Third Party P,0090354969,DYNAMIC PEOPLE LTD,109.56,10/05/2021
Delivery Units,Adults and Health,Other Agencies - Third Party P,0090354970,DYNAMIC PEOPLE LTD,511.28,10/05/2021
Delivery Units,Adults and Health,Other Agencies - Third Party P,0090354971,DYNAMIC PEOPLE LTD,511.28,10/05/2021
Delivery Units,Adults and Health,Other Agencies - Third Party P,0090354974,DYNAMIC PEOPLE LTD,360.64,10/05/2021
Delivery Units,Adults and Health,Other Agencies - Third Party P,0090354975,DYNAMIC PEOPLE LTD,383.46,10/05/2021
Delivery Units,Adults and Health,Other Agencies - Third Party P,0090354978,DYNAMIC PEOPLE LTD,255.64,10/05/2021
Delivery Units,Adults and Health,Other Agencies - Third Party P,0090354979,DYNAMIC PEOPLE LTD,255.64,10/05/2021
Delivery Units,Adults and Health,Other Agencies - Third Party P,0090354982,DYNAMIC PEOPLE LTD,351.51,10/05/2021
Delivery Units,Adults and Health,Other Agencies - Third Party P,0090354983,DYNAMIC PEOPLE LTD,351.51,10/05/2021
Delivery Units,Adults and Health,Other Agencies - Third Party P,0090354984,DYNAMIC PEOPLE LTD,223.69,10/05/2021
Delivery Units,Adults and Health,Other Agencies - Third Party P,0090354985,DYNAMIC PEOPLE LTD,223.69,10/05/2021
Delivery Units,Adults and Health,Other Agencies - Third Party P,0090354986,DYNAMIC PEOPLE LTD,63.91,10/05/2021
Delivery Units,Adults and Health,Other Agencies - Third Party P,0090354987,DYNAMIC PEOPLE LTD,63.91,10/05/2021
Delivery Units,Adults and Health,Other Agencies - Third Party P,0090354996,DYNAMIC PEOPLE LTD,41.08,10/05/2021
Delivery Units,Adults and Health,Other Agencies - Third Party P,0090354997,DYNAMIC PEOPLE LTD,41.08,10/05/2021
Delivery Units,Adults and Health,Other Agencies - Third Party P,0090355000,DYNAMIC PEOPLE LTD,27.39,10/05/2021
Delivery Units,Adults and Health,Other Agencies - Third Party P,0090355005,DYNAMIC PEOPLE LTD,127.82,10/05/2021
Delivery Units,Adults and Health,Other Agencies - Third Party P,0090355006,DYNAMIC PEOPLE LTD,127.82,10/05/2021
Delivery Units,Adults and Health,Other Agencies - Third Party P,0090355007,DYNAMIC PEOPLE LTD,95.86,10/05/2021
Delivery Units,Adults and Health,Other Agencies - Third Party P,0090355008,DYNAMIC PEOPLE LTD,95.86,10/05/2021
Delivery Units,Adults and Health,Other Agencies - Third Party P,0090355011,DYNAMIC PEOPLE LTD,351.51,10/05/2021
Delivery Units,Adults and Health,Other Agencies - Third Party P,0090355012,DYNAMIC PEOPLE LTD,351.51,10/05/2021
Delivery Units,Adults and Health,Other Agencies - Third Party P,0090355013,DYNAMIC PEOPLE LTD,182.60,10/05/2021
Delivery Units,Adults and Health,Other Agencies - Third Party P,0090355014,DYNAMIC PEOPLE LTD,219.12,10/05/2021
Delivery Units,Adults and Health,Other Agencies - Third Party P,0090355015,DYNAMIC PEOPLE LTD,159.78,10/05/2021
Delivery Units,Adults and Health,Other Agencies - Third Party P,0090355016,DYNAMIC PEOPLE LTD,159.78,10/05/2021
Delivery Units,Adults and Health,Other Agencies - Third Party P,0090355017,DYNAMIC PEOPLE LTD,191.73,10/05/2021
Delivery Units,Adults and Health,Other Agencies - Third Party P,0090355018,DYNAMIC PEOPLE LTD,191.73,10/05/2021
Delivery Units,Adults and Health,Other Agencies - Third Party P,0090355021,DYNAMIC PEOPLE LTD,671.06,10/05/2021
Delivery Units,Adults and Health,Other Agencies - Third Party P,0090355022,DYNAMIC PEOPLE LTD,671.06,10/05/2021
Delivery Units,Adults and Health,Other Agencies - Third Party P,0090355023,DYNAMIC PEOPLE LTD,319.55,10/05/2021
Delivery Units,Adults and Health,Other Agencies - Third Party P,0090355024,DYNAMIC PEOPLE LTD,319.55,10/05/2021
Delivery Units,Adults and Health,Other Agencies - Third Party P,0090355025,DYNAMIC PEOPLE LTD,214.56,10/05/2021
Delivery Units,Adults and Health,Other Agencies - Third Party P,0090355026,DYNAMIC PEOPLE LTD,214.56,10/05/2021
Delivery Units,Adults and Health,Other Agencies - Third Party P,0090355027,DYNAMIC PEOPLE LTD,223.69,10/05/2021
Delivery Units,Adults and Health,Other Agencies - Third Party P,0090355028,DYNAMIC PEOPLE LTD,223.69,10/05/2021
Delivery Units,Adults and Health,Other Agencies - Third Party P,0090355029,DYNAMIC PEOPLE LTD,141.52,10/05/2021
Delivery Units,Adults and Health,Other Agencies - Third Party P,0090355030,DYNAMIC PEOPLE LTD,141.52,10/05/2021
Delivery Units,Adults and Health,Other Agencies - Third Party P,0090355031,DYNAMIC PEOPLE LTD,73.04,10/05/2021
Delivery Units,Adults and Health,Other Agencies - Third Party P,0090355032,DYNAMIC PEOPLE LTD,73.04,10/05/2021
Delivery Units,Adults and Health,Other Agencies - Third Party P,0090355033,DYNAMIC PEOPLE LTD,109.56,10/05/2021
Delivery Units,Adults and Health,Other Agencies - Third Party P,0090355034,DYNAMIC PEOPLE LTD,178.04,10/05/2021
Delivery Units,Adults and Health,Other Agencies - Third Party P,0090355035,DYNAMIC PEOPLE LTD,369.77,10/05/2021
Delivery Units,Adults and Health,Other Agencies - Third Party P,0090355036,DYNAMIC PEOPLE LTD,369.77,10/05/2021
Delivery Units,Adults and Health,Other Agencies - Third Party P,0090355039,DYNAMIC PEOPLE LTD,54.78,10/05/2021
Delivery Units,Adults and Health,Other Agencies - Third Party P,0090355040,DYNAMIC PEOPLE LTD,54.78,10/05/2021
Delivery Units,Adults and Health,Other Agencies - Third Party P,0090355043,DYNAMIC PEOPLE LTD,100.43,10/05/2021
Delivery Units,Adults and Health,Other Agencies - Third Party P,0090355044,DYNAMIC PEOPLE LTD,100.43,10/05/2021
Delivery Units,Adults and Health,Other Agencies - Third Party P,0090355047,DYNAMIC PEOPLE LTD,223.69,10/05/2021
Delivery Units,Adults and Health,Other Agencies - Third Party P,0090355048,DYNAMIC PEOPLE LTD,223.69,10/05/2021
Delivery Units,Adults and Health,Other Agencies - Third Party P,0090355049,DYNAMIC PEOPLE LTD,319.55,10/05/2021
Delivery Units,Adults and Health,Other Agencies - Third Party P,0090355050,DYNAMIC PEOPLE LTD,292.16,10/05/2021
Delivery Units,Adults and Health,Other Agencies - Third Party P,0090355051,DYNAMIC PEOPLE LTD,95.86,10/05/2021
Delivery Units,Adults and Health,Other Agencies - Third Party P,0090355052,DYNAMIC PEOPLE LTD,95.86,10/05/2021
Delivery Units,Adults and Health,Other Agencies - Third Party P,0090355053,DYNAMIC PEOPLE LTD,141.52,10/05/2021
Delivery Units,Adults and Health,Other Agencies - Third Party P,0090355054,DYNAMIC PEOPLE LTD,141.52,10/05/2021
Delivery Units,Adults and Health,Other Agencies - Third Party P,0090355057,DYNAMIC PEOPLE LTD,433.68,10/05/2021
Delivery Units,Adults and Health,Other Agencies - Third Party P,0090355058,DYNAMIC PEOPLE LTD,447.37,10/05/2021
Delivery Units,Adults and Health,Other Agencies - Third Party P,0090355059,DYNAMIC PEOPLE LTD,273.90,10/05/2021
Delivery Units,Adults and Health,Other Agencies - Third Party P,0090355060,DYNAMIC PEOPLE LTD,273.90,10/05/2021
Delivery Units,Adults and Health,Other Agencies - Third Party P,0090355061,DYNAMIC PEOPLE LTD,511.28,10/05/2021
Delivery Units,Adults and Health,Other Agencies - Third Party P,0090355062,DYNAMIC PEOPLE LTD,511.28,10/05/2021
Delivery Units,Adults and Health,Other Agencies - Third Party P,0090355063,DYNAMIC PEOPLE LTD,127.82,10/05/2021
Delivery Units,Adults and Health,Other Agencies - Third Party P,0090355064,DYNAMIC PEOPLE LTD,127.82,10/05/2021
Delivery Units,Adults and Health,Other Agencies - Third Party P,0090355065,DYNAMIC PEOPLE LTD,95.86,10/05/2021
Delivery Units,Adults and Health,Other Agencies - Third Party P,0090355066,DYNAMIC PEOPLE LTD,95.86,10/05/2021
Delivery Units,Adults and Health,Other Agencies - Third Party P,0090355067,DYNAMIC PEOPLE LTD,159.78,10/05/2021
Delivery Units,Adults and Health,Other Agencies - Third Party P,0090355068,DYNAMIC PEOPLE LTD,159.78,10/05/2021
Delivery Units,Adults and Health,Other Agencies - Third Party P,0090355073,DYNAMIC PEOPLE LTD,337.81,10/05/2021
Delivery Units,Adults and Health,Other Agencies - Third Party P,0090355074,DYNAMIC PEOPLE LTD,337.81,10/05/2021
Delivery Units,Adults and Health,Other Agencies - Third Party P,0090355077,DYNAMIC PEOPLE LTD,237.38,10/05/2021
Delivery Units,Adults and Health,Other Agencies - Third Party P,0090355078,DYNAMIC PEOPLE LTD,237.38,10/05/2021
Delivery Units,Adults and Health,Other Agencies - Third Party P,0090355081,DYNAMIC PEOPLE LTD,191.73,10/05/2021
Delivery Units,Adults and Health,Other Agencies - Third Party P,0090355082,DYNAMIC PEOPLE LTD,191.73,10/05/2021
Delivery Units,Adults and Health,Other Agencies - Third Party P,0090355085,DYNAMIC PEOPLE LTD,95.86,10/05/2021
Delivery Units,Adults and Health,Other Agencies - Third Party P,0090355086,DYNAMIC PEOPLE LTD,95.86,10/05/2021
Delivery Units,Adults and Health,Other Agencies - Third Party P,0090355087,DYNAMIC PEOPLE LTD,95.86,10/05/2021
Delivery Units,Adults and Health,Other Agencies - Third Party P,0090355088,DYNAMIC PEOPLE LTD,95.86,10/05/2021
Delivery Units,Adults and Health,Other Agencies - Third Party P,0090355089,DYNAMIC PEOPLE LTD,54.78,10/05/2021
Delivery Units,Adults and Health,Other Agencies - Third Party P,0090355090,DYNAMIC PEOPLE LTD,54.78,10/05/2021
Delivery Units,Adults and Health,Other Agencies - Third Party P,0090355093,DYNAMIC PEOPLE LTD,68.48,10/05/2021
Delivery Units,Adults and Health,Other Agencies - Third Party P,0090355094,DYNAMIC PEOPLE LTD,68.48,10/05/2021
Delivery Units,Adults and Health,Other Agencies - Third Party P,0090355095,DYNAMIC PEOPLE LTD,255.64,10/05/2021
Delivery Units,Adults and Health,Other Agencies - Third Party P,0090355096,DYNAMIC PEOPLE LTD,255.64,10/05/2021
Delivery Units,Adults and Health,Other Agencies - Third Party P,0090355097,DYNAMIC PEOPLE LTD,223.69,10/05/2021
Delivery Units,Adults and Health,Other Agencies - Third Party P,0090355098,DYNAMIC PEOPLE LTD,223.69,10/05/2021
Delivery Units,Adults and Health,Other Agencies - Third Party P,0090355099,DYNAMIC PEOPLE LTD,95.86,10/05/2021
Delivery Units,Adults and Health,Other Agencies - Third Party P,0090355100,DYNAMIC PEOPLE LTD,95.86,10/05/2021
Delivery Units,Adults and Health,Other Agencies - Third Party P,0090355101,DYNAMIC PEOPLE LTD,191.73,10/05/2021
Delivery Units,Adults and Health,Other Agencies - Third Party P,0090355102,DYNAMIC PEOPLE LTD,191.73,10/05/2021
Delivery Units,Adults and Health,Other Agencies - Third Party P,0090355107,DYNAMIC PEOPLE LTD,127.82,10/05/2021
Delivery Units,Adults and Health,Other Agencies - Third Party P,0090355108,DYNAMIC PEOPLE LTD,127.82,10/05/2021
Delivery Units,Adults and Health,Other Agencies - Third Party P,0090355109,DYNAMIC PEOPLE LTD,191.73,10/05/2021
Delivery Units,Adults and Health,Other Agencies - Third Party P,0090355110,DYNAMIC PEOPLE LTD,191.73,10/05/2021
Delivery Units,Adults and Health,Other Agencies - Third Party P,0090355111,DYNAMIC PEOPLE LTD,127.82,10/05/2021
Delivery Units,Adults and Health,Other Agencies - Third Party P,0090355112,DYNAMIC PEOPLE LTD,127.82,10/05/2021
Delivery Units,Adults and Health,Other Agencies - Third Party P,0090355113,DYNAMIC PEOPLE LTD,958.65,10/05/2021
Delivery Units,Adults and Health,Other Agencies - Third Party P,0090355114,DYNAMIC PEOPLE LTD,958.65,10/05/2021
Delivery Units,Adults and Health,Other Agencies - Third Party P,0090355115,DYNAMIC PEOPLE LTD,287.60,10/05/2021
Delivery Units,Adults and Health,Other Agencies - Third Party P,0090355116,DYNAMIC PEOPLE LTD,136.95,10/05/2021
Delivery Units,Adults and Health,Other Agencies - Third Party P,0090355117,DYNAMIC PEOPLE LTD,146.08,10/05/2021
Delivery Units,Adults and Health,Other Agencies - Third Party P,0090355118,DYNAMIC PEOPLE LTD,146.08,10/05/2021
Delivery Units,Adults and Health,Other Agencies - Third Party P,0090355119,DYNAMIC PEOPLE LTD,118.69,10/05/2021
Delivery Units,Adults and Health,Other Agencies - Third Party P,0090355121,DYNAMIC PEOPLE LTD,447.37,10/05/2021
Delivery Units,Adults and Health,Other Agencies - Third Party P,0090355122,DYNAMIC PEOPLE LTD,447.37,10/05/2021
Delivery Units,Adults and Health,Other Agencies - Third Party P,0090355125,DYNAMIC PEOPLE LTD,319.55,10/05/2021
Delivery Units,Adults and Health,Other Agencies - Third Party P,0090355126,DYNAMIC PEOPLE LTD,319.55,10/05/2021
Delivery Units,Adults and Health,Other Agencies - Third Party P,0090355127,DYNAMIC PEOPLE LTD,351.51,10/05/2021
Delivery Units,Adults and Health,Other Agencies - Third Party P,0090355128,DYNAMIC PEOPLE LTD,351.51,10/05/2021
Delivery Units,Adults and Health,Other Agencies - Third Party P,0090355129,DYNAMIC PEOPLE LTD,273.90,10/05/2021
Delivery Units,Adults and Health,Other Agencies - Third Party P,0090355130,DYNAMIC PEOPLE LTD,273.90,10/05/2021
Delivery Units,Adults and Health,Other Agencies - Third Party P,0090355131,DYNAMIC PEOPLE LTD,95.86,10/05/2021
Delivery Units,Adults and Health,Other Agencies - Third Party P,0090355132,DYNAMIC PEOPLE LTD,95.86,10/05/2021
Delivery Units,Adults and Health,Other Agencies - Third Party P,0090355135,DYNAMIC PEOPLE LTD,127.82,10/05/2021
Delivery Units,Adults and Health,Other Agencies - Third Party P,0090355136,DYNAMIC PEOPLE LTD,127.82,10/05/2021
Delivery Units,Adults and Health,Other Agencies - Third Party P,0090355137,DYNAMIC PEOPLE LTD,127.82,10/05/2021
Delivery Units,Adults and Health,Other Agencies - Third Party P,0090355138,DYNAMIC PEOPLE LTD,127.82,10/05/2021
Delivery Units,Adults and Health,Other Agencies - Third Party P,0090355139,DYNAMIC PEOPLE LTD,287.60,10/05/2021
Delivery Units,Adults and Health,Other Agencies - Third Party P,0090355140,DYNAMIC PEOPLE LTD,287.60,10/05/2021
Delivery Units,Adults and Health,Other Agencies - Third Party P,0090355141,DYNAMIC PEOPLE LTD,191.73,10/05/2021
Delivery Units,Adults and Health,Other Agencies - Third Party P,0090355142,DYNAMIC PEOPLE LTD,191.73,10/05/2021
